Body Name,Body,Date,Department,Beneficiary,Summary of Purpose (SeRCOP),Amount,Merchant Code,Transaction Number,Supplier ID
Sandwell Metropolitan Borough Council,http://www.sandwell.gov.uk/info/200202/performance_and_spending/1079/payments_over_500,18-Feb-2021,Adults Social Care Capital,J A BEDWARD & SON                                                           02,Adults Social Care Capital,1546.48,Deferred Charges/Grant Payments,2021P11_CR00001,77001727
Sandwell Metropolitan Borough Council,http://www.sandwell.gov.uk/info/200202/performance_and_spending/1079/payments_over_500,01-Feb-2021,Adults Social Care Capital,PR PROPERTY MAINTENANCE,Adults Social Care Capital,1750.00,Deferred Charges/Grant Payments,2021P11_CR00002,33836
Sandwell Metropolitan Borough Council,http://www.sandwell.gov.uk/info/200202/performance_and_spending/1079/payments_over_500,01-Feb-2021,Adults Social Care Capital,PR PROPERTY MAINTENANCE,Adults Social Care Capital,2435.00,Deferred Charges/Grant Payments,2021P11_CR00003,33836
Sandwell Metropolitan Borough Council,http://www.sandwell.gov.uk/info/200202/performance_and_spending/1079/payments_over_500,01-Feb-2021,Adults Social Care Capital,PR PROPERTY MAINTENANCE,Adults Social Care Capital,6189.10,Deferred Charges/Grant Payments,2021P11_CR00004,33836
Sandwell Metropolitan Borough Council,http://www.sandwell.gov.uk/info/200202/performance_and_spending/1079/payments_over_500,01-Feb-2021,Adults Social Care Capital,PR PROPERTY MAINTENANCE,Adults Social Care Capital,6363.76,Deferred Charges/Grant Payments,2021P11_CR00005,33836
Sandwell Metropolitan Borough Council,http://www.sandwell.gov.uk/info/200202/performance_and_spending/1079/payments_over_500,01-Feb-2021,Adults Social Care Capital,PR PROPERTY MAINTENANCE,Adults Social Care Capital,7651.66,Deferred Charges/Grant Payments,2021P11_CR00006,33836
Sandwell Metropolitan Borough Council,http://www.sandwell.gov.uk/info/200202/performance_and_spending/1079/payments_over_500,01-Feb-2021,Adults Social Care Capital,RIDGE & PARTNERS LLP,Adults Social Care Capital,1000.00,"CIP - New Construction,Conversion, Enhancement & Reno",2021P11_CR00007,134994
Sandwell Metropolitan Borough Council,http://www.sandwell.gov.uk/info/200202/performance_and_spending/1079/payments_over_500,01-Feb-2021,Adults Social Care Capital,RIDGE & PARTNERS LLP,Adults Social Care Capital,1000.00,"CIP - New Construction,Conversion, Enhancement & Reno",2021P11_CR00008,134994
Sandwell Metropolitan Borough Council,http://www.sandwell.gov.uk/info/200202/performance_and_spending/1079/payments_over_500,01-Feb-2021,Adults Social Care Capital,AXIS EUROPE PLC                                                           02,Adults Social Care Capital,5533.60,Deferred Charges/Grant Payments,2021P11_CR00009,64946
Sandwell Metropolitan Borough Council,http://www.sandwell.gov.uk/info/200202/performance_and_spending/1079/payments_over_500,01-Feb-2021,Adults Social Care Capital,DLM BUILDING & MAINTENANCE LTD,Adults Social Care Capital,3978.08,CIP - Infrastructure,2021P11_CR00010,137596
Sandwell Metropolitan Borough Council,http://www.sandwell.gov.uk/info/200202/performance_and_spending/1079/payments_over_500,01-Feb-2021,Adults Social Care Capital,LIFT & ENGINEERING SERVICES LTD,Adults Social Care Capital,6792.73,"CIP - New Construction,Conversion, Enhancement & Reno",2021P11_CR00011,77003962
Sandwell Metropolitan Borough Council,http://www.sandwell.gov.uk/info/200202/performance_and_spending/1079/payments_over_500,01-Feb-2021,Adults Social Care Capital,LIQUIDLOGIC LIMITED,Adults Social Care Capital,3180.00,ICT ,2021P11_CR00012,83167
Sandwell Metropolitan Borough Council,http://www.sandwell.gov.uk/info/200202/performance_and_spending/1079/payments_over_500,01-Feb-2021,Adults Social Care Capital,T.A. SMITH (BUILDERS) LIMITED,Adults Social Care Capital,7500.00,Deferred Charges/Grant Payments,2021P11_CR00013,89846
Sandwell Metropolitan Borough Council,http://www.sandwell.gov.uk/info/200202/performance_and_spending/1079/payments_over_500,18-Feb-2021,Adults Social Care Capital,VINCI CONSTRUCTION LTD,Adults Social Care Capital,11144.35,Deferred Charges/Grant Payments,2021P11_CR00014,36361
Sandwell Metropolitan Borough Council,http://www.sandwell.gov.uk/info/200202/performance_and_spending/1079/payments_over_500,10-Feb-2021,Adults Social Care Capital,WILLMOTT DIXON CONSTRUCTION LIMITED,Adults Social Care Capital,324249.78,"CIP - New Construction,Conversion, Enhancement & Reno",2021P11_CR00015,34081
Sandwell Metropolitan Borough Council,http://www.sandwell.gov.uk/info/200202/performance_and_spending/1079/payments_over_500,18-Feb-2021,Adults Social Care Capital,REDACTED PERSONAL DATA,Adults Social Care Capital,18412.44,Deferred Charges/Grant Payments,2021P11_CR00016,REDACTED PERSONAL DATA
Sandwell Metropolitan Borough Council,http://www.sandwell.gov.uk/info/200202/performance_and_spending/1079/payments_over_500,17-Feb-2021,Adults Social Care Capital,REDACTED PERSONAL DATA,Adults Social Care Capital,2590.00,Deferred Charges/Grant Payments,2021P11_CR00017,REDACTED PERSONAL DATA
Sandwell Metropolitan Borough Council,http://www.sandwell.gov.uk/info/200202/performance_and_spending/1079/payments_over_500,05-Feb-2021,Childrens Services,121 CARZ,Childrens Services,1243.63,Public Transport,2021P11_CR00018,116848
Sandwell Metropolitan Borough Council,http://www.sandwell.gov.uk/info/200202/performance_and_spending/1079/payments_over_500,01-Feb-2021,Childrens Services,4 COMMUNITY TRUST CIC,Childrens Services,2400.00,Grant Payments,2021P11_CR00019,137880
Sandwell Metropolitan Borough Council,http://www.sandwell.gov.uk/info/200202/performance_and_spending/1079/payments_over_500,14-Feb-2021,Childrens Services,AMP CLEAN ENERGY,Childrens Services,1153.68,Energy Costs-Bio Energy Costs,2021P11_CR00020,128761
Sandwell Metropolitan Borough Council,http://www.sandwell.gov.uk/info/200202/performance_and_spending/1079/payments_over_500,01-Feb-2021,Childrens Services,AMP CLEAN ENERGY,Childrens Services,1833.06,Energy Costs-Bio Energy Costs,2021P11_CR00021,128761
Sandwell Metropolitan Borough Council,http://www.sandwell.gov.uk/info/200202/performance_and_spending/1079/payments_over_500,04-Feb-2021,Childrens Services,APD PRINT & DESIGN,Childrens Services,3125.00,Advertising & Publicity,2021P11_CR00022,49454
Sandwell Metropolitan Borough Council,http://www.sandwell.gov.uk/info/200202/performance_and_spending/1079/payments_over_500,01-Feb-2021,Childrens Services,AUTISM WEST MIDLANDS                                                           01,Childrens Services,9215.50,Grant Payments,2021P11_CR00023,65002404
Sandwell Metropolitan Borough Council,http://www.sandwell.gov.uk/info/200202/performance_and_spending/1079/payments_over_500,01-Feb-2021,Childrens Services,BUTT TAXI,Childrens Services,4119.37,Public Transport,2021P11_CR00024,109306
Sandwell Metropolitan Borough Council,http://www.sandwell.gov.uk/info/200202/performance_and_spending/1079/payments_over_500,22-Feb-2021,Childrens Services,CANAL & RIVER TRUST,Childrens Services,812.50,Licences,2021P11_CR00025,01631306
Sandwell Metropolitan Borough Council,http://www.sandwell.gov.uk/info/200202/performance_and_spending/1079/payments_over_500,10-Feb-2021,Childrens Services,CAREER DEVELOPMENT INSTITUTE,Childrens Services,1300.00,Externally Purchased Professional Services ,2021P11_CR00026,114501
Sandwell Metropolitan Borough Council,http://www.sandwell.gov.uk/info/200202/performance_and_spending/1079/payments_over_500,05-Feb-2021,Childrens Services,CLASSIC CARS 1997,Childrens Services,52475.22,Public Transport,2021P11_CR00027,06005093
Sandwell Metropolitan Borough Council,http://www.sandwell.gov.uk/info/200202/performance_and_spending/1079/payments_over_500,10-Feb-2021,Childrens Services,CLEMMYS,Childrens Services,2640.00,Protective Clothing & Uniforms,2021P11_CR00028,01613504
Sandwell Metropolitan Borough Council,http://www.sandwell.gov.uk/info/200202/performance_and_spending/1079/payments_over_500,01-Feb-2021,Childrens Services,D J TRAVEL,Childrens Services,2869.38,Public Transport,2021P11_CR00029,96415
Sandwell Metropolitan Borough Council,http://www.sandwell.gov.uk/info/200202/performance_and_spending/1079/payments_over_500,01-Feb-2021,Childrens Services,DFN PROJECT SEARCH,Childrens Services,10000.00,Externally Purchased Professional Services ,2021P11_CR00030,150038
Sandwell Metropolitan Borough Council,http://www.sandwell.gov.uk/info/200202/performance_and_spending/1079/payments_over_500,11-Feb-2021,Childrens Services,DIRECTION TRAINING & MANAGEMENT,Childrens Services,500.00,Externally Purchased Professional Services ,2021P11_CR00031,01727395
Sandwell Metropolitan Borough Council,http://www.sandwell.gov.uk/info/200202/performance_and_spending/1079/payments_over_500,01-Feb-2021,Childrens Services,DIRECTION TRAINING & MANAGEMENT,Childrens Services,500.00,Externally Purchased Professional Services ,2021P11_CR00032,01727395
Sandwell Metropolitan Borough Council,http://www.sandwell.gov.uk/info/200202/performance_and_spending/1079/payments_over_500,04-Feb-2021,Childrens Services,E.ON UK PLC,Childrens Services,523.74,Electricity,2021P11_CR00033,28639
Sandwell Metropolitan Borough Council,http://www.sandwell.gov.uk/info/200202/performance_and_spending/1079/payments_over_500,01-Feb-2021,Childrens Services,JPC TRAVEL SOLUTION,Childrens Services,825.00,Public Transport,2021P11_CR00034,138533
Sandwell Metropolitan Borough Council,http://www.sandwell.gov.uk/info/200202/performance_and_spending/1079/payments_over_500,05-Feb-2021,Childrens Services,JPC TRAVEL SOLUTION,Childrens Services,43917.93,Public Transport,2021P11_CR00035,138533
Sandwell Metropolitan Borough Council,http://www.sandwell.gov.uk/info/200202/performance_and_spending/1079/payments_over_500,01-Feb-2021,Childrens Services,LOCAL EDUCATION AND DEVELOPMENT,Childrens Services,897.00,Grant Payments,2021P11_CR00036,148259
Sandwell Metropolitan Borough Council,http://www.sandwell.gov.uk/info/200202/performance_and_spending/1079/payments_over_500,01-Feb-2021,Childrens Services,MURRAY HALL COMMUNITY TRUST,Childrens Services,59483.54,Contract Payments,2021P11_CR00037,01627284
Sandwell Metropolitan Borough Council,http://www.sandwell.gov.uk/info/200202/performance_and_spending/1079/payments_over_500,01-Feb-2021,Childrens Services,MURRAY HALL COMMUNITY TRUST,Childrens Services,151965.45,Contract Payments,2021P11_CR00038,01627284
Sandwell Metropolitan Borough Council,http://www.sandwell.gov.uk/info/200202/performance_and_spending/1079/payments_over_500,01-Feb-2021,Childrens Services,NCFE,Childrens Services,636.00,Externally Purchased Professional Services ,2021P11_CR00039,6230
Sandwell Metropolitan Borough Council,http://www.sandwell.gov.uk/info/200202/performance_and_spending/1079/payments_over_500,10-Feb-2021,Childrens Services,SANDWELL CHILDREN'S TRUST,Childrens Services,10000.00,Other Establishments,2021P11_CR00040,133302
Sandwell Metropolitan Borough Council,http://www.sandwell.gov.uk/info/200202/performance_and_spending/1079/payments_over_500,01-Feb-2021,Childrens Services,TEACHERS 2 PARENTS,Childrens Services,1002.16,Externally Purchased Professional Services ,2021P11_CR00041,91864
Sandwell Metropolitan Borough Council,http://www.sandwell.gov.uk/info/200202/performance_and_spending/1079/payments_over_500,04-Feb-2021,Childrens Services,THE PRIORY PRIMARY,Childrens Services,1950.59,Rents,2021P11_CR00042,01746051
Sandwell Metropolitan Borough Council,http://www.sandwell.gov.uk/info/200202/performance_and_spending/1079/payments_over_500,04-Feb-2021,Childrens Services,THE PRIORY PRIMARY,Childrens Services,2145.89,Rents,2021P11_CR00043,01746051
Sandwell Metropolitan Borough Council,http://www.sandwell.gov.uk/info/200202/performance_and_spending/1079/payments_over_500,10-Feb-2021,Childrens Services,TOH TAXIS,Childrens Services,1036.01,Public Transport,2021P11_CR00044,12250
Sandwell Metropolitan Borough Council,http://www.sandwell.gov.uk/info/200202/performance_and_spending/1079/payments_over_500,10-Feb-2021,Childrens Services,TOH TAXIS,Childrens Services,1523.10,Public Transport,2021P11_CR00045,12250
Sandwell Metropolitan Borough Council,http://www.sandwell.gov.uk/info/200202/performance_and_spending/1079/payments_over_500,10-Feb-2021,Childrens Services,TOH TAXIS,Childrens Services,1554.20,Public Transport,2021P11_CR00046,12250
Sandwell Metropolitan Borough Council,http://www.sandwell.gov.uk/info/200202/performance_and_spending/1079/payments_over_500,05-Feb-2021,Childrens Services,UNITY TRAVEL,Childrens Services,2899.00,Public Transport,2021P11_CR00047,64986
Sandwell Metropolitan Borough Council,http://www.sandwell.gov.uk/info/200202/performance_and_spending/1079/payments_over_500,14-Feb-2021,Childrens Services,WHITE SPACE PUBLISHERS,Childrens Services,999.00,Advertising & Publicity,2021P11_CR00048,85697
Sandwell Metropolitan Borough Council,http://www.sandwell.gov.uk/info/200202/performance_and_spending/1079/payments_over_500,01-Feb-2021,Childrens Services,YELLOW CARS,Childrens Services,18813.25,Public Transport,2021P11_CR00049,116819
Sandwell Metropolitan Borough Council,http://www.sandwell.gov.uk/info/200202/performance_and_spending/1079/payments_over_500,10-Feb-2021,Childrens Services,YOUNG IMAGE,Childrens Services,685.00,Protective Clothing & Uniforms,2021P11_CR00050,04006431
Sandwell Metropolitan Borough Council,http://www.sandwell.gov.uk/info/200202/performance_and_spending/1079/payments_over_500,01-Feb-2021,Childrens Services,ANGEL SOLUTIONS LTD,Childrens Services,25000.00,Subscriptions,2021P11_CR00051,103743
Sandwell Metropolitan Borough Council,http://www.sandwell.gov.uk/info/200202/performance_and_spending/1079/payments_over_500,12-Feb-2021,Childrens Services,BRANDHALL PRIMARY SCHOOL,Childrens Services,500.00,Grants,2021P11_CR00052,04011709
Sandwell Metropolitan Borough Council,http://www.sandwell.gov.uk/info/200202/performance_and_spending/1079/payments_over_500,10-Feb-2021,Childrens Services,CC UNIFORMS LIMITED,Childrens Services,800.00,Protective Clothing & Uniforms,2021P11_CR00053,141379
Sandwell Metropolitan Borough Council,http://www.sandwell.gov.uk/info/200202/performance_and_spending/1079/payments_over_500,01-Feb-2021,Childrens Services,CERTAS ENERGY LIMITED,Childrens Services,595.27,Oil,2021P11_CR00054,80421
Sandwell Metropolitan Borough Council,http://www.sandwell.gov.uk/info/200202/performance_and_spending/1079/payments_over_500,16-Feb-2021,Childrens Services,CHILD SEAT SAFETY LTD,Childrens Services,510.00,Externally Purchased Professional Services ,2021P11_CR00055,129364
Sandwell Metropolitan Borough Council,http://www.sandwell.gov.uk/info/200202/performance_and_spending/1079/payments_over_500,11-Feb-2021,Childrens Services,CHUBB FIRE & SECURITY LIMITED t/a CHUBB ELECTRONIC SECURITY,Childrens Services,1056.00,Security,2021P11_CR00056,81343
Sandwell Metropolitan Borough Council,http://www.sandwell.gov.uk/info/200202/performance_and_spending/1079/payments_over_500,01-Feb-2021,Childrens Services,COGNISOFT LTD,Childrens Services,2500.00,Externally Purchased Professional Services ,2021P11_CR00057,134201
Sandwell Metropolitan Borough Council,http://www.sandwell.gov.uk/info/200202/performance_and_spending/1079/payments_over_500,01-Feb-2021,Childrens Services,COUNTY CARS (2003) LIMITED,Childrens Services,34027.27,Public Transport,2021P11_CR00058,06002387
Sandwell Metropolitan Borough Council,http://www.sandwell.gov.uk/info/200202/performance_and_spending/1079/payments_over_500,01-Feb-2021,Childrens Services,COUNTY CARS (2003) LIMITED,Childrens Services,81262.30,Public Transport,2021P11_CR00059,06002387
Sandwell Metropolitan Borough Council,http://www.sandwell.gov.uk/info/200202/performance_and_spending/1079/payments_over_500,16-Feb-2021,Childrens Services,DROACH TRAVEL LTD,Childrens Services,20159.51,Public Transport,2021P11_CR00060,06002707
Sandwell Metropolitan Borough Council,http://www.sandwell.gov.uk/info/200202/performance_and_spending/1079/payments_over_500,01-Feb-2021,Childrens Services,EURO SHAF TRAINING SERVICES LIMITED,Childrens Services,695.00,Externally Purchased Professional Services ,2021P11_CR00061,76260
Sandwell Metropolitan Borough Council,http://www.sandwell.gov.uk/info/200202/performance_and_spending/1079/payments_over_500,13-Feb-2021,Childrens Services,EURO SHAF TRAINING SERVICES LIMITED,Childrens Services,695.00,Externally Purchased Professional Services ,2021P11_CR00062,76260
Sandwell Metropolitan Borough Council,http://www.sandwell.gov.uk/info/200202/performance_and_spending/1079/payments_over_500,10-Feb-2021,Childrens Services,FFT EDUCATION LIMITED,Childrens Services,32647.92,ICT ,2021P11_CR00063,91550
Sandwell Metropolitan Borough Council,http://www.sandwell.gov.uk/info/200202/performance_and_spending/1079/payments_over_500,01-Feb-2021,Childrens Services,FIRST RESPONSE (FIRST AID) LTD,Childrens Services,680.00,Externally Purchased Professional Services ,2021P11_CR00064,57372
Sandwell Metropolitan Borough Council,http://www.sandwell.gov.uk/info/200202/performance_and_spending/1079/payments_over_500,01-Feb-2021,Childrens Services,FIVE STAR TAXIS (DUDLEY) LTD,Childrens Services,78994.29,Public Transport,2021P11_CR00065,133542
Sandwell Metropolitan Borough Council,http://www.sandwell.gov.uk/info/200202/performance_and_spending/1079/payments_over_500,10-Feb-2021,Childrens Services,GREEN DESTINATIONS LTD,Childrens Services,541.97,Public Transport,2021P11_CR00066,109275
Sandwell Metropolitan Borough Council,http://www.sandwell.gov.uk/info/200202/performance_and_spending/1079/payments_over_500,01-Feb-2021,Childrens Services,GREEN DESTINATIONS LTD,Childrens Services,87705.39,Public Transport,2021P11_CR00067,109275
Sandwell Metropolitan Borough Council,http://www.sandwell.gov.uk/info/200202/performance_and_spending/1079/payments_over_500,01-Feb-2021,Childrens Services,KEYS GROUP LIMITED,Childrens Services,777.17,Other Establishments,2021P11_CR00068,140704
Sandwell Metropolitan Borough Council,http://www.sandwell.gov.uk/info/200202/performance_and_spending/1079/payments_over_500,01-Feb-2021,Childrens Services,LEARNING INTO EMPLOYMENT ACADEMY LTD,Childrens Services,600.00,Grant Payments,2021P11_CR00069,147427
Sandwell Metropolitan Borough Council,http://www.sandwell.gov.uk/info/200202/performance_and_spending/1079/payments_over_500,11-Feb-2021,Childrens Services,LEARNING INTO EMPLOYMENT ACADEMY LTD,Childrens Services,825.00,Grant Payments,2021P11_CR00070,147427
Sandwell Metropolitan Borough Council,http://www.sandwell.gov.uk/info/200202/performance_and_spending/1079/payments_over_500,11-Feb-2021,Childrens Services,LEARNING INTO EMPLOYMENT ACADEMY LTD,Childrens Services,1125.00,Grant Payments,2021P11_CR00071,147427
Sandwell Metropolitan Borough Council,http://www.sandwell.gov.uk/info/200202/performance_and_spending/1079/payments_over_500,01-Feb-2021,Childrens Services,LR'S TAXIS LIMITED,Childrens Services,13251.52,Public Transport,2021P11_CR00072,59047
Sandwell Metropolitan Borough Council,http://www.sandwell.gov.uk/info/200202/performance_and_spending/1079/payments_over_500,23-Feb-2021,Childrens Services,LYNG PRIMARY SCHOOL                                              01,Childrens Services,500.00,Grants,2021P11_CR00073,21030682
Sandwell Metropolitan Borough Council,http://www.sandwell.gov.uk/info/200202/performance_and_spending/1079/payments_over_500,23-Feb-2021,Childrens Services,LYNG PRIMARY SCHOOL                                              01,Childrens Services,500.00,Grants,2021P11_CR00074,21030682
Sandwell Metropolitan Borough Council,http://www.sandwell.gov.uk/info/200202/performance_and_spending/1079/payments_over_500,22-Feb-2021,Childrens Services,OLD PARK PRIMARY SCHOOL,Childrens Services,1626.00,Building Maintenance & Improvements,2021P11_CR00075,04024287
Sandwell Metropolitan Borough Council,http://www.sandwell.gov.uk/info/200202/performance_and_spending/1079/payments_over_500,01-Feb-2021,Childrens Services,ONE 4 YOU SERVICES LTD,Childrens Services,640.00,Public Transport,2021P11_CR00076,81204
Sandwell Metropolitan Borough Council,http://www.sandwell.gov.uk/info/200202/performance_and_spending/1079/payments_over_500,05-Feb-2021,Childrens Services,ONE 4 YOU SERVICES LTD,Childrens Services,52365.70,Public Transport,2021P11_CR00077,81204
Sandwell Metropolitan Borough Council,http://www.sandwell.gov.uk/info/200202/performance_and_spending/1079/payments_over_500,01-Feb-2021,Childrens Services,OPUS EMPLOYER ENGAGEMENT SERVICES LIMITED,Childrens Services,1121.00,Externally Purchased Professional Services ,2021P11_CR00078,126506
Sandwell Metropolitan Borough Council,http://www.sandwell.gov.uk/info/200202/performance_and_spending/1079/payments_over_500,01-Feb-2021,Childrens Services,OPUS EMPLOYER ENGAGEMENT SERVICES LIMITED,Childrens Services,1121.00,Externally Purchased Professional Services ,2021P11_CR00079,126506
Sandwell Metropolitan Borough Council,http://www.sandwell.gov.uk/info/200202/performance_and_spending/1079/payments_over_500,01-Feb-2021,Childrens Services,OPUS EMPLOYER ENGAGEMENT SERVICES LIMITED,Childrens Services,1121.00,Externally Purchased Professional Services ,2021P11_CR00080,126506
Sandwell Metropolitan Borough Council,http://www.sandwell.gov.uk/info/200202/performance_and_spending/1079/payments_over_500,01-Feb-2021,Childrens Services,OPUS EMPLOYER ENGAGEMENT SERVICES LIMITED,Childrens Services,1121.00,Externally Purchased Professional Services ,2021P11_CR00081,126506
Sandwell Metropolitan Borough Council,http://www.sandwell.gov.uk/info/200202/performance_and_spending/1079/payments_over_500,01-Feb-2021,Childrens Services,OPUS EMPLOYER ENGAGEMENT SERVICES LIMITED,Childrens Services,1121.00,Externally Purchased Professional Services ,2021P11_CR00082,126506
Sandwell Metropolitan Borough Council,http://www.sandwell.gov.uk/info/200202/performance_and_spending/1079/payments_over_500,01-Feb-2021,Childrens Services,PENNON WATER SERVICES T/A SSWB,Childrens Services,555.38,Water Services,2021P11_CR00083,131726
Sandwell Metropolitan Borough Council,http://www.sandwell.gov.uk/info/200202/performance_and_spending/1079/payments_over_500,02-Feb-2021,Childrens Services,PENNYHILL PRIMARY SCHOOL,Childrens Services,1799.86,Electricity,2021P11_CR00084,73032
Sandwell Metropolitan Borough Council,http://www.sandwell.gov.uk/info/200202/performance_and_spending/1079/payments_over_500,04-Feb-2021,Childrens Services,PENNYHILL PRIMARY SCHOOL,Childrens Services,6524.35,Electricity,2021P11_CR00085,73032
Sandwell Metropolitan Borough Council,http://www.sandwell.gov.uk/info/200202/performance_and_spending/1079/payments_over_500,09-Feb-2021,Childrens Services,POBBLE EDUCATION LTD,Childrens Services,10300.00,Subscriptions,2021P11_CR00086,150346
Sandwell Metropolitan Borough Council,http://www.sandwell.gov.uk/info/200202/performance_and_spending/1079/payments_over_500,01-Feb-2021,Childrens Services,PROSPECTS SERVICES LIMITED,Childrens Services,4089.92,Grant Payments,2021P11_CR00087,01721288
Sandwell Metropolitan Borough Council,http://www.sandwell.gov.uk/info/200202/performance_and_spending/1079/payments_over_500,01-Feb-2021,Childrens Services,PROSPECTS SERVICES LIMITED,Childrens Services,4089.92,Grant Payments,2021P11_CR00088,01721288
Sandwell Metropolitan Borough Council,http://www.sandwell.gov.uk/info/200202/performance_and_spending/1079/payments_over_500,05-Feb-2021,Childrens Services,REDACTED PERSONAL DATA,Childrens Services,784.80,External Contract Hire,2021P11_CR00089,REDACTED PERSONAL DATA
Sandwell Metropolitan Borough Council,http://www.sandwell.gov.uk/info/200202/performance_and_spending/1079/payments_over_500,18-Feb-2021,Childrens Services,REDACTED PERSONAL DATA,Childrens Services,1950.00,Externally Purchased Professional Services ,2021P11_CR00090,REDACTED PERSONAL DATA
Sandwell Metropolitan Borough Council,http://www.sandwell.gov.uk/info/200202/performance_and_spending/1079/payments_over_500,01-Feb-2021,Childrens Services,REDACTED PERSONAL DATA,Childrens Services,1050.00,Public Transport,2021P11_CR00091,REDACTED PERSONAL DATA
Sandwell Metropolitan Borough Council,http://www.sandwell.gov.uk/info/200202/performance_and_spending/1079/payments_over_500,05-Feb-2021,Childrens Services,REDACTED PERSONAL DATA,Childrens Services,30950.96,Public Transport,2021P11_CR00092,REDACTED PERSONAL DATA
Sandwell Metropolitan Borough Council,http://www.sandwell.gov.uk/info/200202/performance_and_spending/1079/payments_over_500,08-Feb-2021,Childrens Services,SIPS EDUCATION LTD,Childrens Services,2106.05,Catering Provisions,2021P11_CR00093,110784
Sandwell Metropolitan Borough Council,http://www.sandwell.gov.uk/info/200202/performance_and_spending/1079/payments_over_500,08-Feb-2021,Childrens Services,SIPS EDUCATION LTD,Childrens Services,2621.65,Catering Provisions,2021P11_CR00094,110784
Sandwell Metropolitan Borough Council,http://www.sandwell.gov.uk/info/200202/performance_and_spending/1079/payments_over_500,01-Feb-2021,Childrens Services,SKILLS NETWORK LTD,Childrens Services,1300.00,Externally Purchased Professional Services ,2021P11_CR00095,146052
Sandwell Metropolitan Borough Council,http://www.sandwell.gov.uk/info/200202/performance_and_spending/1079/payments_over_500,05-Feb-2021,Childrens Services,TEMPLE MEADOW PRIMARY SCHOOL                                     01,Childrens Services,2780.00,Rents,2021P11_CR00096,04015109
Sandwell Metropolitan Borough Council,http://www.sandwell.gov.uk/info/200202/performance_and_spending/1079/payments_over_500,01-Feb-2021,Childrens Services,THOMAS CHARLES FACILITIES & MAINTENANCE LTD,Childrens Services,720.00,Contract Cleaning,2021P11_CR00097,114170
Sandwell Metropolitan Borough Council,http://www.sandwell.gov.uk/info/200202/performance_and_spending/1079/payments_over_500,01-Feb-2021,Childrens Services,THOMAS CHARLES FACILITIES & MAINTENANCE LTD,Childrens Services,810.00,Contract Cleaning,2021P11_CR00098,114170
Sandwell Metropolitan Borough Council,http://www.sandwell.gov.uk/info/200202/performance_and_spending/1079/payments_over_500,01-Feb-2021,Childrens Services,THOMAS CHARLES FACILITIES & MAINTENANCE LTD,Childrens Services,1710.00,Contract Cleaning,2021P11_CR00099,114170
Sandwell Metropolitan Borough Council,http://www.sandwell.gov.uk/info/200202/performance_and_spending/1079/payments_over_500,01-Feb-2021,Childrens Services,THOMAS CHARLES FACILITIES & MAINTENANCE LTD,Childrens Services,1710.00,Contract Cleaning,2021P11_CR00100,114170
Sandwell Metropolitan Borough Council,http://www.sandwell.gov.uk/info/200202/performance_and_spending/1079/payments_over_500,01-Feb-2021,Childrens Services,THOMAS CHARLES FACILITIES & MAINTENANCE LTD,Childrens Services,1710.00,Contract Cleaning,2021P11_CR00101,114170
Sandwell Metropolitan Borough Council,http://www.sandwell.gov.uk/info/200202/performance_and_spending/1079/payments_over_500,01-Feb-2021,Childrens Services,THOMAS CHARLES FACILITIES & MAINTENANCE LTD,Childrens Services,2565.00,Contract Cleaning,2021P11_CR00102,114170
Sandwell Metropolitan Borough Council,http://www.sandwell.gov.uk/info/200202/performance_and_spending/1079/payments_over_500,05-Feb-2021,Childrens Services,TIVIDALE COMMUNITY PRIMARY SCHOOL,Childrens Services,500.00,Grants,2021P11_CR00103,20555
Sandwell Metropolitan Borough Council,http://www.sandwell.gov.uk/info/200202/performance_and_spending/1079/payments_over_500,05-Feb-2021,Childrens Services,TIVIDALE COMMUNITY PRIMARY SCHOOL,Childrens Services,500.00,Grants,2021P11_CR00104,20555
Sandwell Metropolitan Borough Council,http://www.sandwell.gov.uk/info/200202/performance_and_spending/1079/payments_over_500,04-Feb-2021,Childrens Services,TOTAL GAS AND POWER LIMITED,Childrens Services,513.20,Electricity,2021P11_CR00105,107605
Sandwell Metropolitan Borough Council,http://www.sandwell.gov.uk/info/200202/performance_and_spending/1079/payments_over_500,04-Feb-2021,Childrens Services,TOTAL GAS AND POWER LIMITED,Childrens Services,581.27,Electricity,2021P11_CR00106,107605
Sandwell Metropolitan Borough Council,http://www.sandwell.gov.uk/info/200202/performance_and_spending/1079/payments_over_500,13-Feb-2021,Childrens Services,TOTAL GAS AND POWER LIMITED,Childrens Services,1007.91,Electricity,2021P11_CR00107,107605
Sandwell Metropolitan Borough Council,http://www.sandwell.gov.uk/info/200202/performance_and_spending/1079/payments_over_500,01-Feb-2021,Childrens Services,TOTAL GAS AND POWER LIMITED,Childrens Services,1068.28,Electricity,2021P11_CR00108,107605
Sandwell Metropolitan Borough Council,http://www.sandwell.gov.uk/info/200202/performance_and_spending/1079/payments_over_500,04-Feb-2021,Childrens Services,TOTAL GAS AND POWER LIMITED,Childrens Services,1139.23,Gas,2021P11_CR00109,107605
Sandwell Metropolitan Borough Council,http://www.sandwell.gov.uk/info/200202/performance_and_spending/1079/payments_over_500,05-Feb-2021,Childrens Services,WESTMINSTER SCHOOL,Childrens Services,500.00,Grants,2021P11_CR00110,38481
Sandwell Metropolitan Borough Council,http://www.sandwell.gov.uk/info/200202/performance_and_spending/1079/payments_over_500,09-Feb-2021,Childrens Services,XMA LTD,Childrens Services,1681.48,ICT ,2021P11_CR00111,01135462
Sandwell Metropolitan Borough Council,http://www.sandwell.gov.uk/info/200202/performance_and_spending/1079/payments_over_500,08-Feb-2021,Childrens Services,XMA LTD,Childrens Services,8473.50,Learning Resources,2021P11_CR00112,01135462
Sandwell Metropolitan Borough Council,http://www.sandwell.gov.uk/info/200202/performance_and_spending/1079/payments_over_500,11-Feb-2021,Childrens Services,XMA LTD,Childrens Services,203090.00,Learning Resources,2021P11_CR00113,01135462
Sandwell Metropolitan Borough Council,http://www.sandwell.gov.uk/info/200202/performance_and_spending/1079/payments_over_500,08-Feb-2021,Childrens Services,XMA LTD,Childrens Services,230000.00,Learning Resources,2021P11_CR00114,01135462
Sandwell Metropolitan Borough Council,http://www.sandwell.gov.uk/info/200202/performance_and_spending/1079/payments_over_500,03-Feb-2021,Childrens Services,BRISTNALL HALL ACADEMY,Childrens Services,5070.00,Grant Payments,2021P11_CR00115,107471
Sandwell Metropolitan Borough Council,http://www.sandwell.gov.uk/info/200202/performance_and_spending/1079/payments_over_500,03-Feb-2021,Childrens Services,CENTRAL RSA ACADEMIES TRUST,Childrens Services,5565.00,Grant Payments,2021P11_CR00116,60952
Sandwell Metropolitan Borough Council,http://www.sandwell.gov.uk/info/200202/performance_and_spending/1079/payments_over_500,03-Feb-2021,Childrens Services,CHRIST CHURCH CE PRIMARY                                    02,Childrens Services,1515.00,Schools Support Services,2021P11_CR00117,60978
Sandwell Metropolitan Borough Council,http://www.sandwell.gov.uk/info/200202/performance_and_spending/1079/payments_over_500,03-Feb-2021,Childrens Services,CORNGREAVES ACADEMY,Childrens Services,795.00,Grant Payments,2021P11_CR00118,112862
Sandwell Metropolitan Borough Council,http://www.sandwell.gov.uk/info/200202/performance_and_spending/1079/payments_over_500,03-Feb-2021,Childrens Services,DEVONSHIRE INFANTS ACADEMY,Childrens Services,615.00,Grant Payments,2021P11_CR00119,118366
Sandwell Metropolitan Borough Council,http://www.sandwell.gov.uk/info/200202/performance_and_spending/1079/payments_over_500,03-Feb-2021,Childrens Services,DEVONSHIRE JUNIOR ACADEMY,Childrens Services,915.00,Grant Payments,2021P11_CR00120,118367
Sandwell Metropolitan Borough Council,http://www.sandwell.gov.uk/info/200202/performance_and_spending/1079/payments_over_500,03-Feb-2021,Childrens Services,GEORGE BETTS PRIMARY ACADEMY,Childrens Services,1695.00,Grant Payments,2021P11_CR00121,113420
Sandwell Metropolitan Borough Council,http://www.sandwell.gov.uk/info/200202/performance_and_spending/1079/payments_over_500,03-Feb-2021,Childrens Services,GEORGE SALTER COLLEGIATE ACADEMY ORMISTON ACADEMIES TRUST,Childrens Services,5220.00,Grant Payments,2021P11_CR00122,01217798
Sandwell Metropolitan Borough Council,http://www.sandwell.gov.uk/info/200202/performance_and_spending/1079/payments_over_500,03-Feb-2021,Childrens Services,HOLY TRINITY CE PRIMARY                                    02,Childrens Services,1890.00,Schools Support Services,2021P11_CR00123,61004
Sandwell Metropolitan Borough Council,http://www.sandwell.gov.uk/info/200202/performance_and_spending/1079/payments_over_500,03-Feb-2021,Childrens Services,HOLYHEAD PRIMARY ACADEMY           02,Childrens Services,1155.00,Grant Payments,2021P11_CR00124,61005
Sandwell Metropolitan Borough Council,http://www.sandwell.gov.uk/info/200202/performance_and_spending/1079/payments_over_500,03-Feb-2021,Childrens Services,JUBILEE PARK ACADEMY TRUST,Childrens Services,1275.00,Grant Payments,2021P11_CR00125,113377
Sandwell Metropolitan Borough Council,http://www.sandwell.gov.uk/info/200202/performance_and_spending/1079/payments_over_500,03-Feb-2021,Childrens Services,MESTY CROFT ACADEMY,Childrens Services,1440.00,Grant Payments,2021P11_CR00126,106208
Sandwell Metropolitan Borough Council,http://www.sandwell.gov.uk/info/200202/performance_and_spending/1079/payments_over_500,03-Feb-2021,Childrens Services,OCKER HILL ACADEMY,Childrens Services,1005.00,Grant Payments,2021P11_CR00127,113691
Sandwell Metropolitan Borough Council,http://www.sandwell.gov.uk/info/200202/performance_and_spending/1079/payments_over_500,03-Feb-2021,Childrens Services,OLDBURY ACADEMY,Childrens Services,8055.00,Grant Payments,2021P11_CR00128,69241
Sandwell Metropolitan Borough Council,http://www.sandwell.gov.uk/info/200202/performance_and_spending/1079/payments_over_500,03-Feb-2021,Childrens Services,ORMISTON FORGE ACADEMY,Childrens Services,6795.00,Grant Payments,2021P11_CR00129,60941
Sandwell Metropolitan Borough Council,http://www.sandwell.gov.uk/info/200202/performance_and_spending/1079/payments_over_500,03-Feb-2021,Childrens Services,ORMISTON SANDWELL COMMUNITY ACADEMY                                           01,Childrens Services,4125.00,Grant Payments,2021P11_CR00130,60950
Sandwell Metropolitan Borough Council,http://www.sandwell.gov.uk/info/200202/performance_and_spending/1079/payments_over_500,03-Feb-2021,Childrens Services,PENNYHILL PRIMARY,Childrens Services,3735.00,Schools Support Services,2021P11_CR00131,73125
Sandwell Metropolitan Borough Council,http://www.sandwell.gov.uk/info/200202/performance_and_spending/1079/payments_over_500,03-Feb-2021,Childrens Services,PHOENIX COLLEGIATE COLLEGE,Childrens Services,9720.00,Schools Support Services,2021P11_CR00132,95444
Sandwell Metropolitan Borough Council,http://www.sandwell.gov.uk/info/200202/performance_and_spending/1079/payments_over_500,03-Feb-2021,Childrens Services,Q3 ACADEMY LANGLEY,Childrens Services,3750.00,Grant Payments,2021P11_CR00133,128009
Sandwell Metropolitan Borough Council,http://www.sandwell.gov.uk/info/200202/performance_and_spending/1079/payments_over_500,03-Feb-2021,Childrens Services,Q3 ACADEMY TIPTON,Childrens Services,8205.00,Grant Payments,2021P11_CR00134,112047
Sandwell Metropolitan Borough Council,http://www.sandwell.gov.uk/info/200202/performance_and_spending/1079/payments_over_500,03-Feb-2021,Childrens Services,QUAERERE ACADEMY TRUST                                                                 02,Childrens Services,2655.00,Grant Payments,2021P11_CR00135,60939
Sandwell Metropolitan Borough Council,http://www.sandwell.gov.uk/info/200202/performance_and_spending/1079/payments_over_500,03-Feb-2021,Childrens Services,SHIRELAND COLLEGIATE ACADEMY                                           03,Childrens Services,5820.00,Grant Payments,2021P11_CR00136,60947
Sandwell Metropolitan Borough Council,http://www.sandwell.gov.uk/info/200202/performance_and_spending/1079/payments_over_500,03-Feb-2021,Childrens Services,SHIRELAND HALL PRIMARY ACADEMY,Childrens Services,2790.00,Grant Payments,2021P11_CR00137,15209
Sandwell Metropolitan Borough Council,http://www.sandwell.gov.uk/info/200202/performance_and_spending/1079/payments_over_500,03-Feb-2021,Childrens Services,SILVERTREES ACADEMY TRUST,Childrens Services,1245.00,Grant Payments,2021P11_CR00138,113719
Sandwell Metropolitan Borough Council,http://www.sandwell.gov.uk/info/200202/performance_and_spending/1079/payments_over_500,03-Feb-2021,Childrens Services,ST CATHERINE OF SIENA MULTI ACADEMY COMPANY                       02,Childrens Services,525.00,Grant Payments,2021P11_CR00139,61052
Sandwell Metropolitan Borough Council,http://www.sandwell.gov.uk/info/200202/performance_and_spending/1079/payments_over_500,03-Feb-2021,Childrens Services,ST FRANCIS XAVIER CATHOLIC PRIMARY,Childrens Services,510.00,Grant Payments,2021P11_CR00140,61051
Sandwell Metropolitan Borough Council,http://www.sandwell.gov.uk/info/200202/performance_and_spending/1079/payments_over_500,03-Feb-2021,Childrens Services,ST JOHNS C OF E PRIMARY ACADEMY,Childrens Services,1125.00,Grant Payments,2021P11_CR00141,61056
Sandwell Metropolitan Borough Council,http://www.sandwell.gov.uk/info/200202/performance_and_spending/1079/payments_over_500,03-Feb-2021,Childrens Services,ST PAULS C OF E ACADEMY,Childrens Services,810.00,Grant Payments,2021P11_CR00142,118126
Sandwell Metropolitan Borough Council,http://www.sandwell.gov.uk/info/200202/performance_and_spending/1079/payments_over_500,03-Feb-2021,Childrens Services,ST PHILIPS CATHOLIC PRIMARY                           02,Childrens Services,945.00,Grant Payments,2021P11_CR00143,61063
Sandwell Metropolitan Borough Council,http://www.sandwell.gov.uk/info/200202/performance_and_spending/1079/payments_over_500,03-Feb-2021,Childrens Services,SUMMERHILL PARK MULTI ACADEMY TRUST,Childrens Services,5145.00,Grant Payments,2021P11_CR00144,61014
Sandwell Metropolitan Borough Council,http://www.sandwell.gov.uk/info/200202/performance_and_spending/1079/payments_over_500,03-Feb-2021,Childrens Services,THE PRIORY PRIMARY                       02,Childrens Services,2415.00,Schools Support Services,2021P11_CR00145,61066
Sandwell Metropolitan Borough Council,http://www.sandwell.gov.uk/info/200202/performance_and_spending/1079/payments_over_500,03-Feb-2021,Childrens Services,TIVIDALE COMMUNITY PRIMARY                              02,Childrens Services,1170.00,Schools Support Services,2021P11_CR00146,61069
Sandwell Metropolitan Borough Council,http://www.sandwell.gov.uk/info/200202/performance_and_spending/1079/payments_over_500,03-Feb-2021,Childrens Services,UPLANDS MANOR PRIMARY               02,Childrens Services,4815.00,Schools Support Services,2021P11_CR00147,61071
Sandwell Metropolitan Borough Council,http://www.sandwell.gov.uk/info/200202/performance_and_spending/1079/payments_over_500,03-Feb-2021,Childrens Services,VICTORIA PARK PRIMARY ACADEMY,Childrens Services,3090.00,Grant Payments,2021P11_CR00148,106209
Sandwell Metropolitan Borough Council,http://www.sandwell.gov.uk/info/200202/performance_and_spending/1079/payments_over_500,03-Feb-2021,Childrens Services,WEDNESBURY OAK ACADEMY,Childrens Services,2130.00,Grant Payments,2021P11_CR00149,116882
Sandwell Metropolitan Borough Council,http://www.sandwell.gov.uk/info/200202/performance_and_spending/1079/payments_over_500,03-Feb-2021,Childrens Services,WEST BROMWICH COLLEGIATE ACADEMY,Childrens Services,1590.00,Grant Payments,2021P11_CR00150,137780
Sandwell Metropolitan Borough Council,http://www.sandwell.gov.uk/info/200202/performance_and_spending/1079/payments_over_500,03-Feb-2021,Childrens Services,WODENSBOROUGH ORMISTON ACADEMY,Childrens Services,7485.00,Grant Payments,2021P11_CR00151,115040
Sandwell Metropolitan Borough Council,http://www.sandwell.gov.uk/info/200202/performance_and_spending/1079/payments_over_500,03-Feb-2021,Childrens Services,WOOD GREEN ACADEMY                                    01,Childrens Services,4845.00,Grant Payments,2021P11_CR00152,100125
Sandwell Metropolitan Borough Council,http://www.sandwell.gov.uk/info/200202/performance_and_spending/1079/payments_over_500,03-Feb-2021,Childrens Services,YEW TREE PRIMARY SCHOOL                         02,Childrens Services,3000.00,Schools Support Services,2021P11_CR00153,61078
Sandwell Metropolitan Borough Council,http://www.sandwell.gov.uk/info/200202/performance_and_spending/1079/payments_over_500,03-Feb-2021,Childrens Services,ABBEY INFANT SCHOOL                                             02,Childrens Services,825.00,Schools Support Services,2021P11_CR00154,60959
Sandwell Metropolitan Borough Council,http://www.sandwell.gov.uk/info/200202/performance_and_spending/1079/payments_over_500,03-Feb-2021,Childrens Services,ABBEY JUNIOR SCHOOL                                  02,Childrens Services,1080.00,Schools Support Services,2021P11_CR00155,60961
Sandwell Metropolitan Borough Council,http://www.sandwell.gov.uk/info/200202/performance_and_spending/1079/payments_over_500,03-Feb-2021,Childrens Services,ALBERT PRITCHARD INFANT SCHOOL                                02,Childrens Services,1065.00,Schools Support Services,2021P11_CR00156,60962
Sandwell Metropolitan Borough Council,http://www.sandwell.gov.uk/info/200202/performance_and_spending/1079/payments_over_500,03-Feb-2021,Childrens Services,ALL SAINTS CE PRIMARY SCHOOL                                         02,Childrens Services,1245.00,Schools Support Services,2021P11_CR00157,60964
Sandwell Metropolitan Borough Council,http://www.sandwell.gov.uk/info/200202/performance_and_spending/1079/payments_over_500,03-Feb-2021,Childrens Services,ANNIE LENNARD INFANT SCHOOL,Childrens Services,675.00,Schools Support Services,2021P11_CR00158,60966
Sandwell Metropolitan Borough Council,http://www.sandwell.gov.uk/info/200202/performance_and_spending/1079/payments_over_500,03-Feb-2021,Childrens Services,BEARWOOD PRIMARY SCHOOL                                   02,Childrens Services,1650.00,Schools Support Services,2021P11_CR00159,60967
Sandwell Metropolitan Borough Council,http://www.sandwell.gov.uk/info/200202/performance_and_spending/1079/payments_over_500,03-Feb-2021,Childrens Services,BLACKHEATH PRIMARY SCHOOL                            02,Childrens Services,2280.00,Schools Support Services,2021P11_CR00160,60968
Sandwell Metropolitan Borough Council,http://www.sandwell.gov.uk/info/200202/performance_and_spending/1079/payments_over_500,03-Feb-2021,Childrens Services,BLEAKHOUSE JUNIOR SCHOOL                                02,Childrens Services,1785.00,Schools Support Services,2021P11_CR00161,60969
Sandwell Metropolitan Borough Council,http://www.sandwell.gov.uk/info/200202/performance_and_spending/1079/payments_over_500,03-Feb-2021,Childrens Services,BRANDHALL PRIMARY SCHOOL                                          02,Childrens Services,2325.00,Schools Support Services,2021P11_CR00162,60971
Sandwell Metropolitan Borough Council,http://www.sandwell.gov.uk/info/200202/performance_and_spending/1079/payments_over_500,03-Feb-2021,Childrens Services,BRICKHOUSE PRIMARY SCHOOL                                             02,Childrens Services,1125.00,Schools Support Services,2021P11_CR00163,60973
Sandwell Metropolitan Borough Council,http://www.sandwell.gov.uk/info/200202/performance_and_spending/1079/payments_over_500,03-Feb-2021,Childrens Services,BURNT TREE PRIMARY SCHOOL                                             01,Childrens Services,2415.00,Schools Support Services,2021P11_CR00164,60974
Sandwell Metropolitan Borough Council,http://www.sandwell.gov.uk/info/200202/performance_and_spending/1079/payments_over_500,03-Feb-2021,Childrens Services,CAPE PRIMARY SCHOOL,Childrens Services,2790.00,Schools Support Services,2021P11_CR00165,01672537
Sandwell Metropolitan Borough Council,http://www.sandwell.gov.uk/info/200202/performance_and_spending/1079/payments_over_500,03-Feb-2021,Childrens Services,CAUSEWAY GREEN PRIMARY SCHOOL                           02,Childrens Services,1905.00,Schools Support Services,2021P11_CR00166,60976
Sandwell Metropolitan Borough Council,http://www.sandwell.gov.uk/info/200202/performance_and_spending/1079/payments_over_500,03-Feb-2021,Childrens Services,CROCKETTS LANE COMMUNITY PRIMARY SCHOOL                           02,Childrens Services,1560.00,Schools Support Services,2021P11_CR00167,60980
Sandwell Metropolitan Borough Council,http://www.sandwell.gov.uk/info/200202/performance_and_spending/1079/payments_over_500,03-Feb-2021,Childrens Services,EATON VALLEY PRIMARY SCHOOL,Childrens Services,1515.00,Schools Support Services,2021P11_CR00168,60981
Sandwell Metropolitan Borough Council,http://www.sandwell.gov.uk/info/200202/performance_and_spending/1079/payments_over_500,03-Feb-2021,Childrens Services,FERNDALE PRIMARY SCHOOL                                02,Childrens Services,1860.00,Schools Support Services,2021P11_CR00169,60987
Sandwell Metropolitan Borough Council,http://www.sandwell.gov.uk/info/200202/performance_and_spending/1079/payments_over_500,03-Feb-2021,Childrens Services,GALTON VALLEY PRIMARY SCHOOL                                             02,Childrens Services,2040.00,Schools Support Services,2021P11_CR00170,73124
Sandwell Metropolitan Borough Council,http://www.sandwell.gov.uk/info/200202/performance_and_spending/1079/payments_over_500,03-Feb-2021,Childrens Services,GLEBEFIELDS PRIMARY SCHOOL                             02,Childrens Services,3300.00,Schools Support Services,2021P11_CR00171,60989
Sandwell Metropolitan Borough Council,http://www.sandwell.gov.uk/info/200202/performance_and_spending/1079/payments_over_500,03-Feb-2021,Childrens Services,GRACE MARY PRIMARY SCHOOL                                         02,Childrens Services,1140.00,Schools Support Services,2021P11_CR00172,60991
Sandwell Metropolitan Borough Council,http://www.sandwell.gov.uk/info/200202/performance_and_spending/1079/payments_over_500,03-Feb-2021,Childrens Services,GREAT BRIDGE PRIMARY SCHOOL                          02,Childrens Services,2010.00,Schools Support Services,2021P11_CR00173,42484
Sandwell Metropolitan Borough Council,http://www.sandwell.gov.uk/info/200202/performance_and_spending/1079/payments_over_500,03-Feb-2021,Childrens Services,GROVE VALE PRIMARY SCHOOL,Childrens Services,600.00,Schools Support Services,2021P11_CR00174,60993
Sandwell Metropolitan Borough Council,http://www.sandwell.gov.uk/info/200202/performance_and_spending/1079/payments_over_500,03-Feb-2021,Childrens Services,HALL GREEN PRIMARY SCHOOL                                             02,Childrens Services,2475.00,Schools Support Services,2021P11_CR00175,60996
Sandwell Metropolitan Borough Council,http://www.sandwell.gov.uk/info/200202/performance_and_spending/1079/payments_over_500,03-Feb-2021,Childrens Services,HAMSTEAD INFANT SCHOOL                                  02,Childrens Services,675.00,Schools Support Services,2021P11_CR00176,60997
Sandwell Metropolitan Borough Council,http://www.sandwell.gov.uk/info/200202/performance_and_spending/1079/payments_over_500,03-Feb-2021,Childrens Services,HAMSTEAD JUNIOR SCHOOL                                   02,Childrens Services,1050.00,Schools Support Services,2021P11_CR00177,60998
Sandwell Metropolitan Borough Council,http://www.sandwell.gov.uk/info/200202/performance_and_spending/1079/payments_over_500,03-Feb-2021,Childrens Services,HANBURY PRIMARY SCHOOL                                                             01,Childrens Services,1890.00,Schools Support Services,2021P11_CR00178,60995
Sandwell Metropolitan Borough Council,http://www.sandwell.gov.uk/info/200202/performance_and_spending/1079/payments_over_500,03-Feb-2021,Childrens Services,HARGATE PRIMARY SCHOOL                                   02,Childrens Services,1725.00,Schools Support Services,2021P11_CR00179,60999
Sandwell Metropolitan Borough Council,http://www.sandwell.gov.uk/info/200202/performance_and_spending/1079/payments_over_500,03-Feb-2021,Childrens Services,HARVILLS HAWTHORN PRIMARY SCHOOL                             01,Childrens Services,1845.00,Schools Support Services,2021P11_CR00180,01782074
Sandwell Metropolitan Borough Council,http://www.sandwell.gov.uk/info/200202/performance_and_spending/1079/payments_over_500,03-Feb-2021,Childrens Services,HATELEY HEATH PRIMARY SCHOOL                                02,Childrens Services,1770.00,Schools Support Services,2021P11_CR00181,61000
Sandwell Metropolitan Borough Council,http://www.sandwell.gov.uk/info/200202/performance_and_spending/1079/payments_over_500,03-Feb-2021,Childrens Services,HEALTH FUTURES UTC LIMITED,Childrens Services,615.00,Grant Payments,2021P11_CR00182,128174
Sandwell Metropolitan Borough Council,http://www.sandwell.gov.uk/info/200202/performance_and_spending/1079/payments_over_500,03-Feb-2021,Childrens Services,HIGHFIELDS PRIMARY SCHOOL                                01,Childrens Services,1410.00,Schools Support Services,2021P11_CR00183,01782118
Sandwell Metropolitan Borough Council,http://www.sandwell.gov.uk/info/200202/performance_and_spending/1079/payments_over_500,03-Feb-2021,Childrens Services,HOLLY LODGE FOUNDATION HIGH SCHOOL,Childrens Services,7140.00,Schools Support Services,2021P11_CR00184,60942
Sandwell Metropolitan Borough Council,http://www.sandwell.gov.uk/info/200202/performance_and_spending/1079/payments_over_500,03-Feb-2021,Childrens Services,JOSEPH TURNER PRIMARY SCHOOL                               02,Childrens Services,2460.00,Schools Support Services,2021P11_CR00185,61006
Sandwell Metropolitan Borough Council,http://www.sandwell.gov.uk/info/200202/performance_and_spending/1079/payments_over_500,03-Feb-2021,Childrens Services,KING GEORGE V PRIMARY SCHOOL                                             02,Childrens Services,1185.00,Schools Support Services,2021P11_CR00186,61009
Sandwell Metropolitan Borough Council,http://www.sandwell.gov.uk/info/200202/performance_and_spending/1079/payments_over_500,03-Feb-2021,Childrens Services,LANGLEY PRIMARY SCHOOL                                 02,Childrens Services,2475.00,Schools Support Services,2021P11_CR00187,61011
Sandwell Metropolitan Borough Council,http://www.sandwell.gov.uk/info/200202/performance_and_spending/1079/payments_over_500,03-Feb-2021,Childrens Services,LIGHTWOODS PRIMARY SCHOOL                              02,Childrens Services,525.00,Schools Support Services,2021P11_CR00188,61012
Sandwell Metropolitan Borough Council,http://www.sandwell.gov.uk/info/200202/performance_and_spending/1079/payments_over_500,03-Feb-2021,Childrens Services,LODGE PRIMARY SCHOOL                                     02,Childrens Services,1815.00,Schools Support Services,2021P11_CR00189,61015
Sandwell Metropolitan Borough Council,http://www.sandwell.gov.uk/info/200202/performance_and_spending/1079/payments_over_500,03-Feb-2021,Childrens Services,LYNG PRIMARY SCHOOL                                        02,Childrens Services,1905.00,Schools Support Services,2021P11_CR00190,61026
Sandwell Metropolitan Borough Council,http://www.sandwell.gov.uk/info/200202/performance_and_spending/1079/payments_over_500,03-Feb-2021,Childrens Services,MEADOWS SCHOOL,Childrens Services,1515.00,Schools Support Services,2021P11_CR00191,60955
Sandwell Metropolitan Borough Council,http://www.sandwell.gov.uk/info/200202/performance_and_spending/1079/payments_over_500,03-Feb-2021,Childrens Services,MOAT FARM INFANTS SCHOOL                                     02,Childrens Services,1425.00,Schools Support Services,2021P11_CR00192,61031
Sandwell Metropolitan Borough Council,http://www.sandwell.gov.uk/info/200202/performance_and_spending/1079/payments_over_500,03-Feb-2021,Childrens Services,MOAT FARM JUNIOR SCHOOL                                    02,Childrens Services,1950.00,Schools Support Services,2021P11_CR00193,61032
Sandwell Metropolitan Borough Council,http://www.sandwell.gov.uk/info/200202/performance_and_spending/1079/payments_over_500,03-Feb-2021,Childrens Services,MOORLANDS PRIMARY SCHOOL                                 01,Childrens Services,945.00,Schools Support Services,2021P11_CR00194,04036544
Sandwell Metropolitan Borough Council,http://www.sandwell.gov.uk/info/200202/performance_and_spending/1079/payments_over_500,03-Feb-2021,Childrens Services,NEWTOWN PRIMARY SCHOOL                                             02,Childrens Services,1305.00,Grant Payments,2021P11_CR00195,61034
Sandwell Metropolitan Borough Council,http://www.sandwell.gov.uk/info/200202/performance_and_spending/1079/payments_over_500,03-Feb-2021,Childrens Services,OAKHAM PRIMARY SCHOOL                                         02,Childrens Services,1020.00,Schools Support Services,2021P11_CR00196,61035
Sandwell Metropolitan Borough Council,http://www.sandwell.gov.uk/info/200202/performance_and_spending/1079/payments_over_500,03-Feb-2021,Childrens Services,OCKER HILL INFANT SCHOOL                                    02,Childrens Services,720.00,Schools Support Services,2021P11_CR00197,61036
Sandwell Metropolitan Borough Council,http://www.sandwell.gov.uk/info/200202/performance_and_spending/1079/payments_over_500,03-Feb-2021,Childrens Services,OLD HILL PRIMARY SCHOOL                                  02,Childrens Services,1200.00,Schools Support Services,2021P11_CR00198,61038
Sandwell Metropolitan Borough Council,http://www.sandwell.gov.uk/info/200202/performance_and_spending/1079/payments_over_500,03-Feb-2021,Childrens Services,OLD PARK PRIMARY SCHOOL                                           02,Childrens Services,1500.00,Schools Support Services,2021P11_CR00199,61039
Sandwell Metropolitan Borough Council,http://www.sandwell.gov.uk/info/200202/performance_and_spending/1079/payments_over_500,03-Feb-2021,Childrens Services,ORCHARD SCHOOL                                                          02,Childrens Services,810.00,Schools Support Services,2021P11_CR00200,60956
Sandwell Metropolitan Borough Council,http://www.sandwell.gov.uk/info/200202/performance_and_spending/1079/payments_over_500,03-Feb-2021,Childrens Services,OUR LADY AND ST HUBERTS CATHOLIC PRIMARY SCHOOL                                      02,Childrens Services,945.00,Grant Payments,2021P11_CR00201,61053
Sandwell Metropolitan Borough Council,http://www.sandwell.gov.uk/info/200202/performance_and_spending/1079/payments_over_500,03-Feb-2021,Childrens Services,PARK HILL PRIMARY SCHOOL                                             02,Childrens Services,765.00,Schools Support Services,2021P11_CR00202,61040
Sandwell Metropolitan Borough Council,http://www.sandwell.gov.uk/info/200202/performance_and_spending/1079/payments_over_500,03-Feb-2021,Childrens Services,PERRYFIELDS HIGH SCHOOL                                             02,Childrens Services,4005.00,Schools Support Services,2021P11_CR00203,60946
Sandwell Metropolitan Borough Council,http://www.sandwell.gov.uk/info/200202/performance_and_spending/1079/payments_over_500,03-Feb-2021,Childrens Services,PERRYFIELDS PRIMARY SCHOOL                                       02,Childrens Services,960.00,Schools Support Services,2021P11_CR00204,61042
Sandwell Metropolitan Borough Council,http://www.sandwell.gov.uk/info/200202/performance_and_spending/1079/payments_over_500,03-Feb-2021,Childrens Services,REDDAL HILL PRIMARY SCHOOL             02,Childrens Services,2250.00,Schools Support Services,2021P11_CR00205,61043
Sandwell Metropolitan Borough Council,http://www.sandwell.gov.uk/info/200202/performance_and_spending/1079/payments_over_500,03-Feb-2021,Childrens Services,ROOD END PRIMARY SCHOOL                                         02,Childrens Services,2550.00,Schools Support Services,2021P11_CR00206,61044
Sandwell Metropolitan Borough Council,http://www.sandwell.gov.uk/info/200202/performance_and_spending/1079/payments_over_500,03-Feb-2021,Childrens Services,ROUNDS GREEN PRIMARY SCHOOL                                         02,Childrens Services,2250.00,Schools Support Services,2021P11_CR00207,61045
Sandwell Metropolitan Borough Council,http://www.sandwell.gov.uk/info/200202/performance_and_spending/1079/payments_over_500,03-Feb-2021,Childrens Services,ROWLEY HALL PRIMARY SCHOOL                             02,Childrens Services,3315.00,Schools Support Services,2021P11_CR00208,61046
Sandwell Metropolitan Borough Council,http://www.sandwell.gov.uk/info/200202/performance_and_spending/1079/payments_over_500,03-Feb-2021,Childrens Services,RYDERS GREEN PRIMARY SCHOOL                                           02,Childrens Services,1620.00,Schools Support Services,2021P11_CR00209,61047
Sandwell Metropolitan Borough Council,http://www.sandwell.gov.uk/info/200202/performance_and_spending/1079/payments_over_500,03-Feb-2021,Childrens Services,SACRED HEART PRIMARY SCHOOL                                             01,Childrens Services,2235.00,Schools Support Services,2021P11_CR00210,61048
Sandwell Metropolitan Borough Council,http://www.sandwell.gov.uk/info/200202/performance_and_spending/1079/payments_over_500,03-Feb-2021,Childrens Services,SANDWELL ACADEMY TRUST LTD.,Childrens Services,3585.00,Grant Payments,2021P11_CR00211,126137
Sandwell Metropolitan Borough Council,http://www.sandwell.gov.uk/info/200202/performance_and_spending/1079/payments_over_500,03-Feb-2021,Childrens Services,SHENSTONE LODGE SCHOOL                                             01,Childrens Services,735.00,Grant Payments,2021P11_CR00212,22995
Sandwell Metropolitan Borough Council,http://www.sandwell.gov.uk/info/200202/performance_and_spending/1079/payments_over_500,03-Feb-2021,Childrens Services,SHIRELAND COLLEGIATE ACADEMY TRUST T/A TAMESIDE,Childrens Services,3930.00,Grant Payments,2021P11_CR00213,61064
Sandwell Metropolitan Borough Council,http://www.sandwell.gov.uk/info/200202/performance_and_spending/1079/payments_over_500,03-Feb-2021,Childrens Services,SPRINGFIELD PRIMARY SCHOOL                                       02,Childrens Services,2010.00,Schools Support Services,2021P11_CR00214,61050
Sandwell Metropolitan Borough Council,http://www.sandwell.gov.uk/info/200202/performance_and_spending/1079/payments_over_500,03-Feb-2021,Childrens Services,ST JAMES C OF E PRIMARY SCHOOL,Childrens Services,2835.00,Schools Support Services,2021P11_CR00215,61054
Sandwell Metropolitan Borough Council,http://www.sandwell.gov.uk/info/200202/performance_and_spending/1079/payments_over_500,03-Feb-2021,Childrens Services,ST JOHN BOSCO RC PRIMARY SCHOOL                             02,Childrens Services,555.00,Schools Support Services,2021P11_CR00216,61055
Sandwell Metropolitan Borough Council,http://www.sandwell.gov.uk/info/200202/performance_and_spending/1079/payments_over_500,03-Feb-2021,Childrens Services,ST MARTINS CE PRIMARY SCHOOL,Childrens Services,570.00,Schools Support Services,2021P11_CR00217,61058
Sandwell Metropolitan Borough Council,http://www.sandwell.gov.uk/info/200202/performance_and_spending/1079/payments_over_500,03-Feb-2021,Childrens Services,ST MARY MAGDALENE CE PRIMARY SCHOOL                                    01,Childrens Services,510.00,Schools Support Services,2021P11_CR00218,61059
Sandwell Metropolitan Borough Council,http://www.sandwell.gov.uk/info/200202/performance_and_spending/1079/payments_over_500,03-Feb-2021,Childrens Services,ST MATTHEWS CE PRIMARY SCHOOL                                             02,Childrens Services,1890.00,Schools Support Services,2021P11_CR00219,61061
Sandwell Metropolitan Borough Council,http://www.sandwell.gov.uk/info/200202/performance_and_spending/1079/payments_over_500,03-Feb-2021,Childrens Services,ST MICHAELS CE HIGH SCHOOL,Childrens Services,5265.00,Schools Support Services,2021P11_CR00220,60948
Sandwell Metropolitan Borough Council,http://www.sandwell.gov.uk/info/200202/performance_and_spending/1079/payments_over_500,03-Feb-2021,Childrens Services,STUART BATHURST CATHOLIC HIGH SCHOOL                  02,Childrens Services,3765.00,Grant Payments,2021P11_CR00221,60949
Sandwell Metropolitan Borough Council,http://www.sandwell.gov.uk/info/200202/performance_and_spending/1079/payments_over_500,03-Feb-2021,Childrens Services,TEMPLE MEADOW PRIMARY SCHOOL                                 02,Childrens Services,2010.00,Schools Support Services,2021P11_CR00222,61065
Sandwell Metropolitan Borough Council,http://www.sandwell.gov.uk/info/200202/performance_and_spending/1079/payments_over_500,03-Feb-2021,Childrens Services,TIMBERTREE (ACADEMY) PRIMARY SCHOOL,Childrens Services,930.00,Grant Payments,2021P11_CR00223,112804
Sandwell Metropolitan Borough Council,http://www.sandwell.gov.uk/info/200202/performance_and_spending/1079/payments_over_500,03-Feb-2021,Childrens Services,TIPTON GREEN JUNIOR SCHOOL,Childrens Services,1920.00,Schools Support Services,2021P11_CR00224,61068
Sandwell Metropolitan Borough Council,http://www.sandwell.gov.uk/info/200202/performance_and_spending/1079/payments_over_500,03-Feb-2021,Childrens Services,TIVIDALE HALL PRIMARY SCHOOL                                     02,Childrens Services,1380.00,Schools Support Services,2021P11_CR00225,61070
Sandwell Metropolitan Borough Council,http://www.sandwell.gov.uk/info/200202/performance_and_spending/1079/payments_over_500,03-Feb-2021,Childrens Services,WESTMINSTER SCHOOL                              02,Childrens Services,1410.00,Schools Support Services,2021P11_CR00226,60957
Sandwell Metropolitan Borough Council,http://www.sandwell.gov.uk/info/200202/performance_and_spending/1079/payments_over_500,03-Feb-2021,Childrens Services,WOOD GREEN JUNIOR SCHOOL                                       02,Childrens Services,1455.00,Schools Support Services,2021P11_CR00227,61076
Sandwell Metropolitan Borough Council,http://www.sandwell.gov.uk/info/200202/performance_and_spending/1079/payments_over_500,10-Feb-2021,Childrens Services,REDACTED PERSONAL DATA,Childrens Services,545.45,External Contract Hire,2021P11_CR00228,REDACTED PERSONAL DATA
Sandwell Metropolitan Borough Council,http://www.sandwell.gov.uk/info/200202/performance_and_spending/1079/payments_over_500,10-Feb-2021,Childrens Services,REDACTED PERSONAL DATA,Childrens Services,545.45,External Contract Hire,2021P11_CR00229,REDACTED PERSONAL DATA
Sandwell Metropolitan Borough Council,http://www.sandwell.gov.uk/info/200202/performance_and_spending/1079/payments_over_500,10-Feb-2021,Childrens Services,REDACTED PERSONAL DATA,Childrens Services,727.28,External Contract Hire,2021P11_CR00230,REDACTED PERSONAL DATA
Sandwell Metropolitan Borough Council,http://www.sandwell.gov.uk/info/200202/performance_and_spending/1079/payments_over_500,10-Feb-2021,Childrens Services,REDACTED PERSONAL DATA,Childrens Services,727.27,External Contract Hire,2021P11_CR00231,REDACTED PERSONAL DATA
Sandwell Metropolitan Borough Council,http://www.sandwell.gov.uk/info/200202/performance_and_spending/1079/payments_over_500,10-Feb-2021,Childrens Services,REDACTED PERSONAL DATA,Childrens Services,727.28,External Contract Hire,2021P11_CR00232,REDACTED PERSONAL DATA
Sandwell Metropolitan Borough Council,http://www.sandwell.gov.uk/info/200202/performance_and_spending/1079/payments_over_500,10-Feb-2021,Childrens Services,REDACTED PERSONAL DATA,Childrens Services,545.45,External Contract Hire,2021P11_CR00233,REDACTED PERSONAL DATA
Sandwell Metropolitan Borough Council,http://www.sandwell.gov.uk/info/200202/performance_and_spending/1079/payments_over_500,10-Feb-2021,Childrens Services,REDACTED PERSONAL DATA,Childrens Services,727.27,External Contract Hire,2021P11_CR00234,REDACTED PERSONAL DATA
Sandwell Metropolitan Borough Council,http://www.sandwell.gov.uk/info/200202/performance_and_spending/1079/payments_over_500,10-Feb-2021,Childrens Services,REDACTED PERSONAL DATA,Childrens Services,545.45,External Contract Hire,2021P11_CR00235,REDACTED PERSONAL DATA
Sandwell Metropolitan Borough Council,http://www.sandwell.gov.uk/info/200202/performance_and_spending/1079/payments_over_500,10-Feb-2021,Childrens Services,REDACTED PERSONAL DATA,Childrens Services,545.45,External Contract Hire,2021P11_CR00236,REDACTED PERSONAL DATA
Sandwell Metropolitan Borough Council,http://www.sandwell.gov.uk/info/200202/performance_and_spending/1079/payments_over_500,10-Feb-2021,Childrens Services,REDACTED PERSONAL DATA,Childrens Services,545.45,External Contract Hire,2021P11_CR00237,REDACTED PERSONAL DATA
Sandwell Metropolitan Borough Council,http://www.sandwell.gov.uk/info/200202/performance_and_spending/1079/payments_over_500,10-Feb-2021,Childrens Services,REDACTED PERSONAL DATA,Childrens Services,1090.90,External Contract Hire,2021P11_CR00238,REDACTED PERSONAL DATA
Sandwell Metropolitan Borough Council,http://www.sandwell.gov.uk/info/200202/performance_and_spending/1079/payments_over_500,10-Feb-2021,Childrens Services,REDACTED PERSONAL DATA,Childrens Services,545.45,External Contract Hire,2021P11_CR00239,REDACTED PERSONAL DATA
Sandwell Metropolitan Borough Council,http://www.sandwell.gov.uk/info/200202/performance_and_spending/1079/payments_over_500,10-Feb-2021,Childrens Services,REDACTED PERSONAL DATA,Childrens Services,545.45,External Contract Hire,2021P11_CR00240,REDACTED PERSONAL DATA
Sandwell Metropolitan Borough Council,http://www.sandwell.gov.uk/info/200202/performance_and_spending/1079/payments_over_500,10-Feb-2021,Childrens Services,REDACTED PERSONAL DATA,Childrens Services,727.27,External Contract Hire,2021P11_CR00241,REDACTED PERSONAL DATA
Sandwell Metropolitan Borough Council,http://www.sandwell.gov.uk/info/200202/performance_and_spending/1079/payments_over_500,10-Feb-2021,Childrens Services,REDACTED PERSONAL DATA,Childrens Services,727.27,External Contract Hire,2021P11_CR00242,REDACTED PERSONAL DATA
Sandwell Metropolitan Borough Council,http://www.sandwell.gov.uk/info/200202/performance_and_spending/1079/payments_over_500,10-Feb-2021,Childrens Services,REDACTED PERSONAL DATA,Childrens Services,545.45,External Contract Hire,2021P11_CR00243,REDACTED PERSONAL DATA
Sandwell Metropolitan Borough Council,http://www.sandwell.gov.uk/info/200202/performance_and_spending/1079/payments_over_500,10-Feb-2021,Childrens Services,REDACTED PERSONAL DATA,Childrens Services,727.27,External Contract Hire,2021P11_CR00244,REDACTED PERSONAL DATA
Sandwell Metropolitan Borough Council,http://www.sandwell.gov.uk/info/200202/performance_and_spending/1079/payments_over_500,10-Feb-2021,Childrens Services,REDACTED PERSONAL DATA,Childrens Services,545.45,External Contract Hire,2021P11_CR00245,REDACTED PERSONAL DATA
Sandwell Metropolitan Borough Council,http://www.sandwell.gov.uk/info/200202/performance_and_spending/1079/payments_over_500,10-Feb-2021,Childrens Services,REDACTED PERSONAL DATA,Childrens Services,545.45,External Contract Hire,2021P11_CR00246,REDACTED PERSONAL DATA
Sandwell Metropolitan Borough Council,http://www.sandwell.gov.uk/info/200202/performance_and_spending/1079/payments_over_500,10-Feb-2021,Childrens Services,REDACTED PERSONAL DATA,Childrens Services,727.27,External Contract Hire,2021P11_CR00247,REDACTED PERSONAL DATA
Sandwell Metropolitan Borough Council,http://www.sandwell.gov.uk/info/200202/performance_and_spending/1079/payments_over_500,10-Feb-2021,Childrens Services,REDACTED PERSONAL DATA,Childrens Services,727.27,External Contract Hire,2021P11_CR00248,REDACTED PERSONAL DATA
Sandwell Metropolitan Borough Council,http://www.sandwell.gov.uk/info/200202/performance_and_spending/1079/payments_over_500,10-Feb-2021,Childrens Services,REDACTED PERSONAL DATA,Childrens Services,909.09,External Contract Hire,2021P11_CR00249,REDACTED PERSONAL DATA
Sandwell Metropolitan Borough Council,http://www.sandwell.gov.uk/info/200202/performance_and_spending/1079/payments_over_500,10-Feb-2021,Childrens Services,REDACTED PERSONAL DATA,Childrens Services,545.45,External Contract Hire,2021P11_CR00250,REDACTED PERSONAL DATA
Sandwell Metropolitan Borough Council,http://www.sandwell.gov.uk/info/200202/performance_and_spending/1079/payments_over_500,10-Feb-2021,Childrens Services,REDACTED PERSONAL DATA,Childrens Services,727.27,External Contract Hire,2021P11_CR00251,REDACTED PERSONAL DATA
Sandwell Metropolitan Borough Council,http://www.sandwell.gov.uk/info/200202/performance_and_spending/1079/payments_over_500,10-Feb-2021,Childrens Services,REDACTED PERSONAL DATA,Childrens Services,545.45,External Contract Hire,2021P11_CR00252,REDACTED PERSONAL DATA
Sandwell Metropolitan Borough Council,http://www.sandwell.gov.uk/info/200202/performance_and_spending/1079/payments_over_500,10-Feb-2021,Childrens Services,REDACTED PERSONAL DATA,Childrens Services,545.45,External Contract Hire,2021P11_CR00253,REDACTED PERSONAL DATA
Sandwell Metropolitan Borough Council,http://www.sandwell.gov.uk/info/200202/performance_and_spending/1079/payments_over_500,10-Feb-2021,Childrens Services,REDACTED PERSONAL DATA,Childrens Services,545.45,External Contract Hire,2021P11_CR00254,REDACTED PERSONAL DATA
Sandwell Metropolitan Borough Council,http://www.sandwell.gov.uk/info/200202/performance_and_spending/1079/payments_over_500,10-Feb-2021,Childrens Services,REDACTED PERSONAL DATA,Childrens Services,727.28,External Contract Hire,2021P11_CR00255,REDACTED PERSONAL DATA
Sandwell Metropolitan Borough Council,http://www.sandwell.gov.uk/info/200202/performance_and_spending/1079/payments_over_500,10-Feb-2021,Childrens Services,REDACTED PERSONAL DATA,Childrens Services,800.00,External Contract Hire,2021P11_CR00256,REDACTED PERSONAL DATA
Sandwell Metropolitan Borough Council,http://www.sandwell.gov.uk/info/200202/performance_and_spending/1079/payments_over_500,10-Feb-2021,Childrens Services,REDACTED PERSONAL DATA,Childrens Services,727.27,External Contract Hire,2021P11_CR00257,REDACTED PERSONAL DATA
Sandwell Metropolitan Borough Council,http://www.sandwell.gov.uk/info/200202/performance_and_spending/1079/payments_over_500,10-Feb-2021,Childrens Services,REDACTED PERSONAL DATA,Childrens Services,545.45,External Contract Hire,2021P11_CR00258,REDACTED PERSONAL DATA
Sandwell Metropolitan Borough Council,http://www.sandwell.gov.uk/info/200202/performance_and_spending/1079/payments_over_500,10-Feb-2021,Childrens Services,REDACTED PERSONAL DATA,Childrens Services,727.28,External Contract Hire,2021P11_CR00259,REDACTED PERSONAL DATA
Sandwell Metropolitan Borough Council,http://www.sandwell.gov.uk/info/200202/performance_and_spending/1079/payments_over_500,10-Feb-2021,Childrens Services,REDACTED PERSONAL DATA,Childrens Services,727.27,External Contract Hire,2021P11_CR00260,REDACTED PERSONAL DATA
Sandwell Metropolitan Borough Council,http://www.sandwell.gov.uk/info/200202/performance_and_spending/1079/payments_over_500,10-Feb-2021,Childrens Services,REDACTED PERSONAL DATA,Childrens Services,727.27,External Contract Hire,2021P11_CR00261,REDACTED PERSONAL DATA
Sandwell Metropolitan Borough Council,http://www.sandwell.gov.uk/info/200202/performance_and_spending/1079/payments_over_500,10-Feb-2021,Childrens Services,REDACTED PERSONAL DATA,Childrens Services,545.45,External Contract Hire,2021P11_CR00262,REDACTED PERSONAL DATA
Sandwell Metropolitan Borough Council,http://www.sandwell.gov.uk/info/200202/performance_and_spending/1079/payments_over_500,10-Feb-2021,Childrens Services,REDACTED PERSONAL DATA,Childrens Services,727.27,External Contract Hire,2021P11_CR00263,REDACTED PERSONAL DATA
Sandwell Metropolitan Borough Council,http://www.sandwell.gov.uk/info/200202/performance_and_spending/1079/payments_over_500,10-Feb-2021,Childrens Services,REDACTED PERSONAL DATA,Childrens Services,727.27,External Contract Hire,2021P11_CR00264,REDACTED PERSONAL DATA
Sandwell Metropolitan Borough Council,http://www.sandwell.gov.uk/info/200202/performance_and_spending/1079/payments_over_500,10-Feb-2021,Childrens Services,REDACTED PERSONAL DATA,Childrens Services,727.27,External Contract Hire,2021P11_CR00265,REDACTED PERSONAL DATA
Sandwell Metropolitan Borough Council,http://www.sandwell.gov.uk/info/200202/performance_and_spending/1079/payments_over_500,10-Feb-2021,Childrens Services,REDACTED PERSONAL DATA,Childrens Services,727.27,External Contract Hire,2021P11_CR00266,REDACTED PERSONAL DATA
Sandwell Metropolitan Borough Council,http://www.sandwell.gov.uk/info/200202/performance_and_spending/1079/payments_over_500,10-Feb-2021,Childrens Services,REDACTED PERSONAL DATA,Childrens Services,545.45,External Contract Hire,2021P11_CR00267,REDACTED PERSONAL DATA
Sandwell Metropolitan Borough Council,http://www.sandwell.gov.uk/info/200202/performance_and_spending/1079/payments_over_500,10-Feb-2021,Childrens Services,REDACTED PERSONAL DATA,Childrens Services,727.27,External Contract Hire,2021P11_CR00268,REDACTED PERSONAL DATA
Sandwell Metropolitan Borough Council,http://www.sandwell.gov.uk/info/200202/performance_and_spending/1079/payments_over_500,10-Feb-2021,Childrens Services,REDACTED PERSONAL DATA,Childrens Services,727.27,External Contract Hire,2021P11_CR00269,REDACTED PERSONAL DATA
Sandwell Metropolitan Borough Council,http://www.sandwell.gov.uk/info/200202/performance_and_spending/1079/payments_over_500,10-Feb-2021,Childrens Services,REDACTED PERSONAL DATA ,Childrens Services,545.45,External Contract Hire,2021P11_CR00270,REDACTED PERSONAL DATA
Sandwell Metropolitan Borough Council,http://www.sandwell.gov.uk/info/200202/performance_and_spending/1079/payments_over_500,07-Feb-2021,Childrens Services Capital,NORTHERN KILNS LTD,Childrens Services Capital,5559.21,"CIP - New Construction,Conversion, Enhancement & Reno",2021P11_CR00271,150052
Sandwell Metropolitan Borough Council,http://www.sandwell.gov.uk/info/200202/performance_and_spending/1079/payments_over_500,01-Feb-2021,Childrens Services Capital,REDACTED PERSONAL DATA,Childrens Services Capital,562.50,"CIP - New Construction,Conversion, Enhancement & Reno",2021P11_CR00272,REDACTED PERSONAL DATA
Sandwell Metropolitan Borough Council,http://www.sandwell.gov.uk/info/200202/performance_and_spending/1079/payments_over_500,01-Feb-2021,Childrens Services Capital,SOUND INNOVATIONS LTD,Childrens Services Capital,9950.00,"CIP - New Construction,Conversion, Enhancement & Reno",2021P11_CR00273,148893
Sandwell Metropolitan Borough Council,http://www.sandwell.gov.uk/info/200202/performance_and_spending/1079/payments_over_500,01-Feb-2021,Childrens Services Capital,WILLMOTT DIXON CONSTRUCTION LIMITED,Childrens Services Capital,317656.24,"CIP - New Construction,Conversion, Enhancement & Reno",2021P11_CR00274,34081
Sandwell Metropolitan Borough Council,http://www.sandwell.gov.uk/info/200202/performance_and_spending/1079/payments_over_500,01-Feb-2021,Childrens Services Capital,WILLMOTT DIXON CONSTRUCTION LIMITED,Childrens Services Capital,690252.88,"CIP - New Construction,Conversion, Enhancement & Reno",2021P11_CR00275,34081
Sandwell Metropolitan Borough Council,http://www.sandwell.gov.uk/info/200202/performance_and_spending/1079/payments_over_500,01-Feb-2021,Childrens Services Capital,WILLMOTT DIXON CONSTRUCTION LIMITED,Childrens Services Capital,729253.90,"CIP - New Construction,Conversion, Enhancement & Reno",2021P11_CR00276,34081
Sandwell Metropolitan Borough Council,http://www.sandwell.gov.uk/info/200202/performance_and_spending/1079/payments_over_500,01-Feb-2021,Housing & Communities,ASKEWS AND HOLTS LIBRARY SERVICES LTD.,Neighbourhoods,538.47,Materials & Consumables,2021P11_CR00277,111865
Sandwell Metropolitan Borough Council,http://www.sandwell.gov.uk/info/200202/performance_and_spending/1079/payments_over_500,01-Feb-2021,Housing & Communities,ASKEWS AND HOLTS LIBRARY SERVICES LTD.,Neighbourhoods,682.04,Materials & Consumables,2021P11_CR00278,111865
Sandwell Metropolitan Borough Council,http://www.sandwell.gov.uk/info/200202/performance_and_spending/1079/payments_over_500,01-Feb-2021,Housing & Communities,ACCESSHIRE NATIONWIDE,Neighbourhoods,1062.00,Vehicle Hiring Charges,2021P11_CR00279,123955
Sandwell Metropolitan Borough Council,http://www.sandwell.gov.uk/info/200202/performance_and_spending/1079/payments_over_500,01-Feb-2021,Housing & Communities,ACCESSHIRE NATIONWIDE,Neighbourhoods,1180.00,Vehicle Hiring Charges,2021P11_CR00280,123955
Sandwell Metropolitan Borough Council,http://www.sandwell.gov.uk/info/200202/performance_and_spending/1079/payments_over_500,01-Feb-2021,Housing & Communities,DAYS RENTAL,Neighbourhoods,579.60,Vehicle Hiring Charges,2021P11_CR00281,128169
Sandwell Metropolitan Borough Council,http://www.sandwell.gov.uk/info/200202/performance_and_spending/1079/payments_over_500,01-Feb-2021,Housing & Communities,DAYS RENTAL,Neighbourhoods,579.60,Vehicle Hiring Charges,2021P11_CR00282,128169
Sandwell Metropolitan Borough Council,http://www.sandwell.gov.uk/info/200202/performance_and_spending/1079/payments_over_500,01-Feb-2021,Housing & Communities,DAYS RENTAL,Neighbourhoods,687.56,Vehicle Hiring Charges,2021P11_CR00283,128169
Sandwell Metropolitan Borough Council,http://www.sandwell.gov.uk/info/200202/performance_and_spending/1079/payments_over_500,11-Feb-2021,Housing & Communities,MARSHALL PEUGEOT PETERBOROUGH,Neighbourhoods,19749.50,Licences & Test Fees,2021P11_CR00284,147845
Sandwell Metropolitan Borough Council,http://www.sandwell.gov.uk/info/200202/performance_and_spending/1079/payments_over_500,01-Feb-2021,Housing & Communities,MARSHALL PEUGEOT PETERBOROUGH,Neighbourhoods,19749.50,Licences & Test Fees,2021P11_CR00285,147845
Sandwell Metropolitan Borough Council,http://www.sandwell.gov.uk/info/200202/performance_and_spending/1079/payments_over_500,11-Feb-2021,Housing & Communities,MARSHALL PEUGEOT PETERBOROUGH,Neighbourhoods,20805.50,Licences & Test Fees,2021P11_CR00286,147845
Sandwell Metropolitan Borough Council,http://www.sandwell.gov.uk/info/200202/performance_and_spending/1079/payments_over_500,11-Feb-2021,Housing & Communities,MARSHALL PEUGEOT PETERBOROUGH,Neighbourhoods,20805.50,Licences & Test Fees,2021P11_CR00287,147845
Sandwell Metropolitan Borough Council,http://www.sandwell.gov.uk/info/200202/performance_and_spending/1079/payments_over_500,11-Feb-2021,Housing & Communities,MARSHALL PEUGEOT PETERBOROUGH,Neighbourhoods,20805.50,Licences & Test Fees,2021P11_CR00288,147845
Sandwell Metropolitan Borough Council,http://www.sandwell.gov.uk/info/200202/performance_and_spending/1079/payments_over_500,11-Feb-2021,Housing & Communities,MARSHALL PEUGEOT PETERBOROUGH,Neighbourhoods,20805.50,Licences & Test Fees,2021P11_CR00289,147845
Sandwell Metropolitan Borough Council,http://www.sandwell.gov.uk/info/200202/performance_and_spending/1079/payments_over_500,01-Feb-2021,Housing & Communities,MARSHALL PEUGEOT PETERBOROUGH,Neighbourhoods,20922.50,Licences & Test Fees,2021P11_CR00290,147845
Sandwell Metropolitan Borough Council,http://www.sandwell.gov.uk/info/200202/performance_and_spending/1079/payments_over_500,01-Feb-2021,Housing & Communities,PHS BESAFE,Neighbourhoods,972.26,Protective Clothing & Uniforms,2021P11_CR00291,124613
Sandwell Metropolitan Borough Council,http://www.sandwell.gov.uk/info/200202/performance_and_spending/1079/payments_over_500,01-Feb-2021,Housing & Communities,PUGH'S PLANT HIRE,Neighbourhoods,600.00,Vehicle Hiring Charges,2021P11_CR00292,147204
Sandwell Metropolitan Borough Council,http://www.sandwell.gov.uk/info/200202/performance_and_spending/1079/payments_over_500,01-Feb-2021,Housing & Communities,PUGH'S PLANT HIRE,Neighbourhoods,600.00,Vehicle Hiring Charges,2021P11_CR00293,147204
Sandwell Metropolitan Borough Council,http://www.sandwell.gov.uk/info/200202/performance_and_spending/1079/payments_over_500,10-Feb-2021,Housing & Communities,AUTO STYLING U.K. LIMITED,Neighbourhoods,1045.46,Fire Service Workshops,2021P11_CR00294,90312
Sandwell Metropolitan Borough Council,http://www.sandwell.gov.uk/info/200202/performance_and_spending/1079/payments_over_500,10-Feb-2021,Housing & Communities,BOB RICHARDSON TOOLS & FASTENERS LTD,Neighbourhoods,731.07,Fire Service Workshops,2021P11_CR00295,01082705
Sandwell Metropolitan Borough Council,http://www.sandwell.gov.uk/info/200202/performance_and_spending/1079/payments_over_500,24-Feb-2021,Housing & Communities,BUCHER MUNICIPAL LTD,Neighbourhoods,662.40,Fire Service Workshops,2021P11_CR00296,01053625
Sandwell Metropolitan Borough Council,http://www.sandwell.gov.uk/info/200202/performance_and_spending/1079/payments_over_500,15-Feb-2021,Housing & Communities,BUCHER MUNICIPAL LTD,Neighbourhoods,721.44,Fire Service Workshops,2021P11_CR00297,01053625
Sandwell Metropolitan Borough Council,http://www.sandwell.gov.uk/info/200202/performance_and_spending/1079/payments_over_500,11-Feb-2021,Housing & Communities,CATHEDRAL MOTOR COMPANY LIMITED (T/A ARBURY FLEET),Neighbourhoods,509.66,Fire Service Workshops,2021P11_CR00298,123099
Sandwell Metropolitan Borough Council,http://www.sandwell.gov.uk/info/200202/performance_and_spending/1079/payments_over_500,15-Feb-2021,Housing & Communities,DENNIS EAGLE LTD,Neighbourhoods,697.27,Fire Service Workshops,2021P11_CR00299,01004865
Sandwell Metropolitan Borough Council,http://www.sandwell.gov.uk/info/200202/performance_and_spending/1079/payments_over_500,17-Feb-2021,Housing & Communities,DENNIS EAGLE LTD,Neighbourhoods,719.21,Fire Service Workshops,2021P11_CR00300,01004865
Sandwell Metropolitan Borough Council,http://www.sandwell.gov.uk/info/200202/performance_and_spending/1079/payments_over_500,16-Feb-2021,Housing & Communities,DENNIS EAGLE LTD,Neighbourhoods,821.10,Fire Service Workshops,2021P11_CR00301,01004865
Sandwell Metropolitan Borough Council,http://www.sandwell.gov.uk/info/200202/performance_and_spending/1079/payments_over_500,23-Feb-2021,Housing & Communities,EURO CAR PARTS LIMITED,Neighbourhoods,1050.33,Fire Service Workshops,2021P11_CR00302,01785822
Sandwell Metropolitan Borough Council,http://www.sandwell.gov.uk/info/200202/performance_and_spending/1079/payments_over_500,19-Feb-2021,Housing & Communities,FUCHS LUBRICANTS (UK) LTD,Neighbourhoods,600.65,Fire Service Workshops,2021P11_CR00303,130133
Sandwell Metropolitan Borough Council,http://www.sandwell.gov.uk/info/200202/performance_and_spending/1079/payments_over_500,05-Feb-2021,Housing & Communities,GEESINK NORBA LTD,Neighbourhoods,1759.62,Fire Service Workshops,2021P11_CR00304,102799
Sandwell Metropolitan Borough Council,http://www.sandwell.gov.uk/info/200202/performance_and_spending/1079/payments_over_500,04-Feb-2021,Housing & Communities,H L SMITH (TRANSMISSIONS) LTD,Neighbourhoods,640.00,Fire Service Workshops,2021P11_CR00305,01032886
Sandwell Metropolitan Borough Council,http://www.sandwell.gov.uk/info/200202/performance_and_spending/1079/payments_over_500,01-Feb-2021,Housing & Communities,HARTSHORNE MOTOR SERVICES LTD                                   01,Neighbourhoods,1171.41,Fire Service Workshops,2021P11_CR00306,01508668
Sandwell Metropolitan Borough Council,http://www.sandwell.gov.uk/info/200202/performance_and_spending/1079/payments_over_500,01-Feb-2021,Housing & Communities,HARTSHORNE MOTOR SERVICES LTD                                   01,Neighbourhoods,3252.65,Fire Service Workshops,2021P11_CR00307,01508668
Sandwell Metropolitan Borough Council,http://www.sandwell.gov.uk/info/200202/performance_and_spending/1079/payments_over_500,01-Feb-2021,Housing & Communities,JAMES LISTER & SONS LTD,Neighbourhoods,501.08,Fire Service Workshops,2021P11_CR00308,01021821
Sandwell Metropolitan Borough Council,http://www.sandwell.gov.uk/info/200202/performance_and_spending/1079/payments_over_500,01-Feb-2021,Housing & Communities,JAMES LISTER & SONS LTD,Neighbourhoods,701.32,Fire Service Workshops,2021P11_CR00309,01021821
Sandwell Metropolitan Borough Council,http://www.sandwell.gov.uk/info/200202/performance_and_spending/1079/payments_over_500,01-Feb-2021,Housing & Communities,JAMES LISTER & SONS LTD,Neighbourhoods,842.60,Fire Service Workshops,2021P11_CR00310,01021821
Sandwell Metropolitan Borough Council,http://www.sandwell.gov.uk/info/200202/performance_and_spending/1079/payments_over_500,16-Feb-2021,Housing & Communities,MIDLAND TRUCK & VAN LTD,Neighbourhoods,779.40,Fire Service Workshops,2021P11_CR00311,128784
Sandwell Metropolitan Borough Council,http://www.sandwell.gov.uk/info/200202/performance_and_spending/1079/payments_over_500,01-Feb-2021,Housing & Communities,NORTHGATE VEHICLE HIRE (WEST MIDLANDS) LTD,Neighbourhoods,531.03,Vehicle Hiring Charges,2021P11_CR00312,01057676
Sandwell Metropolitan Borough Council,http://www.sandwell.gov.uk/info/200202/performance_and_spending/1079/payments_over_500,01-Feb-2021,Housing & Communities,NORTHGATE VEHICLE HIRE (WEST MIDLANDS) LTD,Neighbourhoods,531.03,Vehicle Hiring Charges,2021P11_CR00313,01057676
Sandwell Metropolitan Borough Council,http://www.sandwell.gov.uk/info/200202/performance_and_spending/1079/payments_over_500,02-Feb-2021,Housing & Communities,RYGOR COMMERCIALS LTD,Neighbourhoods,829.44,Fire Service Workshops,2021P11_CR00314,3345
Sandwell Metropolitan Borough Council,http://www.sandwell.gov.uk/info/200202/performance_and_spending/1079/payments_over_500,22-Feb-2021,Housing & Communities,TAYLOR ENGINEERING & FABRICATIONS LTD,Neighbourhoods,519.67,Fire Service Workshops,2021P11_CR00315,87793
Sandwell Metropolitan Borough Council,http://www.sandwell.gov.uk/info/200202/performance_and_spending/1079/payments_over_500,25-Feb-2021,Housing & Communities,TAYLOR ENGINEERING & FABRICATIONS LTD,Neighbourhoods,555.46,Fire Service Workshops,2021P11_CR00316,87793
Sandwell Metropolitan Borough Council,http://www.sandwell.gov.uk/info/200202/performance_and_spending/1079/payments_over_500,23-Feb-2021,Housing & Communities,TAYLOR ENGINEERING & FABRICATIONS LTD,Neighbourhoods,1402.53,Fire Service Workshops,2021P11_CR00317,87793
Sandwell Metropolitan Borough Council,http://www.sandwell.gov.uk/info/200202/performance_and_spending/1079/payments_over_500,04-Feb-2021,Housing & Communities,TERBERG MATEC UK LTD,Neighbourhoods,628.80,Fire Service Workshops,2021P11_CR00318,21235
Sandwell Metropolitan Borough Council,http://www.sandwell.gov.uk/info/200202/performance_and_spending/1079/payments_over_500,15-Feb-2021,Housing & Communities,TERBERG MATEC UK LTD,Neighbourhoods,1703.53,Fire Service Workshops,2021P11_CR00319,21235
Sandwell Metropolitan Borough Council,http://www.sandwell.gov.uk/info/200202/performance_and_spending/1079/payments_over_500,18-Feb-2021,Housing & Communities,TERBERG MATEC UK LTD,Neighbourhoods,4006.50,Fire Service Workshops,2021P11_CR00320,21235
Sandwell Metropolitan Borough Council,http://www.sandwell.gov.uk/info/200202/performance_and_spending/1079/payments_over_500,18-Feb-2021,Housing & Communities,TH WHITE LIMITED,Neighbourhoods,532.12,Fire Service Workshops,2021P11_CR00321,01774713
Sandwell Metropolitan Borough Council,http://www.sandwell.gov.uk/info/200202/performance_and_spending/1079/payments_over_500,03-Feb-2021,Housing & Communities,TH WHITE LIMITED,Neighbourhoods,831.72,Fire Service Workshops,2021P11_CR00322,01774713
Sandwell Metropolitan Borough Council,http://www.sandwell.gov.uk/info/200202/performance_and_spending/1079/payments_over_500,01-Feb-2021,Housing & Communities,TH WHITE LIMITED,Neighbourhoods,1779.76,Fire Service Workshops,2021P11_CR00323,01774713
Sandwell Metropolitan Borough Council,http://www.sandwell.gov.uk/info/200202/performance_and_spending/1079/payments_over_500,08-Feb-2021,Housing & Communities,TH WHITE LIMITED,Neighbourhoods,637.16,Repairs & Maintenance,2021P11_CR00324,01774713
Sandwell Metropolitan Borough Council,http://www.sandwell.gov.uk/info/200202/performance_and_spending/1079/payments_over_500,01-Feb-2021,Housing & Communities,ARCHIVES WEST MIDLANDS,Neighbourhoods,500.00,Subscriptions,2021P11_CR00325,134908
Sandwell Metropolitan Borough Council,http://www.sandwell.gov.uk/info/200202/performance_and_spending/1079/payments_over_500,02-Feb-2021,Housing & Communities,BIG CITY BANNERS & SIGNS,Housing & Communities,811.72,Advertising & Publicity,2021P11_CR00326,99657
Sandwell Metropolitan Borough Council,http://www.sandwell.gov.uk/info/200202/performance_and_spending/1079/payments_over_500,10-Feb-2021,Housing & Communities,BLACK MOUNTAIN REINDEERS,Neighbourhoods,590.00,Externally Purchased Professional Services ,2021P11_CR00327,141279
Sandwell Metropolitan Borough Council,http://www.sandwell.gov.uk/info/200202/performance_and_spending/1079/payments_over_500,01-Feb-2021,Housing & Communities,ELIZABETH OXB ORROW-COWAN ASSOCIATES,Neighbourhoods,5826.40,Externally Purchased Professional Services ,2021P11_CR00328,146696
Sandwell Metropolitan Borough Council,http://www.sandwell.gov.uk/info/200202/performance_and_spending/1079/payments_over_500,17-Feb-2021,Housing & Communities,FOCUS ECOLOGY,Neighbourhoods,1585.00,Consultancy,2021P11_CR00329,135877
Sandwell Metropolitan Borough Council,http://www.sandwell.gov.uk/info/200202/performance_and_spending/1079/payments_over_500,22-Feb-2021,Housing & Communities,HOARE LEA LLP,Neighbourhoods,3550.00,Consultancy,2021P11_CR00330,137607
Sandwell Metropolitan Borough Council,http://www.sandwell.gov.uk/info/200202/performance_and_spending/1079/payments_over_500,01-Feb-2021,Housing & Communities,INFAMOUS COMMUNITY ARTS,Neighbourhoods,14700.00,Civic Events,2021P11_CR00331,102940
Sandwell Metropolitan Borough Council,http://www.sandwell.gov.uk/info/200202/performance_and_spending/1079/payments_over_500,18-Feb-2021,Housing & Communities,POST OFFICE COUNTERS,Neighbourhoods,11038.50,Licences & Test Fees,2021P11_CR00332,102580
Sandwell Metropolitan Borough Council,http://www.sandwell.gov.uk/info/200202/performance_and_spending/1079/payments_over_500,10-Feb-2021,Housing & Communities,SANDWELL & WEST BIRMINGHAM HOSPITALS NHS TRUST,Neighbourhoods,7375.00,Grant Payments,2021P11_CR00333,1385
Sandwell Metropolitan Borough Council,http://www.sandwell.gov.uk/info/200202/performance_and_spending/1079/payments_over_500,16-Feb-2021,Housing & Communities,SANDWELL & WEST BIRMINGHAM HOSPITALS NHS TRUST,Neighbourhoods,15595.59,Waste Disposal Charges,2021P11_CR00334,1385
Sandwell Metropolitan Borough Council,http://www.sandwell.gov.uk/info/200202/performance_and_spending/1079/payments_over_500,17-Feb-2021,Housing & Communities,SANDWELL LEISURE TRUST,Neighbourhoods,1804.38,SH Payments,2021P11_CR00335,23305
Sandwell Metropolitan Borough Council,http://www.sandwell.gov.uk/info/200202/performance_and_spending/1079/payments_over_500,01-Feb-2021,Housing & Communities,SHARP,Neighbourhoods,5644.00,Rents,2021P11_CR00336,08280972
Sandwell Metropolitan Borough Council,http://www.sandwell.gov.uk/info/200202/performance_and_spending/1079/payments_over_500,01-Feb-2021,Housing & Communities,SHARP,Neighbourhoods,14246.00,Rents,2021P11_CR00337,08280972
Sandwell Metropolitan Borough Council,http://www.sandwell.gov.uk/info/200202/performance_and_spending/1079/payments_over_500,12-Feb-2021,Housing & Communities,STAFFORDSHIRE COUNTY COUNCIL,Neighbourhoods,362489.00,Waste Disposal Charges,2021P11_CR00338,01124861
Sandwell Metropolitan Borough Council,http://www.sandwell.gov.uk/info/200202/performance_and_spending/1079/payments_over_500,04-Feb-2021,Housing & Communities,TUDOR ENVIRONMENTAL,Neighbourhoods,625.20,Equipment & Furniture ,2021P11_CR00339,01528713
Sandwell Metropolitan Borough Council,http://www.sandwell.gov.uk/info/200202/performance_and_spending/1079/payments_over_500,01-Feb-2021,Housing & Communities,WINDOW ARTISTS,Neighbourhoods,800.00,Rents & Accomodation Charges,2021P11_CR00340,149499
Sandwell Metropolitan Borough Council,http://www.sandwell.gov.uk/info/200202/performance_and_spending/1079/payments_over_500,01-Feb-2021,Housing & Communities,ZAUN LTD,Neighbourhoods,1717.13,Equipment & Furniture ,2021P11_CR00341,21373
Sandwell Metropolitan Borough Council,http://www.sandwell.gov.uk/info/200202/performance_and_spending/1079/payments_over_500,17-Feb-2021,Housing & Communities,AECOM INFRASTRUCTURE & ENVIRONMENT UK LIMITED,Neighbourhoods,519.36,Consultancy,2021P11_CR00342,107299
Sandwell Metropolitan Borough Council,http://www.sandwell.gov.uk/info/200202/performance_and_spending/1079/payments_over_500,18-Feb-2021,Housing & Communities,ANYWHERE CARE LIMITED,Neighbourhoods,1500.00,Telephones,2021P11_CR00343,132781
Sandwell Metropolitan Borough Council,http://www.sandwell.gov.uk/info/200202/performance_and_spending/1079/payments_over_500,01-Feb-2021,Housing & Communities,ASHTON FIRE LTD,Housing & Communities,2550.00,CIP - Op Equipment,2021P11_CR00344,141798
Sandwell Metropolitan Borough Council,http://www.sandwell.gov.uk/info/200202/performance_and_spending/1079/payments_over_500,01-Feb-2021,Housing & Communities,ASPLI SAFETY LTD,Neighbourhoods,1032.92,Equipment & Furniture ,2021P11_CR00345,93386
Sandwell Metropolitan Borough Council,http://www.sandwell.gov.uk/info/200202/performance_and_spending/1079/payments_over_500,01-Feb-2021,Housing & Communities,BCH PROPERTY LIMITED,Neighbourhoods,595.92,Rents,2021P11_CR00346,01011861
Sandwell Metropolitan Borough Council,http://www.sandwell.gov.uk/info/200202/performance_and_spending/1079/payments_over_500,01-Feb-2021,Housing & Communities,BCH PROPERTY LIMITED,Neighbourhoods,641.74,Rents,2021P11_CR00347,01011861
Sandwell Metropolitan Borough Council,http://www.sandwell.gov.uk/info/200202/performance_and_spending/1079/payments_over_500,01-Feb-2021,Housing & Communities,BCH PROPERTY LIMITED,Neighbourhoods,666.80,Rents,2021P11_CR00348,01011861
Sandwell Metropolitan Borough Council,http://www.sandwell.gov.uk/info/200202/performance_and_spending/1079/payments_over_500,01-Feb-2021,Housing & Communities,BCH PROPERTY LIMITED,Neighbourhoods,687.60,Rents,2021P11_CR00349,01011861
Sandwell Metropolitan Borough Council,http://www.sandwell.gov.uk/info/200202/performance_and_spending/1079/payments_over_500,01-Feb-2021,Housing & Communities,BCH PROPERTY LIMITED,Neighbourhoods,733.48,Rents,2021P11_CR00350,01011861
Sandwell Metropolitan Borough Council,http://www.sandwell.gov.uk/info/200202/performance_and_spending/1079/payments_over_500,01-Feb-2021,Housing & Communities,BCH PROPERTY LIMITED,Neighbourhoods,784.00,Rents,2021P11_CR00351,01011861
Sandwell Metropolitan Borough Council,http://www.sandwell.gov.uk/info/200202/performance_and_spending/1079/payments_over_500,01-Feb-2021,Housing & Communities,BCH PROPERTY LIMITED,Neighbourhoods,1066.88,Rents,2021P11_CR00352,01011861
Sandwell Metropolitan Borough Council,http://www.sandwell.gov.uk/info/200202/performance_and_spending/1079/payments_over_500,01-Feb-2021,Housing & Communities,BCH PROPERTY LIMITED,Neighbourhoods,1604.40,Rents,2021P11_CR00353,01011861
Sandwell Metropolitan Borough Council,http://www.sandwell.gov.uk/info/200202/performance_and_spending/1079/payments_over_500,01-Feb-2021,Housing & Communities,BCH PROPERTY LIMITED,Neighbourhoods,1792.00,Rents,2021P11_CR00354,01011861
Sandwell Metropolitan Borough Council,http://www.sandwell.gov.uk/info/200202/performance_and_spending/1079/payments_over_500,01-Feb-2021,Housing & Communities,BEECHWOOD TREES & LANDSCAPE LTD,Neighbourhoods,500.00,Externally Purchased Professional Services ,2021P11_CR00355,93287
Sandwell Metropolitan Borough Council,http://www.sandwell.gov.uk/info/200202/performance_and_spending/1079/payments_over_500,18-Feb-2021,Housing & Communities,BEECHWOOD TREES & LANDSCAPE LTD,Neighbourhoods,522.50,Externally Purchased Professional Services ,2021P11_CR00356,93287
Sandwell Metropolitan Borough Council,http://www.sandwell.gov.uk/info/200202/performance_and_spending/1079/payments_over_500,01-Feb-2021,Housing & Communities,BEECHWOOD TREES & LANDSCAPE LTD,Neighbourhoods,570.00,Externally Purchased Professional Services ,2021P11_CR00357,93287
Sandwell Metropolitan Borough Council,http://www.sandwell.gov.uk/info/200202/performance_and_spending/1079/payments_over_500,16-Feb-2021,Housing & Communities,BEECHWOOD TREES & LANDSCAPE LTD,Neighbourhoods,590.00,Externally Purchased Professional Services ,2021P11_CR00358,93287
Sandwell Metropolitan Borough Council,http://www.sandwell.gov.uk/info/200202/performance_and_spending/1079/payments_over_500,01-Feb-2021,Housing & Communities,BEECHWOOD TREES & LANDSCAPE LTD,Neighbourhoods,600.00,Externally Purchased Professional Services ,2021P11_CR00359,93287
Sandwell Metropolitan Borough Council,http://www.sandwell.gov.uk/info/200202/performance_and_spending/1079/payments_over_500,18-Feb-2021,Housing & Communities,BEECHWOOD TREES & LANDSCAPE LTD,Neighbourhoods,657.50,Externally Purchased Professional Services ,2021P11_CR00360,93287
Sandwell Metropolitan Borough Council,http://www.sandwell.gov.uk/info/200202/performance_and_spending/1079/payments_over_500,18-Feb-2021,Housing & Communities,BEECHWOOD TREES & LANDSCAPE LTD,Neighbourhoods,738.00,Externally Purchased Professional Services ,2021P11_CR00361,93287
Sandwell Metropolitan Borough Council,http://www.sandwell.gov.uk/info/200202/performance_and_spending/1079/payments_over_500,18-Feb-2021,Housing & Communities,BEECHWOOD TREES & LANDSCAPE LTD,Neighbourhoods,950.00,Externally Purchased Professional Services ,2021P11_CR00362,93287
Sandwell Metropolitan Borough Council,http://www.sandwell.gov.uk/info/200202/performance_and_spending/1079/payments_over_500,16-Feb-2021,Housing & Communities,BEECHWOOD TREES & LANDSCAPE LTD,Neighbourhoods,951.00,Externally Purchased Professional Services ,2021P11_CR00363,93287
Sandwell Metropolitan Borough Council,http://www.sandwell.gov.uk/info/200202/performance_and_spending/1079/payments_over_500,18-Feb-2021,Housing & Communities,BEECHWOOD TREES & LANDSCAPE LTD,Neighbourhoods,1140.00,Externally Purchased Professional Services ,2021P11_CR00364,93287
Sandwell Metropolitan Borough Council,http://www.sandwell.gov.uk/info/200202/performance_and_spending/1079/payments_over_500,18-Feb-2021,Housing & Communities,BEECHWOOD TREES & LANDSCAPE LTD,Neighbourhoods,1330.00,Externally Purchased Professional Services ,2021P11_CR00365,93287
Sandwell Metropolitan Borough Council,http://www.sandwell.gov.uk/info/200202/performance_and_spending/1079/payments_over_500,18-Feb-2021,Housing & Communities,BEECHWOOD TREES & LANDSCAPE LTD,Neighbourhoods,1450.00,Externally Purchased Professional Services ,2021P11_CR00366,93287
Sandwell Metropolitan Borough Council,http://www.sandwell.gov.uk/info/200202/performance_and_spending/1079/payments_over_500,16-Feb-2021,Housing & Communities,BEECHWOOD TREES & LANDSCAPE LTD,Neighbourhoods,1637.00,Externally Purchased Professional Services ,2021P11_CR00367,93287
Sandwell Metropolitan Borough Council,http://www.sandwell.gov.uk/info/200202/performance_and_spending/1079/payments_over_500,18-Feb-2021,Housing & Communities,BEECHWOOD TREES & LANDSCAPE LTD,Neighbourhoods,1825.00,Externally Purchased Professional Services ,2021P11_CR00368,93287
Sandwell Metropolitan Borough Council,http://www.sandwell.gov.uk/info/200202/performance_and_spending/1079/payments_over_500,16-Feb-2021,Housing & Communities,BEECHWOOD TREES & LANDSCAPE LTD,Neighbourhoods,1900.00,Externally Purchased Professional Services ,2021P11_CR00369,93287
Sandwell Metropolitan Borough Council,http://www.sandwell.gov.uk/info/200202/performance_and_spending/1079/payments_over_500,15-Feb-2021,Housing & Communities,BEECHWOOD TREES & LANDSCAPE LTD,Neighbourhoods,3350.00,Externally Purchased Professional Services ,2021P11_CR00370,93287
Sandwell Metropolitan Borough Council,http://www.sandwell.gov.uk/info/200202/performance_and_spending/1079/payments_over_500,18-Feb-2021,Housing & Communities,BEECHWOOD TREES & LANDSCAPE LTD,Neighbourhoods,8250.00,Externally Purchased Professional Services ,2021P11_CR00371,93287
Sandwell Metropolitan Borough Council,http://www.sandwell.gov.uk/info/200202/performance_and_spending/1079/payments_over_500,18-Feb-2021,Housing & Communities,BEECHWOOD TREES & LANDSCAPE LTD,Neighbourhoods,15500.00,Externally Purchased Professional Services ,2021P11_CR00372,93287
Sandwell Metropolitan Borough Council,http://www.sandwell.gov.uk/info/200202/performance_and_spending/1079/payments_over_500,01-Feb-2021,Housing & Communities,BOLINDA UK LTD,Neighbourhoods,513.68,Materials & Consumables,2021P11_CR00373,117408
Sandwell Metropolitan Borough Council,http://www.sandwell.gov.uk/info/200202/performance_and_spending/1079/payments_over_500,08-Feb-2021,Housing & Communities,BRADLEY ENVIRONMENTAL CONSULTANTS LTD,Neighbourhoods,1129.86,Consultancy,2021P11_CR00374,01150424
Sandwell Metropolitan Borough Council,http://www.sandwell.gov.uk/info/200202/performance_and_spending/1079/payments_over_500,01-Feb-2021,Housing & Communities,BUCKS HOUSING LTD T/A HAGLEY HOTEL,Neighbourhoods,6825.00,Rents,2021P11_CR00375,143677
Sandwell Metropolitan Borough Council,http://www.sandwell.gov.uk/info/200202/performance_and_spending/1079/payments_over_500,01-Feb-2021,Housing & Communities,C H FURNITURE SUPPLIES LTD,Neighbourhoods,6405.00,Rents,2021P11_CR00376,139811
Sandwell Metropolitan Borough Council,http://www.sandwell.gov.uk/info/200202/performance_and_spending/1079/payments_over_500,01-Feb-2021,Housing & Communities,C H FURNITURE SUPPLIES LTD,Neighbourhoods,10846.00,Rents,2021P11_CR00377,139811
Sandwell Metropolitan Borough Council,http://www.sandwell.gov.uk/info/200202/performance_and_spending/1079/payments_over_500,01-Feb-2021,Housing & Communities,CERTAS ENERGY LIMITED,Neighbourhoods,1282.40,Fuel ,2021P11_CR00378,80421
Sandwell Metropolitan Borough Council,http://www.sandwell.gov.uk/info/200202/performance_and_spending/1079/payments_over_500,12-Feb-2021,Housing & Communities,CERTAS ENERGY LIMITED,Neighbourhoods,1399.50,Fuel ,2021P11_CR00379,80421
Sandwell Metropolitan Borough Council,http://www.sandwell.gov.uk/info/200202/performance_and_spending/1079/payments_over_500,16-Feb-2021,Housing & Communities,CERTAS ENERGY LIMITED,Neighbourhoods,1733.20,Fuel ,2021P11_CR00380,80421
Sandwell Metropolitan Borough Council,http://www.sandwell.gov.uk/info/200202/performance_and_spending/1079/payments_over_500,14-Feb-2021,Housing & Communities,CERTAS ENERGY LIMITED,Neighbourhoods,4492.50,Fuel ,2021P11_CR00381,80421
Sandwell Metropolitan Borough Council,http://www.sandwell.gov.uk/info/200202/performance_and_spending/1079/payments_over_500,01-Feb-2021,Housing & Communities,CERTAS ENERGY LIMITED,Neighbourhoods,8484.77,Fuel ,2021P11_CR00382,80421
Sandwell Metropolitan Borough Council,http://www.sandwell.gov.uk/info/200202/performance_and_spending/1079/payments_over_500,03-Feb-2021,Housing & Communities,CERTAS ENERGY LIMITED,Neighbourhoods,513.15,Oil,2021P11_CR00383,80421
Sandwell Metropolitan Borough Council,http://www.sandwell.gov.uk/info/200202/performance_and_spending/1079/payments_over_500,01-Feb-2021,Housing & Communities,CONTINUUM SPORT & LEISURE LTD,Neighbourhoods,9700.00,Externally Purchased Professional Services ,2021P11_CR00384,147318
Sandwell Metropolitan Borough Council,http://www.sandwell.gov.uk/info/200202/performance_and_spending/1079/payments_over_500,01-Feb-2021,Housing & Communities,COOKE RUDLING LIMITED,Assistant Chief Executive (Excl SIU),1312.50,Externally Purchased Professional Services ,2021P11_CR00385,01577073
Sandwell Metropolitan Borough Council,http://www.sandwell.gov.uk/info/200202/performance_and_spending/1079/payments_over_500,17-Feb-2021,Housing & Communities,CORROY PRODUCTS LTD,Neighbourhoods,533.00,Operational Services ,2021P11_CR00386,4518
Sandwell Metropolitan Borough Council,http://www.sandwell.gov.uk/info/200202/performance_and_spending/1079/payments_over_500,01-Feb-2021,Housing & Communities,COUGAR MONITORING LTD,Neighbourhoods,1640.00,Security,2021P11_CR00387,01592507
Sandwell Metropolitan Borough Council,http://www.sandwell.gov.uk/info/200202/performance_and_spending/1079/payments_over_500,01-Feb-2021,Housing & Communities,GILANI ENTERPRISES LIMITED,Neighbourhoods,533.33,Rents,2021P11_CR00388,2696
Sandwell Metropolitan Borough Council,http://www.sandwell.gov.uk/info/200202/performance_and_spending/1079/payments_over_500,01-Feb-2021,Housing & Communities,GILANI ENTERPRISES LIMITED,Neighbourhoods,609.52,Rents,2021P11_CR00389,2696
Sandwell Metropolitan Borough Council,http://www.sandwell.gov.uk/info/200202/performance_and_spending/1079/payments_over_500,01-Feb-2021,Housing & Communities,GILANI ENTERPRISES LIMITED,Neighbourhoods,914.29,Rents,2021P11_CR00390,2696
Sandwell Metropolitan Borough Council,http://www.sandwell.gov.uk/info/200202/performance_and_spending/1079/payments_over_500,01-Feb-2021,Housing & Communities,GILANI ENTERPRISES LIMITED,Neighbourhoods,1714.29,Rents,2021P11_CR00391,2696
Sandwell Metropolitan Borough Council,http://www.sandwell.gov.uk/info/200202/performance_and_spending/1079/payments_over_500,01-Feb-2021,Housing & Communities,GILANI ENTERPRISES LIMITED,Neighbourhoods,1714.29,Rents,2021P11_CR00392,2696
Sandwell Metropolitan Borough Council,http://www.sandwell.gov.uk/info/200202/performance_and_spending/1079/payments_over_500,01-Feb-2021,Housing & Communities,GILANI ENTERPRISES LIMITED,Neighbourhoods,2000.00,Rents,2021P11_CR00393,2696
Sandwell Metropolitan Borough Council,http://www.sandwell.gov.uk/info/200202/performance_and_spending/1079/payments_over_500,01-Feb-2021,Housing & Communities,GILANI ENTERPRISES LIMITED,Neighbourhoods,2190.48,Rents,2021P11_CR00394,2696
Sandwell Metropolitan Borough Council,http://www.sandwell.gov.uk/info/200202/performance_and_spending/1079/payments_over_500,01-Feb-2021,Housing & Communities,GILANI ENTERPRISES LIMITED,Neighbourhoods,2428.57,Rents,2021P11_CR00395,2696
Sandwell Metropolitan Borough Council,http://www.sandwell.gov.uk/info/200202/performance_and_spending/1079/payments_over_500,01-Feb-2021,Housing & Communities,GILANI ENTERPRISES LIMITED,Neighbourhoods,2857.14,Rents,2021P11_CR00396,2696
Sandwell Metropolitan Borough Council,http://www.sandwell.gov.uk/info/200202/performance_and_spending/1079/payments_over_500,01-Feb-2021,Housing & Communities,GILANI ENTERPRISES LIMITED,Neighbourhoods,3276.19,Rents,2021P11_CR00397,2696
Sandwell Metropolitan Borough Council,http://www.sandwell.gov.uk/info/200202/performance_and_spending/1079/payments_over_500,01-Feb-2021,Housing & Communities,GILANI ENTERPRISES LIMITED,Neighbourhoods,4457.14,Rents,2021P11_CR00398,2696
Sandwell Metropolitan Borough Council,http://www.sandwell.gov.uk/info/200202/performance_and_spending/1079/payments_over_500,01-Feb-2021,Housing & Communities,HOUSING OPTIONS WEST MIDLANDS LTD (HOWM),Neighbourhoods,526.00,Rents,2021P11_CR00399,76625
Sandwell Metropolitan Borough Council,http://www.sandwell.gov.uk/info/200202/performance_and_spending/1079/payments_over_500,01-Feb-2021,Housing & Communities,HOUSING OPTIONS WEST MIDLANDS LTD (HOWM),Neighbourhoods,531.34,Rents,2021P11_CR00400,76625
Sandwell Metropolitan Borough Council,http://www.sandwell.gov.uk/info/200202/performance_and_spending/1079/payments_over_500,01-Feb-2021,Housing & Communities,HOUSING OPTIONS WEST MIDLANDS LTD (HOWM),Neighbourhoods,531.34,Rents,2021P11_CR00401,76625
Sandwell Metropolitan Borough Council,http://www.sandwell.gov.uk/info/200202/performance_and_spending/1079/payments_over_500,01-Feb-2021,Housing & Communities,HOUSING OPTIONS WEST MIDLANDS LTD (HOWM),Neighbourhoods,547.00,Rents,2021P11_CR00402,76625
Sandwell Metropolitan Borough Council,http://www.sandwell.gov.uk/info/200202/performance_and_spending/1079/payments_over_500,01-Feb-2021,Housing & Communities,HOUSING OPTIONS WEST MIDLANDS LTD (HOWM),Neighbourhoods,559.86,Rents,2021P11_CR00403,76625
Sandwell Metropolitan Borough Council,http://www.sandwell.gov.uk/info/200202/performance_and_spending/1079/payments_over_500,01-Feb-2021,Housing & Communities,HOUSING OPTIONS WEST MIDLANDS LTD (HOWM),Neighbourhoods,559.86,Rents,2021P11_CR00404,76625
Sandwell Metropolitan Borough Council,http://www.sandwell.gov.uk/info/200202/performance_and_spending/1079/payments_over_500,01-Feb-2021,Housing & Communities,HOUSING OPTIONS WEST MIDLANDS LTD (HOWM),Neighbourhoods,575.67,Rents,2021P11_CR00405,76625
Sandwell Metropolitan Borough Council,http://www.sandwell.gov.uk/info/200202/performance_and_spending/1079/payments_over_500,01-Feb-2021,Housing & Communities,HOUSING OPTIONS WEST MIDLANDS LTD (HOWM),Neighbourhoods,575.67,Rents,2021P11_CR00406,76625
Sandwell Metropolitan Borough Council,http://www.sandwell.gov.uk/info/200202/performance_and_spending/1079/payments_over_500,01-Feb-2021,Housing & Communities,HOUSING OPTIONS WEST MIDLANDS LTD (HOWM),Neighbourhoods,575.67,Rents,2021P11_CR00407,76625
Sandwell Metropolitan Borough Council,http://www.sandwell.gov.uk/info/200202/performance_and_spending/1079/payments_over_500,01-Feb-2021,Housing & Communities,HOUSING OPTIONS WEST MIDLANDS LTD (HOWM),Neighbourhoods,597.99,Rents,2021P11_CR00408,76625
Sandwell Metropolitan Borough Council,http://www.sandwell.gov.uk/info/200202/performance_and_spending/1079/payments_over_500,01-Feb-2021,Housing & Communities,HOUSING OPTIONS WEST MIDLANDS LTD (HOWM),Neighbourhoods,617.83,Rents,2021P11_CR00409,76625
Sandwell Metropolitan Borough Council,http://www.sandwell.gov.uk/info/200202/performance_and_spending/1079/payments_over_500,01-Feb-2021,Housing & Communities,HOUSING OPTIONS WEST MIDLANDS LTD (HOWM),Neighbourhoods,620.00,Rents,2021P11_CR00410,76625
Sandwell Metropolitan Borough Council,http://www.sandwell.gov.uk/info/200202/performance_and_spending/1079/payments_over_500,01-Feb-2021,Housing & Communities,HOUSING OPTIONS WEST MIDLANDS LTD (HOWM),Neighbourhoods,625.58,Rents,2021P11_CR00411,76625
Sandwell Metropolitan Borough Council,http://www.sandwell.gov.uk/info/200202/performance_and_spending/1079/payments_over_500,01-Feb-2021,Housing & Communities,HOUSING OPTIONS WEST MIDLANDS LTD (HOWM),Neighbourhoods,625.58,Rents,2021P11_CR00412,76625
Sandwell Metropolitan Borough Council,http://www.sandwell.gov.uk/info/200202/performance_and_spending/1079/payments_over_500,01-Feb-2021,Housing & Communities,HOUSING OPTIONS WEST MIDLANDS LTD (HOWM),Neighbourhoods,625.58,Rents,2021P11_CR00413,76625
Sandwell Metropolitan Borough Council,http://www.sandwell.gov.uk/info/200202/performance_and_spending/1079/payments_over_500,01-Feb-2021,Housing & Communities,HOUSING OPTIONS WEST MIDLANDS LTD (HOWM),Neighbourhoods,625.58,Rents,2021P11_CR00414,76625
Sandwell Metropolitan Borough Council,http://www.sandwell.gov.uk/info/200202/performance_and_spending/1079/payments_over_500,01-Feb-2021,Housing & Communities,HOUSING OPTIONS WEST MIDLANDS LTD (HOWM),Neighbourhoods,625.58,Rents,2021P11_CR00415,76625
Sandwell Metropolitan Borough Council,http://www.sandwell.gov.uk/info/200202/performance_and_spending/1079/payments_over_500,01-Feb-2021,Housing & Communities,HOUSING OPTIONS WEST MIDLANDS LTD (HOWM),Neighbourhoods,625.58,Rents,2021P11_CR00416,76625
Sandwell Metropolitan Borough Council,http://www.sandwell.gov.uk/info/200202/performance_and_spending/1079/payments_over_500,01-Feb-2021,Housing & Communities,HOUSING OPTIONS WEST MIDLANDS LTD (HOWM),Neighbourhoods,625.58,Rents,2021P11_CR00417,76625
Sandwell Metropolitan Borough Council,http://www.sandwell.gov.uk/info/200202/performance_and_spending/1079/payments_over_500,01-Feb-2021,Housing & Communities,HOUSING OPTIONS WEST MIDLANDS LTD (HOWM),Neighbourhoods,625.58,Rents,2021P11_CR00418,76625
Sandwell Metropolitan Borough Council,http://www.sandwell.gov.uk/info/200202/performance_and_spending/1079/payments_over_500,01-Feb-2021,Housing & Communities,HOUSING OPTIONS WEST MIDLANDS LTD (HOWM),Neighbourhoods,633.33,Rents,2021P11_CR00419,76625
Sandwell Metropolitan Borough Council,http://www.sandwell.gov.uk/info/200202/performance_and_spending/1079/payments_over_500,01-Feb-2021,Housing & Communities,HOUSING OPTIONS WEST MIDLANDS LTD (HOWM),Neighbourhoods,637.67,Rents,2021P11_CR00420,76625
Sandwell Metropolitan Borough Council,http://www.sandwell.gov.uk/info/200202/performance_and_spending/1079/payments_over_500,01-Feb-2021,Housing & Communities,HOUSING OPTIONS WEST MIDLANDS LTD (HOWM),Neighbourhoods,657.51,Rents,2021P11_CR00421,76625
Sandwell Metropolitan Borough Council,http://www.sandwell.gov.uk/info/200202/performance_and_spending/1079/payments_over_500,01-Feb-2021,Housing & Communities,HOUSING OPTIONS WEST MIDLANDS LTD (HOWM),Neighbourhoods,664.33,Rents,2021P11_CR00422,76625
Sandwell Metropolitan Borough Council,http://www.sandwell.gov.uk/info/200202/performance_and_spending/1079/payments_over_500,01-Feb-2021,Housing & Communities,HOUSING OPTIONS WEST MIDLANDS LTD (HOWM),Neighbourhoods,686.34,Rents,2021P11_CR00423,76625
Sandwell Metropolitan Borough Council,http://www.sandwell.gov.uk/info/200202/performance_and_spending/1079/payments_over_500,01-Feb-2021,Housing & Communities,HOUSING OPTIONS WEST MIDLANDS LTD (HOWM),Neighbourhoods,691.92,Rents,2021P11_CR00424,76625
Sandwell Metropolitan Borough Council,http://www.sandwell.gov.uk/info/200202/performance_and_spending/1079/payments_over_500,01-Feb-2021,Housing & Communities,HOUSING OPTIONS WEST MIDLANDS LTD (HOWM),Neighbourhoods,691.92,Rents,2021P11_CR00425,76625
Sandwell Metropolitan Borough Council,http://www.sandwell.gov.uk/info/200202/performance_and_spending/1079/payments_over_500,01-Feb-2021,Housing & Communities,HOUSING OPTIONS WEST MIDLANDS LTD (HOWM),Neighbourhoods,701.22,Rents,2021P11_CR00426,76625
Sandwell Metropolitan Borough Council,http://www.sandwell.gov.uk/info/200202/performance_and_spending/1079/payments_over_500,01-Feb-2021,Housing & Communities,HOUSING OPTIONS WEST MIDLANDS LTD (HOWM),Neighbourhoods,701.22,Rents,2021P11_CR00427,76625
Sandwell Metropolitan Borough Council,http://www.sandwell.gov.uk/info/200202/performance_and_spending/1079/payments_over_500,04-Feb-2021,Housing & Communities,HOUSING OPTIONS WEST MIDLANDS LTD (HOWM),Neighbourhoods,701.22,Rents,2021P11_CR00428,76625
Sandwell Metropolitan Borough Council,http://www.sandwell.gov.uk/info/200202/performance_and_spending/1079/payments_over_500,01-Feb-2021,Housing & Communities,HOUSING OPTIONS WEST MIDLANDS LTD (HOWM),Neighbourhoods,701.22,Rents,2021P11_CR00429,76625
Sandwell Metropolitan Borough Council,http://www.sandwell.gov.uk/info/200202/performance_and_spending/1079/payments_over_500,01-Feb-2021,Housing & Communities,HOUSING OPTIONS WEST MIDLANDS LTD (HOWM),Neighbourhoods,701.22,Rents,2021P11_CR00430,76625
Sandwell Metropolitan Borough Council,http://www.sandwell.gov.uk/info/200202/performance_and_spending/1079/payments_over_500,01-Feb-2021,Housing & Communities,HOUSING OPTIONS WEST MIDLANDS LTD (HOWM),Neighbourhoods,701.22,Rents,2021P11_CR00431,76625
Sandwell Metropolitan Borough Council,http://www.sandwell.gov.uk/info/200202/performance_and_spending/1079/payments_over_500,01-Feb-2021,Housing & Communities,HOUSING OPTIONS WEST MIDLANDS LTD (HOWM),Neighbourhoods,701.22,Rents,2021P11_CR00432,76625
Sandwell Metropolitan Borough Council,http://www.sandwell.gov.uk/info/200202/performance_and_spending/1079/payments_over_500,01-Feb-2021,Housing & Communities,HOUSING OPTIONS WEST MIDLANDS LTD (HOWM),Neighbourhoods,701.22,Rents,2021P11_CR00433,76625
Sandwell Metropolitan Borough Council,http://www.sandwell.gov.uk/info/200202/performance_and_spending/1079/payments_over_500,01-Feb-2021,Housing & Communities,HOUSING OPTIONS WEST MIDLANDS LTD (HOWM),Neighbourhoods,701.22,Rents,2021P11_CR00434,76625
Sandwell Metropolitan Borough Council,http://www.sandwell.gov.uk/info/200202/performance_and_spending/1079/payments_over_500,01-Feb-2021,Housing & Communities,HOUSING OPTIONS WEST MIDLANDS LTD (HOWM),Neighbourhoods,701.22,Rents,2021P11_CR00435,76625
Sandwell Metropolitan Borough Council,http://www.sandwell.gov.uk/info/200202/performance_and_spending/1079/payments_over_500,01-Feb-2021,Housing & Communities,HOUSING OPTIONS WEST MIDLANDS LTD (HOWM),Neighbourhoods,738.60,Rents,2021P11_CR00436,76625
Sandwell Metropolitan Borough Council,http://www.sandwell.gov.uk/info/200202/performance_and_spending/1079/payments_over_500,01-Feb-2021,Housing & Communities,HOUSING OPTIONS WEST MIDLANDS LTD (HOWM),Neighbourhoods,747.00,Rents,2021P11_CR00437,76625
Sandwell Metropolitan Borough Council,http://www.sandwell.gov.uk/info/200202/performance_and_spending/1079/payments_over_500,01-Feb-2021,Housing & Communities,HOUSING OPTIONS WEST MIDLANDS LTD (HOWM),Neighbourhoods,747.00,Rents,2021P11_CR00438,76625
Sandwell Metropolitan Borough Council,http://www.sandwell.gov.uk/info/200202/performance_and_spending/1079/payments_over_500,01-Feb-2021,Housing & Communities,HOUSING OPTIONS WEST MIDLANDS LTD (HOWM),Neighbourhoods,763.22,Rents,2021P11_CR00439,76625
Sandwell Metropolitan Borough Council,http://www.sandwell.gov.uk/info/200202/performance_and_spending/1079/payments_over_500,01-Feb-2021,Housing & Communities,HOUSING OPTIONS WEST MIDLANDS LTD (HOWM),Neighbourhoods,763.22,Rents,2021P11_CR00440,76625
Sandwell Metropolitan Borough Council,http://www.sandwell.gov.uk/info/200202/performance_and_spending/1079/payments_over_500,06-Feb-2021,Housing & Communities,HOUSING OPTIONS WEST MIDLANDS LTD (HOWM),Neighbourhoods,763.22,Rents,2021P11_CR00441,76625
Sandwell Metropolitan Borough Council,http://www.sandwell.gov.uk/info/200202/performance_and_spending/1079/payments_over_500,01-Feb-2021,Housing & Communities,HOUSING OPTIONS WEST MIDLANDS LTD (HOWM),Neighbourhoods,768.60,Rents,2021P11_CR00442,76625
Sandwell Metropolitan Borough Council,http://www.sandwell.gov.uk/info/200202/performance_and_spending/1079/payments_over_500,01-Feb-2021,Housing & Communities,HOUSING OPTIONS WEST MIDLANDS LTD (HOWM),Neighbourhoods,771.90,Rents,2021P11_CR00443,76625
Sandwell Metropolitan Borough Council,http://www.sandwell.gov.uk/info/200202/performance_and_spending/1079/payments_over_500,01-Feb-2021,Housing & Communities,HOUSING OPTIONS WEST MIDLANDS LTD (HOWM),Neighbourhoods,771.90,Rents,2021P11_CR00444,76625
Sandwell Metropolitan Borough Council,http://www.sandwell.gov.uk/info/200202/performance_and_spending/1079/payments_over_500,01-Feb-2021,Housing & Communities,HOUSING OPTIONS WEST MIDLANDS LTD (HOWM),Neighbourhoods,771.90,Rents,2021P11_CR00445,76625
Sandwell Metropolitan Borough Council,http://www.sandwell.gov.uk/info/200202/performance_and_spending/1079/payments_over_500,01-Feb-2021,Housing & Communities,HOUSING OPTIONS WEST MIDLANDS LTD (HOWM),Neighbourhoods,794.22,Rents,2021P11_CR00446,76625
Sandwell Metropolitan Borough Council,http://www.sandwell.gov.uk/info/200202/performance_and_spending/1079/payments_over_500,06-Feb-2021,Housing & Communities,HOUSING OPTIONS WEST MIDLANDS LTD (HOWM),Neighbourhoods,794.22,Rents,2021P11_CR00447,76625
Sandwell Metropolitan Borough Council,http://www.sandwell.gov.uk/info/200202/performance_and_spending/1079/payments_over_500,01-Feb-2021,Housing & Communities,HOUSING OPTIONS WEST MIDLANDS LTD (HOWM),Neighbourhoods,1060.00,Rents,2021P11_CR00448,76625
Sandwell Metropolitan Borough Council,http://www.sandwell.gov.uk/info/200202/performance_and_spending/1079/payments_over_500,01-Feb-2021,Housing & Communities,HOUSING OPTIONS WEST MIDLANDS LTD (HOWM),Neighbourhoods,1077.58,Rents,2021P11_CR00449,76625
Sandwell Metropolitan Borough Council,http://www.sandwell.gov.uk/info/200202/performance_and_spending/1079/payments_over_500,01-Feb-2021,Housing & Communities,HOUSING OPTIONS WEST MIDLANDS LTD (HOWM),Neighbourhoods,1125.00,Rents,2021P11_CR00450,76625
Sandwell Metropolitan Borough Council,http://www.sandwell.gov.uk/info/200202/performance_and_spending/1079/payments_over_500,01-Feb-2021,Housing & Communities,INVICTA BUSINESS MACHINES LTD,Neighbourhoods,2664.00,Equipment & Furniture ,2021P11_CR00451,142027
Sandwell Metropolitan Borough Council,http://www.sandwell.gov.uk/info/200202/performance_and_spending/1079/payments_over_500,17-Feb-2021,Housing & Communities,MIDLAND FORESTRY LIMITED,Neighbourhoods,800.00,Externally Purchased Professional Services ,2021P11_CR00452,45812
Sandwell Metropolitan Borough Council,http://www.sandwell.gov.uk/info/200202/performance_and_spending/1079/payments_over_500,03-Feb-2021,Housing & Communities,MIDLAND FORESTRY LIMITED,Neighbourhoods,928.00,Externally Purchased Professional Services ,2021P11_CR00453,45812
Sandwell Metropolitan Borough Council,http://www.sandwell.gov.uk/info/200202/performance_and_spending/1079/payments_over_500,04-Feb-2021,Housing & Communities,MIDLAND FORESTRY LIMITED,Neighbourhoods,950.00,Externally Purchased Professional Services ,2021P11_CR00454,45812
Sandwell Metropolitan Borough Council,http://www.sandwell.gov.uk/info/200202/performance_and_spending/1079/payments_over_500,05-Feb-2021,Housing & Communities,MIDLAND FORESTRY LIMITED,Neighbourhoods,1800.00,Externally Purchased Professional Services ,2021P11_CR00455,45812
Sandwell Metropolitan Borough Council,http://www.sandwell.gov.uk/info/200202/performance_and_spending/1079/payments_over_500,11-Feb-2021,Housing & Communities,MKG (FOOD PRODUCTS) LIMITED,Neighbourhoods,3591.00,Catering Provisions,2021P11_CR00456,142083
Sandwell Metropolitan Borough Council,http://www.sandwell.gov.uk/info/200202/performance_and_spending/1079/payments_over_500,01-Feb-2021,Housing & Communities,PENNON WATER SERVICES T/A SSWB,Neighbourhoods,901.66,Water Services,2021P11_CR00457,131726
Sandwell Metropolitan Borough Council,http://www.sandwell.gov.uk/info/200202/performance_and_spending/1079/payments_over_500,01-Feb-2021,Housing & Communities,PENNON WATER SERVICES T/A SSWB,Neighbourhoods,1110.63,Water Services,2021P11_CR00458,131726
Sandwell Metropolitan Borough Council,http://www.sandwell.gov.uk/info/200202/performance_and_spending/1079/payments_over_500,01-Feb-2021,Housing & Communities,PENNON WATER SERVICES T/A SSWB,Neighbourhoods,3726.95,Water Services,2021P11_CR00459,131726
Sandwell Metropolitan Borough Council,http://www.sandwell.gov.uk/info/200202/performance_and_spending/1079/payments_over_500,01-Feb-2021,Housing & Communities,PERVASIVE NETWORKS LTD,Housing & Communities,4102.89,Externally Purchased Professional Services ,2021P11_CR00460,01658599
Sandwell Metropolitan Borough Council,http://www.sandwell.gov.uk/info/200202/performance_and_spending/1079/payments_over_500,01-Feb-2021,Housing & Communities,PLACES FOR PEOPLE LEISURE MANAGEMENT LTD,Neighbourhoods,704.00,SH Payments,2021P11_CR00461,118956
Sandwell Metropolitan Borough Council,http://www.sandwell.gov.uk/info/200202/performance_and_spending/1079/payments_over_500,01-Feb-2021,Housing & Communities,PROFILE SECURITY SERVICES LTD,Neighbourhoods,2128.00,Security,2021P11_CR00462,131253
Sandwell Metropolitan Borough Council,http://www.sandwell.gov.uk/info/200202/performance_and_spending/1079/payments_over_500,01-Feb-2021,Housing & Communities,PROFILE SECURITY SERVICES LTD,Neighbourhoods,7261.81,Security,2021P11_CR00463,131253
Sandwell Metropolitan Borough Council,http://www.sandwell.gov.uk/info/200202/performance_and_spending/1079/payments_over_500,01-Feb-2021,Housing & Communities,R W SERVICES CONTRACTORS LIMITED,Housing & Communities,16000.00,CIP - Infrastructure,2021P11_CR00464,68320
Sandwell Metropolitan Borough Council,http://www.sandwell.gov.uk/info/200202/performance_and_spending/1079/payments_over_500,04-Feb-2021,Housing & Communities,REDACTED PERSONAL DATA,Neighbourhoods,783.95,Building Maintenance & Improvements,2021P11_CR00465,REDACTED PERSONAL DATA
Sandwell Metropolitan Borough Council,http://www.sandwell.gov.uk/info/200202/performance_and_spending/1079/payments_over_500,04-Feb-2021,Housing & Communities,REDACTED PERSONAL DATA,Neighbourhoods,2500.00,Consultancy,2021P11_CR00466,REDACTED PERSONAL DATA
Sandwell Metropolitan Borough Council,http://www.sandwell.gov.uk/info/200202/performance_and_spending/1079/payments_over_500,02-Feb-2021,Housing & Communities,REDACTED PERSONAL DATA,Neighbourhoods,510.00,Tenants Expenses,2021P11_CR00467,REDACTED PERSONAL DATA
Sandwell Metropolitan Borough Council,http://www.sandwell.gov.uk/info/200202/performance_and_spending/1079/payments_over_500,18-Feb-2021,Housing & Communities,RIGBY TAYLOR LTD,Neighbourhoods,4765.20,Building Maintenance & Improvements,2021P11_CR00468,01076172
Sandwell Metropolitan Borough Council,http://www.sandwell.gov.uk/info/200202/performance_and_spending/1079/payments_over_500,01-Feb-2021,Housing & Communities,RIGHT TO CARE LTD.,Neighbourhoods,871.20,Rents,2021P11_CR00469,133426
Sandwell Metropolitan Borough Council,http://www.sandwell.gov.uk/info/200202/performance_and_spending/1079/payments_over_500,01-Feb-2021,Housing & Communities,RIGHT TO CARE LTD.,Neighbourhoods,958.32,Rents,2021P11_CR00470,133426
Sandwell Metropolitan Borough Council,http://www.sandwell.gov.uk/info/200202/performance_and_spending/1079/payments_over_500,01-Feb-2021,Housing & Communities,RIGHT TO CARE LTD.,Neighbourhoods,1306.80,Rents,2021P11_CR00471,133426
Sandwell Metropolitan Borough Council,http://www.sandwell.gov.uk/info/200202/performance_and_spending/1079/payments_over_500,01-Feb-2021,Housing & Communities,RIGHT TO CARE LTD.,Neighbourhoods,1306.80,Rents,2021P11_CR00472,133426
Sandwell Metropolitan Borough Council,http://www.sandwell.gov.uk/info/200202/performance_and_spending/1079/payments_over_500,01-Feb-2021,Housing & Communities,SANDWELL LIFT PROJECT COMPANY (NO 3) LIMITED,Neighbourhoods,2253.46,Water Services,2021P11_CR00473,113986
Sandwell Metropolitan Borough Council,http://www.sandwell.gov.uk/info/200202/performance_and_spending/1079/payments_over_500,02-Feb-2021,Housing & Communities,SERCO LIMITED,Neighbourhoods,689.18,Externally Purchased Professional Services ,2021P11_CR00474,53771
Sandwell Metropolitan Borough Council,http://www.sandwell.gov.uk/info/200202/performance_and_spending/1079/payments_over_500,01-Feb-2021,Housing & Communities,SERCO LIMITED,Neighbourhoods,2776.74,Waste Disposal Charges,2021P11_CR00475,53771
Sandwell Metropolitan Borough Council,http://www.sandwell.gov.uk/info/200202/performance_and_spending/1079/payments_over_500,20-Feb-2021,Housing & Communities,SERCO LIMITED,Neighbourhoods,4986.93,Waste Disposal Charges,2021P11_CR00476,53771
Sandwell Metropolitan Borough Council,http://www.sandwell.gov.uk/info/200202/performance_and_spending/1079/payments_over_500,01-Feb-2021,Housing & Communities,SERCO LIMITED,Neighbourhoods,14262.31,Waste Disposal Charges,2021P11_CR00477,53771
Sandwell Metropolitan Borough Council,http://www.sandwell.gov.uk/info/200202/performance_and_spending/1079/payments_over_500,01-Feb-2021,Housing & Communities,SERCO LIMITED,Neighbourhoods,1505301.44,Waste Disposal Charges,2021P11_CR00478,53771
Sandwell Metropolitan Borough Council,http://www.sandwell.gov.uk/info/200202/performance_and_spending/1079/payments_over_500,04-Feb-2021,Housing & Communities,SUEZ RECYLING AND RECOVERY HOLDINGS UK LTD,Neighbourhoods,926.42,Waste Disposal Charges,2021P11_CR00479,129939
Sandwell Metropolitan Borough Council,http://www.sandwell.gov.uk/info/200202/performance_and_spending/1079/payments_over_500,01-Feb-2021,Housing & Communities,TELENT TECHNOLOGY SERVICES LIMITED,Housing & Communities,44237.52,Operational Services ,2021P11_CR00480,26331
Sandwell Metropolitan Borough Council,http://www.sandwell.gov.uk/info/200202/performance_and_spending/1079/payments_over_500,01-Feb-2021,Housing & Communities,TH WHITE LIMITED,Neighbourhoods,780.00,Materials & Consumables,2021P11_CR00481,01774713
Sandwell Metropolitan Borough Council,http://www.sandwell.gov.uk/info/200202/performance_and_spending/1079/payments_over_500,13-Feb-2021,Housing & Communities,TOTAL GAS AND POWER LIMITED,Neighbourhoods,828.25,Electricity,2021P11_CR00482,107605
Sandwell Metropolitan Borough Council,http://www.sandwell.gov.uk/info/200202/performance_and_spending/1079/payments_over_500,13-Feb-2021,Housing & Communities,TOTAL GAS AND POWER LIMITED,Neighbourhoods,824.20,Gas,2021P11_CR00483,107605
Sandwell Metropolitan Borough Council,http://www.sandwell.gov.uk/info/200202/performance_and_spending/1079/payments_over_500,01-Feb-2021,Housing & Communities,WATES CONSTRUCTION LTD                                 01,Housing & Communities,1214952.89,"CIP - New Construction,Conversion, Enhancement & Reno",2021P11_CR00484,77000882
Sandwell Metropolitan Borough Council,http://www.sandwell.gov.uk/info/200202/performance_and_spending/1079/payments_over_500,01-Feb-2021,Housing & Communities,WATES CONSTRUCTION LTD                                 01,Housing & Communities,1299757.38,"CIP - New Construction,Conversion, Enhancement & Reno",2021P11_CR00485,77000882
Sandwell Metropolitan Borough Council,http://www.sandwell.gov.uk/info/200202/performance_and_spending/1079/payments_over_500,18-Feb-2021,Housing & Communities,WYNNSTAY (AGRICULTURAL SUPPLIES) LIMITED,Neighbourhoods,571.52,Externally Purchased Professional Services ,2021P11_CR00486,121165
Sandwell Metropolitan Borough Council,http://www.sandwell.gov.uk/info/200202/performance_and_spending/1079/payments_over_500,04-Feb-2021,Housing & Communities,WYNNSTAY (AGRICULTURAL SUPPLIES) LIMITED,Neighbourhoods,1010.07,Externally Purchased Professional Services ,2021P11_CR00487,121165
Sandwell Metropolitan Borough Council,http://www.sandwell.gov.uk/info/200202/performance_and_spending/1079/payments_over_500,18-Feb-2021,Housing & Communities,WYNNSTAY (AGRICULTURAL SUPPLIES) LIMITED,Neighbourhoods,1081.91,Externally Purchased Professional Services ,2021P11_CR00488,121165
Sandwell Metropolitan Borough Council,http://www.sandwell.gov.uk/info/200202/performance_and_spending/1079/payments_over_500,01-Feb-2021,Housing & Communities,XEROX FINANCE LTD,Neighbourhoods,2402.82,Equipment & Furniture ,2021P11_CR00489,2269
Sandwell Metropolitan Borough Council,http://www.sandwell.gov.uk/info/200202/performance_and_spending/1079/payments_over_500,12-Feb-2021,Housing & Communities,XMA LTD,Neighbourhoods,1010.00,Equipment & Furniture ,2021P11_CR00490,01135462
Sandwell Metropolitan Borough Council,http://www.sandwell.gov.uk/info/200202/performance_and_spending/1079/payments_over_500,01-Feb-2021,Housing & Communities,XMA LTD,Neighbourhoods,23344.20,Equipment & Furniture ,2021P11_CR00491,01135462
Sandwell Metropolitan Borough Council,http://www.sandwell.gov.uk/info/200202/performance_and_spending/1079/payments_over_500,12-Feb-2021,Housing & Communities,XMA LTD,Neighbourhoods,1481.00,Externally Purchased Professional Services ,2021P11_CR00492,01135462
Sandwell Metropolitan Borough Council,http://www.sandwell.gov.uk/info/200202/performance_and_spending/1079/payments_over_500,08-Feb-2021,Housing & Communities,XMA LTD,Neighbourhoods,710.60,ICT ,2021P11_CR00493,01135462
Sandwell Metropolitan Borough Council,http://www.sandwell.gov.uk/info/200202/performance_and_spending/1079/payments_over_500,01-Feb-2021,Housing & Communities,XMA LTD,Neighbourhoods,18413.42,ICT ,2021P11_CR00494,01135462
Sandwell Metropolitan Borough Council,http://www.sandwell.gov.uk/info/200202/performance_and_spending/1079/payments_over_500,01-Feb-2021,Housing & Communities,XMA LTD,Neighbourhoods,28200.00,ICT ,2021P11_CR00495,01135462
Sandwell Metropolitan Borough Council,http://www.sandwell.gov.uk/info/200202/performance_and_spending/1079/payments_over_500,01-Feb-2021,Housing & Communities,XMA LTD,Neighbourhoods,34545.00,ICT ,2021P11_CR00496,01135462
Sandwell Metropolitan Borough Council,http://www.sandwell.gov.uk/info/200202/performance_and_spending/1079/payments_over_500,24-Feb-2021,Housing & Communities,REDACTED PERSONAL DATA,Neighbourhoods,500.00,Rents,2021P11_CR00497,REDACTED PERSONAL DATA
Sandwell Metropolitan Borough Council,http://www.sandwell.gov.uk/info/200202/performance_and_spending/1079/payments_over_500,24-Feb-2021,Housing & Communities,REDACTED PERSONAL DATA,Neighbourhoods,500.00,Rents,2021P11_CR00498,REDACTED PERSONAL DATA
Sandwell Metropolitan Borough Council,http://www.sandwell.gov.uk/info/200202/performance_and_spending/1079/payments_over_500,24-Feb-2021,Housing & Communities,REDACTED PERSONAL DATA,Neighbourhoods,550.00,Rents,2021P11_CR00499,REDACTED PERSONAL DATA
Sandwell Metropolitan Borough Council,http://www.sandwell.gov.uk/info/200202/performance_and_spending/1079/payments_over_500,24-Feb-2021,Housing & Communities,REDACTED PERSONAL DATA,Neighbourhoods,500.00,Rents,2021P11_CR00500,REDACTED PERSONAL DATA
Sandwell Metropolitan Borough Council,http://www.sandwell.gov.uk/info/200202/performance_and_spending/1079/payments_over_500,24-Feb-2021,Housing & Communities,REDACTED PERSONAL DATA,Neighbourhoods,500.00,Rents,2021P11_CR00501,REDACTED PERSONAL DATA
Sandwell Metropolitan Borough Council,http://www.sandwell.gov.uk/info/200202/performance_and_spending/1079/payments_over_500,24-Feb-2021,Housing & Communities,REDACTED PERSONAL DATA,Neighbourhoods,550.00,Rents,2021P11_CR00502,REDACTED PERSONAL DATA
Sandwell Metropolitan Borough Council,http://www.sandwell.gov.uk/info/200202/performance_and_spending/1079/payments_over_500,24-Feb-2021,Housing & Communities,REDACTED PERSONAL DATA,Neighbourhoods,500.00,Rents,2021P11_CR00503,REDACTED PERSONAL DATA
Sandwell Metropolitan Borough Council,http://www.sandwell.gov.uk/info/200202/performance_and_spending/1079/payments_over_500,24-Feb-2021,Housing & Communities,REDACTED PERSONAL DATA,Neighbourhoods,500.00,Rents,2021P11_CR00504,REDACTED PERSONAL DATA
Sandwell Metropolitan Borough Council,http://www.sandwell.gov.uk/info/200202/performance_and_spending/1079/payments_over_500,24-Feb-2021,Housing & Communities,REDACTED PERSONAL DATA,Neighbourhoods,550.00,Rents,2021P11_CR00505,REDACTED PERSONAL DATA
Sandwell Metropolitan Borough Council,http://www.sandwell.gov.uk/info/200202/performance_and_spending/1079/payments_over_500,24-Feb-2021,Housing & Communities,REDACTED PERSONAL DATA,Neighbourhoods,500.00,Rents,2021P11_CR00506,REDACTED PERSONAL DATA
Sandwell Metropolitan Borough Council,http://www.sandwell.gov.uk/info/200202/performance_and_spending/1079/payments_over_500,24-Feb-2021,Housing & Communities,REDACTED PERSONAL DATA,Neighbourhoods,500.00,Rents,2021P11_CR00507,REDACTED PERSONAL DATA
Sandwell Metropolitan Borough Council,http://www.sandwell.gov.uk/info/200202/performance_and_spending/1079/payments_over_500,24-Feb-2021,Housing & Communities,REDACTED PERSONAL DATA,Neighbourhoods,500.00,Rents,2021P11_CR00508,REDACTED PERSONAL DATA
Sandwell Metropolitan Borough Council,http://www.sandwell.gov.uk/info/200202/performance_and_spending/1079/payments_over_500,24-Feb-2021,Housing & Communities,REDACTED PERSONAL DATA,Neighbourhoods,550.00,Rents,2021P11_CR00509,REDACTED PERSONAL DATA
Sandwell Metropolitan Borough Council,http://www.sandwell.gov.uk/info/200202/performance_and_spending/1079/payments_over_500,24-Feb-2021,Housing & Communities,REDACTED PERSONAL DATA,Neighbourhoods,550.00,Rents,2021P11_CR00510,REDACTED PERSONAL DATA
Sandwell Metropolitan Borough Council,http://www.sandwell.gov.uk/info/200202/performance_and_spending/1079/payments_over_500,24-Feb-2021,Housing & Communities,REDACTED PERSONAL DATA,Neighbourhoods,500.00,Rents,2021P11_CR00511,REDACTED PERSONAL DATA
Sandwell Metropolitan Borough Council,http://www.sandwell.gov.uk/info/200202/performance_and_spending/1079/payments_over_500,24-Feb-2021,Housing & Communities,REDACTED PERSONAL DATA,Neighbourhoods,550.00,Rents,2021P11_CR00512,REDACTED PERSONAL DATA
Sandwell Metropolitan Borough Council,http://www.sandwell.gov.uk/info/200202/performance_and_spending/1079/payments_over_500,24-Feb-2021,Housing & Communities,REDACTED PERSONAL DATA,Neighbourhoods,500.00,Rents,2021P11_CR00513,REDACTED PERSONAL DATA
Sandwell Metropolitan Borough Council,http://www.sandwell.gov.uk/info/200202/performance_and_spending/1079/payments_over_500,24-Feb-2021,Housing & Communities,REDACTED PERSONAL DATA,Neighbourhoods,500.00,Rents,2021P11_CR00514,REDACTED PERSONAL DATA
Sandwell Metropolitan Borough Council,http://www.sandwell.gov.uk/info/200202/performance_and_spending/1079/payments_over_500,24-Feb-2021,Housing & Communities,REDACTED PERSONAL DATA,Neighbourhoods,900.00,Rents,2021P11_CR00515,REDACTED PERSONAL DATA
Sandwell Metropolitan Borough Council,http://www.sandwell.gov.uk/info/200202/performance_and_spending/1079/payments_over_500,24-Feb-2021,Housing & Communities,REDACTED PERSONAL DATA,Neighbourhoods,500.00,Rents,2021P11_CR00516,REDACTED PERSONAL DATA
Sandwell Metropolitan Borough Council,http://www.sandwell.gov.uk/info/200202/performance_and_spending/1079/payments_over_500,24-Feb-2021,Housing & Communities,REDACTED PERSONAL DATA,Neighbourhoods,1000.00,Rents,2021P11_CR00517,REDACTED PERSONAL DATA
Sandwell Metropolitan Borough Council,http://www.sandwell.gov.uk/info/200202/performance_and_spending/1079/payments_over_500,24-Feb-2021,Housing & Communities,REDACTED PERSONAL DATA,Neighbourhoods,500.00,Rents,2021P11_CR00518,REDACTED PERSONAL DATA
Sandwell Metropolitan Borough Council,http://www.sandwell.gov.uk/info/200202/performance_and_spending/1079/payments_over_500,24-Feb-2021,Housing & Communities,REDACTED PERSONAL DATA,Neighbourhoods,500.00,Rents,2021P11_CR00519,REDACTED PERSONAL DATA
Sandwell Metropolitan Borough Council,http://www.sandwell.gov.uk/info/200202/performance_and_spending/1079/payments_over_500,24-Feb-2021,Housing & Communities,MULTISTORY,Neighbourhoods,28541.50,Grant Payments,2021P11_CR00520,6471
Sandwell Metropolitan Borough Council,http://www.sandwell.gov.uk/info/200202/performance_and_spending/1079/payments_over_500,01-Feb-2021,Housing Revenue Account Capital,HIGGS & SONS SOLICITORS,Housing Revenue Account Capital,134875.00,CIP - Acquisition of Land & Existing Buildings,2021P11_CR00521,120965
Sandwell Metropolitan Borough Council,http://www.sandwell.gov.uk/info/200202/performance_and_spending/1079/payments_over_500,10-Feb-2021,Housing Revenue Account Capital,HIGGS & SONS SOLICITORS,Housing Revenue Account Capital,155562.20,CIP - Acquisition of Land & Existing Buildings,2021P11_CR00522,120965
Sandwell Metropolitan Borough Council,http://www.sandwell.gov.uk/info/200202/performance_and_spending/1079/payments_over_500,11-Feb-2021,Housing Revenue Account Capital,HIGGS & SONS SOLICITORS,Housing Revenue Account Capital,186459.20,CIP - Acquisition of Land & Existing Buildings,2021P11_CR00523,120965
Sandwell Metropolitan Borough Council,http://www.sandwell.gov.uk/info/200202/performance_and_spending/1079/payments_over_500,11-Feb-2021,Housing Revenue Account Capital,HIGGS & SONS SOLICITORS,Housing Revenue Account Capital,191612.20,CIP - Acquisition of Land & Existing Buildings,2021P11_CR00524,120965
Sandwell Metropolitan Borough Council,http://www.sandwell.gov.uk/info/200202/performance_and_spending/1079/payments_over_500,16-Feb-2021,Housing Revenue Account Capital,HIGGS & SONS SOLICITORS,Housing Revenue Account Capital,129718.00,CIP - Acquisition of Land & Existing Buildings,2021P11_CR00525,120965
Sandwell Metropolitan Borough Council,http://www.sandwell.gov.uk/info/200202/performance_and_spending/1079/payments_over_500,16-Feb-2021,Housing Revenue Account Capital,HIGGS & SONS SOLICITORS,Housing Revenue Account Capital,134871.00,CIP - Acquisition of Land & Existing Buildings,2021P11_CR00526,120965
Sandwell Metropolitan Borough Council,http://www.sandwell.gov.uk/info/200202/performance_and_spending/1079/payments_over_500,17-Feb-2021,Housing Revenue Account Capital,HIGGS & SONS SOLICITORS,Housing Revenue Account Capital,136958.00,CIP - Acquisition of Land & Existing Buildings,2021P11_CR00527,120965
Sandwell Metropolitan Borough Council,http://www.sandwell.gov.uk/info/200202/performance_and_spending/1079/payments_over_500,18-Feb-2021,Housing Revenue Account Capital,HIGGS & SONS SOLICITORS,Housing Revenue Account Capital,173100.60,CIP - Acquisition of Land & Existing Buildings,2021P11_CR00528,120965
Sandwell Metropolitan Borough Council,http://www.sandwell.gov.uk/info/200202/performance_and_spending/1079/payments_over_500,26-Feb-2021,Housing Revenue Account Capital,HIGGS & SONS SOLICITORS,Housing Revenue Account Capital,134868.00,CIP - Acquisition of Land & Existing Buildings,2021P11_CR00529,120965
Sandwell Metropolitan Borough Council,http://www.sandwell.gov.uk/info/200202/performance_and_spending/1079/payments_over_500,24-Feb-2021,Housing Revenue Account Capital,HIGGS & SONS SOLICITORS,Housing Revenue Account Capital,169982.20,CIP - Acquisition of Land & Existing Buildings,2021P11_CR00530,120965
Sandwell Metropolitan Borough Council,http://www.sandwell.gov.uk/info/200202/performance_and_spending/1079/payments_over_500,26-Feb-2021,Housing Revenue Account Capital,HIGGS & SONS SOLICITORS,Housing Revenue Account Capital,124568.00,CIP - Acquisition of Land & Existing Buildings,2021P11_CR00531,120965
Sandwell Metropolitan Borough Council,http://www.sandwell.gov.uk/info/200202/performance_and_spending/1079/payments_over_500,11-Feb-2021,Housing Revenue Account Capital,J A BEDWARD & SON                                                           02,Housing Revenue Account Capital,19088.94,Deferred Charges/Grant Payments,2021P11_CR00532,77001727
Sandwell Metropolitan Borough Council,http://www.sandwell.gov.uk/info/200202/performance_and_spending/1079/payments_over_500,18-Feb-2021,Housing Revenue Account Capital,PR PROPERTY MAINTENANCE,Housing Revenue Account Capital,3077.00,Deferred Charges/Grant Payments,2021P11_CR00533,33836
Sandwell Metropolitan Borough Council,http://www.sandwell.gov.uk/info/200202/performance_and_spending/1079/payments_over_500,04-Feb-2021,Housing Revenue Account Capital,PR PROPERTY MAINTENANCE,Housing Revenue Account Capital,3280.00,Deferred Charges/Grant Payments,2021P11_CR00534,33836
Sandwell Metropolitan Borough Council,http://www.sandwell.gov.uk/info/200202/performance_and_spending/1079/payments_over_500,18-Feb-2021,Housing Revenue Account Capital,PR PROPERTY MAINTENANCE,Housing Revenue Account Capital,5340.91,Deferred Charges/Grant Payments,2021P11_CR00535,33836
Sandwell Metropolitan Borough Council,http://www.sandwell.gov.uk/info/200202/performance_and_spending/1079/payments_over_500,15-Feb-2021,Housing Revenue Account Capital,PR PROPERTY MAINTENANCE,Housing Revenue Account Capital,5695.48,Deferred Charges/Grant Payments,2021P11_CR00536,33836
Sandwell Metropolitan Borough Council,http://www.sandwell.gov.uk/info/200202/performance_and_spending/1079/payments_over_500,01-Feb-2021,Housing Revenue Account Capital,PR PROPERTY MAINTENANCE,Housing Revenue Account Capital,6252.26,Deferred Charges/Grant Payments,2021P11_CR00537,33836
Sandwell Metropolitan Borough Council,http://www.sandwell.gov.uk/info/200202/performance_and_spending/1079/payments_over_500,04-Feb-2021,Housing Revenue Account Capital,PR PROPERTY MAINTENANCE,Housing Revenue Account Capital,6503.51,Deferred Charges/Grant Payments,2021P11_CR00538,33836
Sandwell Metropolitan Borough Council,http://www.sandwell.gov.uk/info/200202/performance_and_spending/1079/payments_over_500,18-Feb-2021,Housing Revenue Account Capital,PR PROPERTY MAINTENANCE,Housing Revenue Account Capital,6582.48,Deferred Charges/Grant Payments,2021P11_CR00539,33836
Sandwell Metropolitan Borough Council,http://www.sandwell.gov.uk/info/200202/performance_and_spending/1079/payments_over_500,01-Feb-2021,Housing Revenue Account Capital,PR PROPERTY MAINTENANCE,Housing Revenue Account Capital,7158.72,Deferred Charges/Grant Payments,2021P11_CR00540,33836
Sandwell Metropolitan Borough Council,http://www.sandwell.gov.uk/info/200202/performance_and_spending/1079/payments_over_500,04-Feb-2021,Housing Revenue Account Capital,PR PROPERTY MAINTENANCE,Housing Revenue Account Capital,7323.00,Deferred Charges/Grant Payments,2021P11_CR00541,33836
Sandwell Metropolitan Borough Council,http://www.sandwell.gov.uk/info/200202/performance_and_spending/1079/payments_over_500,18-Feb-2021,Housing Revenue Account Capital,PR PROPERTY MAINTENANCE,Housing Revenue Account Capital,7656.10,Deferred Charges/Grant Payments,2021P11_CR00542,33836
Sandwell Metropolitan Borough Council,http://www.sandwell.gov.uk/info/200202/performance_and_spending/1079/payments_over_500,04-Feb-2021,Housing Revenue Account Capital,PR PROPERTY MAINTENANCE,Housing Revenue Account Capital,7695.66,Deferred Charges/Grant Payments,2021P11_CR00543,33836
Sandwell Metropolitan Borough Council,http://www.sandwell.gov.uk/info/200202/performance_and_spending/1079/payments_over_500,01-Feb-2021,Housing Revenue Account Capital,PR PROPERTY MAINTENANCE,Housing Revenue Account Capital,7713.21,Deferred Charges/Grant Payments,2021P11_CR00544,33836
Sandwell Metropolitan Borough Council,http://www.sandwell.gov.uk/info/200202/performance_and_spending/1079/payments_over_500,15-Feb-2021,Housing Revenue Account Capital,PR PROPERTY MAINTENANCE,Housing Revenue Account Capital,8238.30,Deferred Charges/Grant Payments,2021P11_CR00545,33836
Sandwell Metropolitan Borough Council,http://www.sandwell.gov.uk/info/200202/performance_and_spending/1079/payments_over_500,18-Feb-2021,Housing Revenue Account Capital,PR PROPERTY MAINTENANCE,Housing Revenue Account Capital,8933.11,Deferred Charges/Grant Payments,2021P11_CR00546,33836
Sandwell Metropolitan Borough Council,http://www.sandwell.gov.uk/info/200202/performance_and_spending/1079/payments_over_500,10-Feb-2021,Housing Revenue Account Capital,PR PROPERTY MAINTENANCE,Housing Revenue Account Capital,16584.30,Deferred Charges/Grant Payments,2021P11_CR00547,33836
Sandwell Metropolitan Borough Council,http://www.sandwell.gov.uk/info/200202/performance_and_spending/1079/payments_over_500,18-Feb-2021,Housing Revenue Account Capital,PR PROPERTY MAINTENANCE,Housing Revenue Account Capital,49043.76,Deferred Charges/Grant Payments,2021P11_CR00548,33836
Sandwell Metropolitan Borough Council,http://www.sandwell.gov.uk/info/200202/performance_and_spending/1079/payments_over_500,16-Feb-2021,Housing Revenue Account Capital,AVISON YOUNG (UK) LTD,Housing Revenue Account Capital,3100.00,Consultancy,2021P11_CR00549,4468
Sandwell Metropolitan Borough Council,http://www.sandwell.gov.uk/info/200202/performance_and_spending/1079/payments_over_500,01-Feb-2021,Housing Revenue Account Capital,AXIS EUROPE PLC                                                           02,Housing Revenue Account Capital,5100.32,Deferred Charges/Grant Payments,2021P11_CR00550,64946
Sandwell Metropolitan Borough Council,http://www.sandwell.gov.uk/info/200202/performance_and_spending/1079/payments_over_500,10-Feb-2021,Housing Revenue Account Capital,FRASER WOOD (MIDLANDS) LIMITED,Housing Revenue Account Capital,15310.00,Externally Purchased Professional Services ,2021P11_CR00551,57157
Sandwell Metropolitan Borough Council,http://www.sandwell.gov.uk/info/200202/performance_and_spending/1079/payments_over_500,01-Feb-2021,Housing Revenue Account Capital,LOVELL PARTNERSHIPS  LTD,Housing Revenue Account Capital,16638.62,"CIP - New Construction,Conversion, Enhancement & Reno",2021P11_CR00552,77007398
Sandwell Metropolitan Borough Council,http://www.sandwell.gov.uk/info/200202/performance_and_spending/1079/payments_over_500,04-Feb-2021,Housing Revenue Account Capital,LOVELL PARTNERSHIPS  LTD,Housing Revenue Account Capital,36112.25,"CIP - New Construction,Conversion, Enhancement & Reno",2021P11_CR00553,77007398
Sandwell Metropolitan Borough Council,http://www.sandwell.gov.uk/info/200202/performance_and_spending/1079/payments_over_500,08-Feb-2021,Housing Revenue Account Capital,LOVELL PARTNERSHIPS  LTD,Housing Revenue Account Capital,43636.31,"CIP - New Construction,Conversion, Enhancement & Reno",2021P11_CR00554,77007398
Sandwell Metropolitan Borough Council,http://www.sandwell.gov.uk/info/200202/performance_and_spending/1079/payments_over_500,08-Feb-2021,Housing Revenue Account Capital,LOVELL PARTNERSHIPS  LTD,Housing Revenue Account Capital,57158.95,"CIP - New Construction,Conversion, Enhancement & Reno",2021P11_CR00555,77007398
Sandwell Metropolitan Borough Council,http://www.sandwell.gov.uk/info/200202/performance_and_spending/1079/payments_over_500,04-Feb-2021,Housing Revenue Account Capital,LOVELL PARTNERSHIPS  LTD,Housing Revenue Account Capital,522011.01,"CIP - New Construction,Conversion, Enhancement & Reno",2021P11_CR00556,77007398
Sandwell Metropolitan Borough Council,http://www.sandwell.gov.uk/info/200202/performance_and_spending/1079/payments_over_500,11-Feb-2021,Housing Revenue Account Capital,MILTON KEYNES SURVEYS LIMITED,Housing Revenue Account Capital,1515.00,"CIP - New Construction,Conversion, Enhancement & Reno",2021P11_CR00557,104892
Sandwell Metropolitan Borough Council,http://www.sandwell.gov.uk/info/200202/performance_and_spending/1079/payments_over_500,10-Feb-2021,Housing Revenue Account Capital,OPENVIEW SECURITY SOLUTIONS LIMITED,Housing Revenue Account Capital,15752.64,"CIP - New Construction,Conversion, Enhancement & Reno",2021P11_CR00558,77000151
Sandwell Metropolitan Borough Council,http://www.sandwell.gov.uk/info/200202/performance_and_spending/1079/payments_over_500,01-Feb-2021,Housing Revenue Account Capital,POWRED HEATING COMPONENTS LIMITED,Housing Revenue Account Capital,3182.65,Materials & Consumables,2021P11_CR00559,133978
Sandwell Metropolitan Borough Council,http://www.sandwell.gov.uk/info/200202/performance_and_spending/1079/payments_over_500,01-Feb-2021,Housing Revenue Account Capital,POWRED HEATING COMPONENTS LIMITED,Housing Revenue Account Capital,10758.65,Materials & Consumables,2021P11_CR00560,133978
Sandwell Metropolitan Borough Council,http://www.sandwell.gov.uk/info/200202/performance_and_spending/1079/payments_over_500,01-Feb-2021,Housing Revenue Account Capital,POWRED HEATING COMPONENTS LIMITED,Housing Revenue Account Capital,12437.01,Materials & Consumables,2021P11_CR00561,133978
Sandwell Metropolitan Borough Council,http://www.sandwell.gov.uk/info/200202/performance_and_spending/1079/payments_over_500,06-Feb-2021,Housing Revenue Account Capital,POWRED HEATING COMPONENTS LIMITED,Housing Revenue Account Capital,13116.63,Materials & Consumables,2021P11_CR00562,133978
Sandwell Metropolitan Borough Council,http://www.sandwell.gov.uk/info/200202/performance_and_spending/1079/payments_over_500,13-Feb-2021,Housing Revenue Account Capital,POWRED HEATING COMPONENTS LIMITED,Housing Revenue Account Capital,13885.07,Materials & Consumables,2021P11_CR00563,133978
Sandwell Metropolitan Borough Council,http://www.sandwell.gov.uk/info/200202/performance_and_spending/1079/payments_over_500,24-Feb-2021,Housing Revenue Account Capital,SEDDON CONSTRUCTION LIMITED,Housing Revenue Account Capital,380444.68,"CIP - New Construction,Conversion, Enhancement & Reno",2021P11_CR00564,132999
Sandwell Metropolitan Borough Council,http://www.sandwell.gov.uk/info/200202/performance_and_spending/1079/payments_over_500,01-Feb-2021,Housing Revenue Account Capital,SURE MAINTENANCE LIMITED,Housing Revenue Account Capital,323105.73,"CIP - New Construction,Conversion, Enhancement & Reno",2021P11_CR00565,93926
Sandwell Metropolitan Borough Council,http://www.sandwell.gov.uk/info/200202/performance_and_spending/1079/payments_over_500,01-Feb-2021,Housing Revenue Account Capital,TERRY GROUP LIMITED,Housing Revenue Account Capital,22676.00,Deferred Charges/Grant Payments,2021P11_CR00566,77002029
Sandwell Metropolitan Borough Council,http://www.sandwell.gov.uk/info/200202/performance_and_spending/1079/payments_over_500,17-Feb-2021,Housing Revenue Account Capital,VINCI CONSTRUCTION LTD,Housing Revenue Account Capital,89489.70,"CIP - New Construction,Conversion, Enhancement & Reno",2021P11_CR00567,36361
Sandwell Metropolitan Borough Council,http://www.sandwell.gov.uk/info/200202/performance_and_spending/1079/payments_over_500,16-Feb-2021,Housing Revenue Account Capital,VINCI CONSTRUCTION LTD,Housing Revenue Account Capital,960970.73,"CIP - New Construction,Conversion, Enhancement & Reno",2021P11_CR00568,36361
Sandwell Metropolitan Borough Council,http://www.sandwell.gov.uk/info/200202/performance_and_spending/1079/payments_over_500,11-Feb-2021,Housing Revenue Account Capital,VINCI CONSTRUCTION LTD,Housing Revenue Account Capital,4835.34,Deferred Charges/Grant Payments,2021P11_CR00569,36361
Sandwell Metropolitan Borough Council,http://www.sandwell.gov.uk/info/200202/performance_and_spending/1079/payments_over_500,11-Feb-2021,Housing Revenue Account Capital,VINCI CONSTRUCTION LTD,Housing Revenue Account Capital,12668.55,Deferred Charges/Grant Payments,2021P11_CR00570,36361
Sandwell Metropolitan Borough Council,http://www.sandwell.gov.uk/info/200202/performance_and_spending/1079/payments_over_500,23-Feb-2021,Housing Revenue Account Capital,VINCI CONSTRUCTION LTD,Housing Revenue Account Capital,66144.38,Deferred Charges/Grant Payments,2021P11_CR00571,36361
Sandwell Metropolitan Borough Council,http://www.sandwell.gov.uk/info/200202/performance_and_spending/1079/payments_over_500,23-Feb-2021,Individual School Budgets With Inclusion,BOOKWORMS DAYCARE BRICKHOUSE,Individual School Budgets With Inclusion,1995.84,Grant Payments,2021P11_CR00572,127727
Sandwell Metropolitan Borough Council,http://www.sandwell.gov.uk/info/200202/performance_and_spending/1079/payments_over_500,23-Feb-2021,Individual School Budgets With Inclusion,FIRST STEPS OLDBURY,Individual School Budgets With Inclusion,8526.87,Grant Payments,2021P11_CR00573,118886
Sandwell Metropolitan Borough Council,http://www.sandwell.gov.uk/info/200202/performance_and_spending/1079/payments_over_500,23-Feb-2021,Individual School Budgets With Inclusion,KANGAROO POUCH AT GREAT BRIDGE,Individual School Budgets With Inclusion,10335.60,Grant Payments,2021P11_CR00574,129771
Sandwell Metropolitan Borough Council,http://www.sandwell.gov.uk/info/200202/performance_and_spending/1079/payments_over_500,23-Feb-2021,Individual School Budgets With Inclusion,KANGAROO POUCH AT TIVIDALE,Individual School Budgets With Inclusion,5167.80,Grant Payments,2021P11_CR00575,113715
Sandwell Metropolitan Borough Council,http://www.sandwell.gov.uk/info/200202/performance_and_spending/1079/payments_over_500,23-Feb-2021,Individual School Budgets With Inclusion,KANGAROO POUCH CHARLEMONT,Individual School Budgets With Inclusion,4704.48,Grant Payments,2021P11_CR00576,117283
Sandwell Metropolitan Borough Council,http://www.sandwell.gov.uk/info/200202/performance_and_spending/1079/payments_over_500,23-Feb-2021,Individual School Budgets With Inclusion,LITTLE SAPLINGS CHILDCARE CENTRES,Individual School Budgets With Inclusion,5749.92,Grant Payments,2021P11_CR00577,131043
Sandwell Metropolitan Borough Council,http://www.sandwell.gov.uk/info/200202/performance_and_spending/1079/payments_over_500,23-Feb-2021,Individual School Budgets With Inclusion,LITTLE STEPPERS,Individual School Budgets With Inclusion,3783.78,Grant Payments,2021P11_CR00578,120240
Sandwell Metropolitan Borough Council,http://www.sandwell.gov.uk/info/200202/performance_and_spending/1079/payments_over_500,10-Feb-2021,Individual School Budgets With Inclusion,MOORLANDS LITTLE LEARNERS PLAYGROUP,Individual School Budgets With Inclusion,556.50,Grant Payments,2021P11_CR00579,46390
Sandwell Metropolitan Borough Council,http://www.sandwell.gov.uk/info/200202/performance_and_spending/1079/payments_over_500,23-Feb-2021,Individual School Budgets With Inclusion,MOORLANDS LITTLE LEARNERS PLAYGROUP,Individual School Budgets With Inclusion,5684.58,Grant Payments,2021P11_CR00580,46390
Sandwell Metropolitan Borough Council,http://www.sandwell.gov.uk/info/200202/performance_and_spending/1079/payments_over_500,23-Feb-2021,Individual School Budgets With Inclusion,PITTA PATTA DAYCARE,Individual School Budgets With Inclusion,7056.72,Grant Payments,2021P11_CR00581,114742
Sandwell Metropolitan Borough Council,http://www.sandwell.gov.uk/info/200202/performance_and_spending/1079/payments_over_500,23-Feb-2021,Individual School Budgets With Inclusion,ROOTS & SHOOTS PLAYGROUP,Individual School Budgets With Inclusion,5601.42,Grant Payments,2021P11_CR00582,75502
Sandwell Metropolitan Borough Council,http://www.sandwell.gov.uk/info/200202/performance_and_spending/1079/payments_over_500,23-Feb-2021,Individual School Budgets With Inclusion,SANTOS DAY NURSERIES,Individual School Budgets With Inclusion,12260.16,Grant Payments,2021P11_CR00583,129262
Sandwell Metropolitan Borough Council,http://www.sandwell.gov.uk/info/200202/performance_and_spending/1079/payments_over_500,23-Feb-2021,Individual School Budgets With Inclusion,SUMMERHILL LITTLE TREASURES,Individual School Budgets With Inclusion,16204.32,Grant Payments,2021P11_CR00584,89880
Sandwell Metropolitan Borough Council,http://www.sandwell.gov.uk/info/200202/performance_and_spending/1079/payments_over_500,23-Feb-2021,Individual School Budgets With Inclusion,TINY STEPS,Individual School Budgets With Inclusion,1829.52,Grant Payments,2021P11_CR00585,125778
Sandwell Metropolitan Borough Council,http://www.sandwell.gov.uk/info/200202/performance_and_spending/1079/payments_over_500,23-Feb-2021,Individual School Budgets With Inclusion,UNITED KIDS CHILDCARE,Individual School Budgets With Inclusion,5227.20,Grant Payments,2021P11_CR00586,134806
Sandwell Metropolitan Borough Council,http://www.sandwell.gov.uk/info/200202/performance_and_spending/1079/payments_over_500,10-Feb-2021,Individual School Budgets With Inclusion,WEST BROMWICH & DISTRICT Y.M.C.A. COMMUNITY ENTERPRISES,Individual School Budgets With Inclusion,1780.80,Grant Payments,2021P11_CR00587,01088376
Sandwell Metropolitan Borough Council,http://www.sandwell.gov.uk/info/200202/performance_and_spending/1079/payments_over_500,23-Feb-2021,Individual School Budgets With Inclusion,WEST BROMWICH & DISTRICT Y.M.C.A. COMMUNITY ENTERPRISES,Individual School Budgets With Inclusion,13899.60,Grant Payments,2021P11_CR00588,01088376
Sandwell Metropolitan Borough Council,http://www.sandwell.gov.uk/info/200202/performance_and_spending/1079/payments_over_500,23-Feb-2021,Individual School Budgets With Inclusion,5 STAR DAY NURSERY - OLDBURY,Individual School Budgets With Inclusion,9818.82,Grant Payments,2021P11_CR00589,120730
Sandwell Metropolitan Borough Council,http://www.sandwell.gov.uk/info/200202/performance_and_spending/1079/payments_over_500,23-Feb-2021,Individual School Budgets With Inclusion,ABC DAY NURSERY & PRE SCHOOL LTD,Individual School Budgets With Inclusion,13026.42,Grant Payments,2021P11_CR00590,01472823
Sandwell Metropolitan Borough Council,http://www.sandwell.gov.uk/info/200202/performance_and_spending/1079/payments_over_500,23-Feb-2021,Individual School Budgets With Inclusion,AL KAHIR SCHOOL,Individual School Budgets With Inclusion,4704.48,Grant Payments,2021P11_CR00591,128728
Sandwell Metropolitan Borough Council,http://www.sandwell.gov.uk/info/200202/performance_and_spending/1079/payments_over_500,10-Feb-2021,Individual School Budgets With Inclusion,BANANA MOON DAY NURSERY,Individual School Budgets With Inclusion,556.50,Grant Payments,2021P11_CR00592,124220
Sandwell Metropolitan Borough Council,http://www.sandwell.gov.uk/info/200202/performance_and_spending/1079/payments_over_500,23-Feb-2021,Individual School Budgets With Inclusion,BANANA MOON DAY NURSERY,Individual School Budgets With Inclusion,8624.88,Grant Payments,2021P11_CR00593,124220
Sandwell Metropolitan Borough Council,http://www.sandwell.gov.uk/info/200202/performance_and_spending/1079/payments_over_500,23-Feb-2021,Individual School Budgets With Inclusion,BLOXCIDGE HOUSE DAY NURSERY,Individual School Budgets With Inclusion,8785.26,Grant Payments,2021P11_CR00594,82862
Sandwell Metropolitan Borough Council,http://www.sandwell.gov.uk/info/200202/performance_and_spending/1079/payments_over_500,23-Feb-2021,Individual School Budgets With Inclusion,BLUEBELLS DAY NURSERY,Individual School Budgets With Inclusion,3617.46,Grant Payments,2021P11_CR00595,01721314
Sandwell Metropolitan Borough Council,http://www.sandwell.gov.uk/info/200202/performance_and_spending/1079/payments_over_500,23-Feb-2021,Individual School Budgets With Inclusion,BLUEBERRY DAY NURSERY,Individual School Budgets With Inclusion,1277.10,Grant Payments,2021P11_CR00596,141884
Sandwell Metropolitan Borough Council,http://www.sandwell.gov.uk/info/200202/performance_and_spending/1079/payments_over_500,10-Feb-2021,Individual School Budgets With Inclusion,BOOKWORMS DAYCARE LIMITED,Individual School Budgets With Inclusion,667.80,Grant Payments,2021P11_CR00597,114741
Sandwell Metropolitan Borough Council,http://www.sandwell.gov.uk/info/200202/performance_and_spending/1079/payments_over_500,23-Feb-2021,Individual School Budgets With Inclusion,BOOKWORMS DAYCARE LIMITED,Individual School Budgets With Inclusion,12661.11,Grant Payments,2021P11_CR00598,114741
Sandwell Metropolitan Borough Council,http://www.sandwell.gov.uk/info/200202/performance_and_spending/1079/payments_over_500,10-Feb-2021,Individual School Budgets With Inclusion,BRIGHT LIGHTS DAY NURSERY,Individual School Budgets With Inclusion,667.80,Grant Payments,2021P11_CR00599,89877
Sandwell Metropolitan Borough Council,http://www.sandwell.gov.uk/info/200202/performance_and_spending/1079/payments_over_500,23-Feb-2021,Individual School Budgets With Inclusion,BRIGHT LIGHTS DAY NURSERY,Individual School Budgets With Inclusion,4152.06,Grant Payments,2021P11_CR00600,89877
Sandwell Metropolitan Borough Council,http://www.sandwell.gov.uk/info/200202/performance_and_spending/1079/payments_over_500,10-Feb-2021,Individual School Budgets With Inclusion,BUSY BEE NURSERY,Individual School Budgets With Inclusion,667.80,Grant Payments,2021P11_CR00601,01222577
Sandwell Metropolitan Borough Council,http://www.sandwell.gov.uk/info/200202/performance_and_spending/1079/payments_over_500,23-Feb-2021,Individual School Budgets With Inclusion,BUSY BEE NURSERY,Individual School Budgets With Inclusion,9147.60,Grant Payments,2021P11_CR00602,01222577
Sandwell Metropolitan Borough Council,http://www.sandwell.gov.uk/info/200202/performance_and_spending/1079/payments_over_500,23-Feb-2021,Individual School Budgets With Inclusion,CAP DAY NURSERY,Individual School Budgets With Inclusion,6756.75,Grant Payments,2021P11_CR00603,51154
Sandwell Metropolitan Borough Council,http://www.sandwell.gov.uk/info/200202/performance_and_spending/1079/payments_over_500,23-Feb-2021,Individual School Budgets With Inclusion,CATHERINE HOUSE DAY NURSERY,Individual School Budgets With Inclusion,3100.68,Grant Payments,2021P11_CR00604,08587767
Sandwell Metropolitan Borough Council,http://www.sandwell.gov.uk/info/200202/performance_and_spending/1079/payments_over_500,23-Feb-2021,Individual School Budgets With Inclusion,CONIFERS DAY NURSERY LTD,Individual School Budgets With Inclusion,7234.92,Grant Payments,2021P11_CR00605,131957
Sandwell Metropolitan Borough Council,http://www.sandwell.gov.uk/info/200202/performance_and_spending/1079/payments_over_500,23-Feb-2021,Individual School Budgets With Inclusion,DAFFODILS NURSERY LTD,Individual School Budgets With Inclusion,8286.30,Grant Payments,2021P11_CR00606,120066
Sandwell Metropolitan Borough Council,http://www.sandwell.gov.uk/info/200202/performance_and_spending/1079/payments_over_500,23-Feb-2021,Individual School Budgets With Inclusion,FAIRYTALES NURSERY LTD,Individual School Budgets With Inclusion,9818.82,Grant Payments,2021P11_CR00607,106247
Sandwell Metropolitan Borough Council,http://www.sandwell.gov.uk/info/200202/performance_and_spending/1079/payments_over_500,23-Feb-2021,Individual School Budgets With Inclusion,FATIMA DAY NURSERY,Individual School Budgets With Inclusion,5426.19,Grant Payments,2021P11_CR00608,131343
Sandwell Metropolitan Borough Council,http://www.sandwell.gov.uk/info/200202/performance_and_spending/1079/payments_over_500,23-Feb-2021,Individual School Budgets With Inclusion,FERNDALE PRIMARY SCHOOL                                    01,Individual School Budgets With Inclusion,11579.04,Grant Payments,2021P11_CR00609,11562
Sandwell Metropolitan Borough Council,http://www.sandwell.gov.uk/info/200202/performance_and_spending/1079/payments_over_500,23-Feb-2021,Individual School Budgets With Inclusion,FIREFLIES NURSERY LIMITED,Individual School Budgets With Inclusion,10193.04,Grant Payments,2021P11_CR00610,124120
Sandwell Metropolitan Borough Council,http://www.sandwell.gov.uk/info/200202/performance_and_spending/1079/payments_over_500,23-Feb-2021,Individual School Budgets With Inclusion,FIRST STEPS DAY NURSERY,Individual School Budgets With Inclusion,9931.68,Grant Payments,2021P11_CR00611,51155
Sandwell Metropolitan Borough Council,http://www.sandwell.gov.uk/info/200202/performance_and_spending/1079/payments_over_500,10-Feb-2021,Individual School Budgets With Inclusion,GNG NURSERY,Individual School Budgets With Inclusion,779.10,Grant Payments,2021P11_CR00612,114805
Sandwell Metropolitan Borough Council,http://www.sandwell.gov.uk/info/200202/performance_and_spending/1079/payments_over_500,23-Feb-2021,Individual School Budgets With Inclusion,GNG NURSERY,Individual School Budgets With Inclusion,12545.28,Grant Payments,2021P11_CR00613,114805
Sandwell Metropolitan Borough Council,http://www.sandwell.gov.uk/info/200202/performance_and_spending/1079/payments_over_500,23-Feb-2021,Individual School Budgets With Inclusion,HAPPY DAYS NURSERY (GREETS GREEN),Individual School Budgets With Inclusion,6949.80,Grant Payments,2021P11_CR00614,125840
Sandwell Metropolitan Borough Council,http://www.sandwell.gov.uk/info/200202/performance_and_spending/1079/payments_over_500,23-Feb-2021,Individual School Budgets With Inclusion,HAPPY DAYS PRE SCHOOL,Individual School Budgets With Inclusion,6272.64,Grant Payments,2021P11_CR00615,10017
Sandwell Metropolitan Borough Council,http://www.sandwell.gov.uk/info/200202/performance_and_spending/1079/payments_over_500,23-Feb-2021,Individual School Budgets With Inclusion,HUMPTY DUMPTYS DAY NURSERY,Individual School Budgets With Inclusion,11761.20,Grant Payments,2021P11_CR00616,08510771
Sandwell Metropolitan Borough Council,http://www.sandwell.gov.uk/info/200202/performance_and_spending/1079/payments_over_500,23-Feb-2021,Individual School Budgets With Inclusion,J C BENBOW T/A RAINBOW'S CHILDCARE,Individual School Budgets With Inclusion,3397.68,Grant Payments,2021P11_CR00617,114264
Sandwell Metropolitan Borough Council,http://www.sandwell.gov.uk/info/200202/performance_and_spending/1079/payments_over_500,23-Feb-2021,Individual School Budgets With Inclusion,KANGAROO POUCH LIMITED,Individual School Budgets With Inclusion,5749.92,Grant Payments,2021P11_CR00618,106981
Sandwell Metropolitan Borough Council,http://www.sandwell.gov.uk/info/200202/performance_and_spending/1079/payments_over_500,23-Feb-2021,Individual School Budgets With Inclusion,KIDDIES WORLD DAY NURSERY,Individual School Budgets With Inclusion,3136.32,Grant Payments,2021P11_CR00619,01546195
Sandwell Metropolitan Borough Council,http://www.sandwell.gov.uk/info/200202/performance_and_spending/1079/payments_over_500,10-Feb-2021,Individual School Budgets With Inclusion,LAVENDER FARM DAY NURSERY,Individual School Budgets With Inclusion,1892.10,Grant Payments,2021P11_CR00620,65596
Sandwell Metropolitan Borough Council,http://www.sandwell.gov.uk/info/200202/performance_and_spending/1079/payments_over_500,23-Feb-2021,Individual School Budgets With Inclusion,LAVENDER FARM DAY NURSERY,Individual School Budgets With Inclusion,31885.92,Grant Payments,2021P11_CR00621,65596
Sandwell Metropolitan Borough Council,http://www.sandwell.gov.uk/info/200202/performance_and_spending/1079/payments_over_500,23-Feb-2021,Individual School Budgets With Inclusion,LILLIPUT LODGE CHILDRENS DAY NURSERY,Individual School Budgets With Inclusion,6976.53,Grant Payments,2021P11_CR00622,2980
Sandwell Metropolitan Borough Council,http://www.sandwell.gov.uk/info/200202/performance_and_spending/1079/payments_over_500,23-Feb-2021,Individual School Budgets With Inclusion,LITTLE ACADEMY NURSERY,Individual School Budgets With Inclusion,4704.48,Grant Payments,2021P11_CR00623,81904
Sandwell Metropolitan Borough Council,http://www.sandwell.gov.uk/info/200202/performance_and_spending/1079/payments_over_500,23-Feb-2021,Individual School Budgets With Inclusion,LITTLE ANGELS DAY NURSERY LIMITED,Individual School Budgets With Inclusion,5227.20,Grant Payments,2021P11_CR00624,10207
Sandwell Metropolitan Borough Council,http://www.sandwell.gov.uk/info/200202/performance_and_spending/1079/payments_over_500,23-Feb-2021,Individual School Budgets With Inclusion,LITTLE EXPLORERS (WEST MIDLANDS) LTD,Individual School Budgets With Inclusion,17983.94,Grant Payments,2021P11_CR00625,114804
Sandwell Metropolitan Borough Council,http://www.sandwell.gov.uk/info/200202/performance_and_spending/1079/payments_over_500,23-Feb-2021,Individual School Budgets With Inclusion,LITTLE FRIENDS PRE SCHOOL,Individual School Budgets With Inclusion,1306.80,Grant Payments,2021P11_CR00626,10020
Sandwell Metropolitan Borough Council,http://www.sandwell.gov.uk/info/200202/performance_and_spending/1079/payments_over_500,23-Feb-2021,Individual School Budgets With Inclusion,LITTLE LEARNERS LTD,Individual School Budgets With Inclusion,9890.10,Grant Payments,2021P11_CR00627,01424133
Sandwell Metropolitan Borough Council,http://www.sandwell.gov.uk/info/200202/performance_and_spending/1079/payments_over_500,23-Feb-2021,Individual School Budgets With Inclusion,LITTLE LEGEND NURSERIES LTD,Individual School Budgets With Inclusion,2245.32,Grant Payments,2021P11_CR00628,117890
Sandwell Metropolitan Borough Council,http://www.sandwell.gov.uk/info/200202/performance_and_spending/1079/payments_over_500,23-Feb-2021,Individual School Budgets With Inclusion,LITTLE VALERS PRE SCHOOL,Individual School Budgets With Inclusion,12260.16,Grant Payments,2021P11_CR00629,99107
Sandwell Metropolitan Borough Council,http://www.sandwell.gov.uk/info/200202/performance_and_spending/1079/payments_over_500,23-Feb-2021,Individual School Budgets With Inclusion,LITTLE WENDY HOUSE DAY NURSERY,Individual School Budgets With Inclusion,9408.96,Grant Payments,2021P11_CR00630,91544
Sandwell Metropolitan Borough Council,http://www.sandwell.gov.uk/info/200202/performance_and_spending/1079/payments_over_500,23-Feb-2021,Individual School Budgets With Inclusion,LOLA BELLES PRIVATE DAY NURSERY,Individual School Budgets With Inclusion,5749.92,Grant Payments,2021P11_CR00631,89271
Sandwell Metropolitan Borough Council,http://www.sandwell.gov.uk/info/200202/performance_and_spending/1079/payments_over_500,23-Feb-2021,Individual School Budgets With Inclusion,MAC-E-MOOZ DAYCARE LTD,Individual School Budgets With Inclusion,1336.50,Grant Payments,2021P11_CR00632,112058
Sandwell Metropolitan Borough Council,http://www.sandwell.gov.uk/info/200202/performance_and_spending/1079/payments_over_500,23-Feb-2021,Individual School Budgets With Inclusion,MINI MONKEYS LTD,Individual School Budgets With Inclusion,7269.37,Grant Payments,2021P11_CR00633,114818
Sandwell Metropolitan Borough Council,http://www.sandwell.gov.uk/info/200202/performance_and_spending/1079/payments_over_500,23-Feb-2021,Individual School Budgets With Inclusion,MINNS LIMITED,Individual School Budgets With Inclusion,7579.44,Grant Payments,2021P11_CR00634,120067
Sandwell Metropolitan Borough Council,http://www.sandwell.gov.uk/info/200202/performance_and_spending/1079/payments_over_500,23-Feb-2021,Individual School Budgets With Inclusion,N & K VARMA LIMITED T/A (KIDDIES PLAYHOUSE TIPTON),Individual School Budgets With Inclusion,7318.08,Grant Payments,2021P11_CR00635,26124
Sandwell Metropolitan Borough Council,http://www.sandwell.gov.uk/info/200202/performance_and_spending/1079/payments_over_500,23-Feb-2021,Individual School Budgets With Inclusion,OUR LADY AND ST HUBERTS CATHOLIC PRIMARY SCHOOL                                      02,Individual School Budgets With Inclusion,13177.89,Grant Payments,2021P11_CR00636,61053
Sandwell Metropolitan Borough Council,http://www.sandwell.gov.uk/info/200202/performance_and_spending/1079/payments_over_500,23-Feb-2021,Individual School Budgets With Inclusion,PERRYFIELDS PRE SCHOOL,Individual School Budgets With Inclusion,8871.59,Grant Payments,2021P11_CR00637,18879
Sandwell Metropolitan Borough Council,http://www.sandwell.gov.uk/info/200202/performance_and_spending/1079/payments_over_500,23-Feb-2021,Individual School Budgets With Inclusion,PLAYHOUSE DAY NURSERY,Individual School Budgets With Inclusion,1033.56,Grant Payments,2021P11_CR00638,01586669
Sandwell Metropolitan Borough Council,http://www.sandwell.gov.uk/info/200202/performance_and_spending/1079/payments_over_500,23-Feb-2021,Individual School Budgets With Inclusion,RAK DAY CARE LTD T/A HAPPY VALLEY PRE SCHOOL LTD,Individual School Budgets With Inclusion,16988.40,Grant Payments,2021P11_CR00639,01572212
Sandwell Metropolitan Borough Council,http://www.sandwell.gov.uk/info/200202/performance_and_spending/1079/payments_over_500,23-Feb-2021,Individual School Budgets With Inclusion,RARE WOOD LIMITED,Individual School Budgets With Inclusion,12830.40,Grant Payments,2021P11_CR00640,20167
Sandwell Metropolitan Borough Council,http://www.sandwell.gov.uk/info/200202/performance_and_spending/1079/payments_over_500,23-Feb-2021,Individual School Budgets With Inclusion,REDACTED PERSONAL DATA,Individual School Budgets With Inclusion,1021.68,Grant Payments,2021P11_CR00641,REDACTED PERSONAL DATA
Sandwell Metropolitan Borough Council,http://www.sandwell.gov.uk/info/200202/performance_and_spending/1079/payments_over_500,23-Feb-2021,Individual School Budgets With Inclusion,REDACTED PERSONAL DATA,Individual School Budgets With Inclusion,510.84,Grant Payments,2021P11_CR00642,REDACTED PERSONAL DATA
Sandwell Metropolitan Borough Council,http://www.sandwell.gov.uk/info/200202/performance_and_spending/1079/payments_over_500,23-Feb-2021,Individual School Budgets With Inclusion,REDACTED PERSONAL DATA,Individual School Budgets With Inclusion,510.84,Grant Payments,2021P11_CR00643,REDACTED PERSONAL DATA
Sandwell Metropolitan Borough Council,http://www.sandwell.gov.uk/info/200202/performance_and_spending/1079/payments_over_500,23-Feb-2021,Individual School Budgets With Inclusion,REDACTED PERSONAL DATA,Individual School Budgets With Inclusion,1021.68,Grant Payments,2021P11_CR00644,REDACTED PERSONAL DATA
Sandwell Metropolitan Borough Council,http://www.sandwell.gov.uk/info/200202/performance_and_spending/1079/payments_over_500,23-Feb-2021,Individual School Budgets With Inclusion,REDACTED PERSONAL DATA,Individual School Budgets With Inclusion,510.84,Grant Payments,2021P11_CR00645,REDACTED PERSONAL DATA
Sandwell Metropolitan Borough Council,http://www.sandwell.gov.uk/info/200202/performance_and_spending/1079/payments_over_500,23-Feb-2021,Individual School Budgets With Inclusion,REDACTED PERSONAL DATA,Individual School Budgets With Inclusion,1021.68,Grant Payments,2021P11_CR00646,REDACTED PERSONAL DATA
Sandwell Metropolitan Borough Council,http://www.sandwell.gov.uk/info/200202/performance_and_spending/1079/payments_over_500,23-Feb-2021,Individual School Budgets With Inclusion,REDACTED PERSONAL DATA,Individual School Budgets With Inclusion,1021.68,Grant Payments,2021P11_CR00647,REDACTED PERSONAL DATA
Sandwell Metropolitan Borough Council,http://www.sandwell.gov.uk/info/200202/performance_and_spending/1079/payments_over_500,23-Feb-2021,Individual School Budgets With Inclusion,REDACTED PERSONAL DATA,Individual School Budgets With Inclusion,510.84,Grant Payments,2021P11_CR00648,REDACTED PERSONAL DATA
Sandwell Metropolitan Borough Council,http://www.sandwell.gov.uk/info/200202/performance_and_spending/1079/payments_over_500,23-Feb-2021,Individual School Budgets With Inclusion,REDACTED PERSONAL DATA,Individual School Budgets With Inclusion,1045.44,Grant Payments,2021P11_CR00649,REDACTED PERSONAL DATA
Sandwell Metropolitan Borough Council,http://www.sandwell.gov.uk/info/200202/performance_and_spending/1079/payments_over_500,23-Feb-2021,Individual School Budgets With Inclusion,REDACTED PERSONAL DATA,Individual School Budgets With Inclusion,766.26,Grant Payments,2021P11_CR00650,REDACTED PERSONAL DATA
Sandwell Metropolitan Borough Council,http://www.sandwell.gov.uk/info/200202/performance_and_spending/1079/payments_over_500,23-Feb-2021,Individual School Budgets With Inclusion,REDACTED PERSONAL DATA,Individual School Budgets With Inclusion,1306.80,Grant Payments,2021P11_CR00651,REDACTED PERSONAL DATA
Sandwell Metropolitan Borough Council,http://www.sandwell.gov.uk/info/200202/performance_and_spending/1079/payments_over_500,23-Feb-2021,Individual School Budgets With Inclusion,REDACTED PERSONAL DATA,Individual School Budgets With Inclusion,1021.68,Grant Payments,2021P11_CR00652,REDACTED PERSONAL DATA
Sandwell Metropolitan Borough Council,http://www.sandwell.gov.uk/info/200202/performance_and_spending/1079/payments_over_500,23-Feb-2021,Individual School Budgets With Inclusion,REDACTED PERSONAL DATA,Individual School Budgets With Inclusion,540.54,Grant Payments,2021P11_CR00653,REDACTED PERSONAL DATA
Sandwell Metropolitan Borough Council,http://www.sandwell.gov.uk/info/200202/performance_and_spending/1079/payments_over_500,23-Feb-2021,Individual School Budgets With Inclusion,REDACTED PERSONAL DATA,Individual School Budgets With Inclusion,766.26,Grant Payments,2021P11_CR00654,REDACTED PERSONAL DATA
Sandwell Metropolitan Borough Council,http://www.sandwell.gov.uk/info/200202/performance_and_spending/1079/payments_over_500,23-Feb-2021,Individual School Budgets With Inclusion,REDACTED PERSONAL DATA,Individual School Budgets With Inclusion,1081.08,Grant Payments,2021P11_CR00655,REDACTED PERSONAL DATA
Sandwell Metropolitan Borough Council,http://www.sandwell.gov.uk/info/200202/performance_and_spending/1079/payments_over_500,23-Feb-2021,Individual School Budgets With Inclusion,REDACTED PERSONAL DATA,Individual School Budgets With Inclusion,2325.51,Grant Payments,2021P11_CR00656,REDACTED PERSONAL DATA
Sandwell Metropolitan Borough Council,http://www.sandwell.gov.uk/info/200202/performance_and_spending/1079/payments_over_500,23-Feb-2021,Individual School Budgets With Inclusion,REDACTED PERSONAL DATA,Individual School Budgets With Inclusion,510.84,Grant Payments,2021P11_CR00657,REDACTED PERSONAL DATA
Sandwell Metropolitan Borough Council,http://www.sandwell.gov.uk/info/200202/performance_and_spending/1079/payments_over_500,10-Feb-2021,Individual School Budgets With Inclusion,REDACTED PERSONAL DATA,Individual School Budgets With Inclusion,556.50,Grant Payments,2021P11_CR00658,REDACTED PERSONAL DATA
Sandwell Metropolitan Borough Council,http://www.sandwell.gov.uk/info/200202/performance_and_spending/1079/payments_over_500,23-Feb-2021,Individual School Budgets With Inclusion,REDACTED PERSONAL DATA,Individual School Budgets With Inclusion,14469.84,Grant Payments,2021P11_CR00659,REDACTED PERSONAL DATA
Sandwell Metropolitan Borough Council,http://www.sandwell.gov.uk/info/200202/performance_and_spending/1079/payments_over_500,23-Feb-2021,Individual School Budgets With Inclusion,REDACTED PERSONAL DATA,Individual School Budgets With Inclusion,715.17,Grant Payments,2021P11_CR00660,REDACTED PERSONAL DATA
Sandwell Metropolitan Borough Council,http://www.sandwell.gov.uk/info/200202/performance_and_spending/1079/payments_over_500,23-Feb-2021,Individual School Budgets With Inclusion,REDACTED PERSONAL DATA,Individual School Budgets With Inclusion,1351.35,Grant Payments,2021P11_CR00661,REDACTED PERSONAL DATA
Sandwell Metropolitan Borough Council,http://www.sandwell.gov.uk/info/200202/performance_and_spending/1079/payments_over_500,23-Feb-2021,Individual School Budgets With Inclusion,REDACTED PERSONAL DATA,Individual School Budgets With Inclusion,766.26,Grant Payments,2021P11_CR00662,REDACTED PERSONAL DATA
Sandwell Metropolitan Borough Council,http://www.sandwell.gov.uk/info/200202/performance_and_spending/1079/payments_over_500,23-Feb-2021,Individual School Budgets With Inclusion,REDACTED PERSONAL DATA,Individual School Budgets With Inclusion,510.84,Grant Payments,2021P11_CR00663,REDACTED PERSONAL DATA
Sandwell Metropolitan Borough Council,http://www.sandwell.gov.uk/info/200202/performance_and_spending/1079/payments_over_500,23-Feb-2021,Individual School Budgets With Inclusion,REDACTED PERSONAL DATA,Individual School Budgets With Inclusion,510.84,Grant Payments,2021P11_CR00664,REDACTED PERSONAL DATA
Sandwell Metropolitan Borough Council,http://www.sandwell.gov.uk/info/200202/performance_and_spending/1079/payments_over_500,23-Feb-2021,Individual School Budgets With Inclusion,REDACTED PERSONAL DATA,Individual School Budgets With Inclusion,766.26,Grant Payments,2021P11_CR00665,REDACTED PERSONAL DATA
Sandwell Metropolitan Borough Council,http://www.sandwell.gov.uk/info/200202/performance_and_spending/1079/payments_over_500,23-Feb-2021,Individual School Budgets With Inclusion,REDACTED PERSONAL DATA,Individual School Budgets With Inclusion,1081.08,Grant Payments,2021P11_CR00666,REDACTED PERSONAL DATA
Sandwell Metropolitan Borough Council,http://www.sandwell.gov.uk/info/200202/performance_and_spending/1079/payments_over_500,23-Feb-2021,Individual School Budgets With Inclusion,REDACTED PERSONAL DATA,Individual School Budgets With Inclusion,1277.10,Grant Payments,2021P11_CR00667,REDACTED PERSONAL DATA
Sandwell Metropolitan Borough Council,http://www.sandwell.gov.uk/info/200202/performance_and_spending/1079/payments_over_500,23-Feb-2021,Individual School Budgets With Inclusion,REDACTED PERSONAL DATA,Individual School Budgets With Inclusion,1277.10,Grant Payments,2021P11_CR00668,REDACTED PERSONAL DATA
Sandwell Metropolitan Borough Council,http://www.sandwell.gov.uk/info/200202/performance_and_spending/1079/payments_over_500,23-Feb-2021,Individual School Budgets With Inclusion,REDACTED PERSONAL DATA,Individual School Budgets With Inclusion,1787.94,Grant Payments,2021P11_CR00669,REDACTED PERSONAL DATA
Sandwell Metropolitan Borough Council,http://www.sandwell.gov.uk/info/200202/performance_and_spending/1079/payments_over_500,23-Feb-2021,Individual School Budgets With Inclusion,REDACTED PERSONAL DATA,Individual School Budgets With Inclusion,732.20,Grant Payments,2021P11_CR00670,REDACTED PERSONAL DATA
Sandwell Metropolitan Borough Council,http://www.sandwell.gov.uk/info/200202/performance_and_spending/1079/payments_over_500,23-Feb-2021,Individual School Budgets With Inclusion,REDACTED PERSONAL DATA,Individual School Budgets With Inclusion,766.26,Grant Payments,2021P11_CR00671,REDACTED PERSONAL DATA
Sandwell Metropolitan Borough Council,http://www.sandwell.gov.uk/info/200202/performance_and_spending/1079/payments_over_500,23-Feb-2021,Individual School Budgets With Inclusion,REDACTED PERSONAL DATA,Individual School Budgets With Inclusion,766.26,Grant Payments,2021P11_CR00672,REDACTED PERSONAL DATA
Sandwell Metropolitan Borough Council,http://www.sandwell.gov.uk/info/200202/performance_and_spending/1079/payments_over_500,23-Feb-2021,Individual School Budgets With Inclusion,REDACTED PERSONAL DATA,Individual School Budgets With Inclusion,510.84,Grant Payments,2021P11_CR00673,REDACTED PERSONAL DATA
Sandwell Metropolitan Borough Council,http://www.sandwell.gov.uk/info/200202/performance_and_spending/1079/payments_over_500,23-Feb-2021,Individual School Budgets With Inclusion,REDACTED PERSONAL DATA,Individual School Budgets With Inclusion,2352.24,Grant Payments,2021P11_CR00674,REDACTED PERSONAL DATA
Sandwell Metropolitan Borough Council,http://www.sandwell.gov.uk/info/200202/performance_and_spending/1079/payments_over_500,23-Feb-2021,Individual School Budgets With Inclusion,REDACTED PERSONAL DATA,Individual School Budgets With Inclusion,1351.35,Grant Payments,2021P11_CR00675,REDACTED PERSONAL DATA
Sandwell Metropolitan Borough Council,http://www.sandwell.gov.uk/info/200202/performance_and_spending/1079/payments_over_500,23-Feb-2021,Individual School Budgets With Inclusion,REDACTED PERSONAL DATA,Individual School Budgets With Inclusion,766.26,Grant Payments,2021P11_CR00676,REDACTED PERSONAL DATA
Sandwell Metropolitan Borough Council,http://www.sandwell.gov.uk/info/200202/performance_and_spending/1079/payments_over_500,23-Feb-2021,Individual School Budgets With Inclusion,REDACTED PERSONAL DATA ,Individual School Budgets With Inclusion,2162.16,Grant Payments,2021P11_CR00677,REDACTED PERSONAL DATA
Sandwell Metropolitan Borough Council,http://www.sandwell.gov.uk/info/200202/performance_and_spending/1079/payments_over_500,23-Feb-2021,Individual School Budgets With Inclusion,ROWLEY VILLAGE DAY NURSERY,Individual School Budgets With Inclusion,7751.70,Grant Payments,2021P11_CR00678,24228
Sandwell Metropolitan Borough Council,http://www.sandwell.gov.uk/info/200202/performance_and_spending/1079/payments_over_500,23-Feb-2021,Individual School Budgets With Inclusion,SADWICA DAY NURSERY,Individual School Budgets With Inclusion,6237.00,Grant Payments,2021P11_CR00679,01667892
Sandwell Metropolitan Borough Council,http://www.sandwell.gov.uk/info/200202/performance_and_spending/1079/payments_over_500,23-Feb-2021,Individual School Budgets With Inclusion,SANDWELL NHS TRUST DAY NURSERY,Individual School Budgets With Inclusion,19689.12,Grant Payments,2021P11_CR00680,40788
Sandwell Metropolitan Borough Council,http://www.sandwell.gov.uk/info/200202/performance_and_spending/1079/payments_over_500,23-Feb-2021,Individual School Budgets With Inclusion,SMARTY PANTS @ LIGHTWOODS HOUSE LTD,Individual School Budgets With Inclusion,10335.60,Grant Payments,2021P11_CR00681,130645
Sandwell Metropolitan Borough Council,http://www.sandwell.gov.uk/info/200202/performance_and_spending/1079/payments_over_500,23-Feb-2021,Individual School Budgets With Inclusion,SMARTY PANTS PRIVATE DAY NURSERY LTD,Individual School Budgets With Inclusion,9931.68,Grant Payments,2021P11_CR00682,74037
Sandwell Metropolitan Borough Council,http://www.sandwell.gov.uk/info/200202/performance_and_spending/1079/payments_over_500,23-Feb-2021,Individual School Budgets With Inclusion,SPON LANE DAY NURSERY LIMITED,Individual School Budgets With Inclusion,10424.70,Grant Payments,2021P11_CR00683,127024
Sandwell Metropolitan Borough Council,http://www.sandwell.gov.uk/info/200202/performance_and_spending/1079/payments_over_500,10-Feb-2021,Individual School Budgets With Inclusion,ST HUBERTS PRE-SCHOOL PLAYGROUP 2,Individual School Budgets With Inclusion,779.10,Grant Payments,2021P11_CR00684,123074
Sandwell Metropolitan Borough Council,http://www.sandwell.gov.uk/info/200202/performance_and_spending/1079/payments_over_500,23-Feb-2021,Individual School Budgets With Inclusion,ST HUBERTS PRE-SCHOOL PLAYGROUP 2,Individual School Budgets With Inclusion,19482.60,Grant Payments,2021P11_CR00685,123074
Sandwell Metropolitan Borough Council,http://www.sandwell.gov.uk/info/200202/performance_and_spending/1079/payments_over_500,23-Feb-2021,Individual School Budgets With Inclusion,ST MICHAELS DAY NURSERY,Individual School Budgets With Inclusion,3783.78,Grant Payments,2021P11_CR00686,01698538
Sandwell Metropolitan Borough Council,http://www.sandwell.gov.uk/info/200202/performance_and_spending/1079/payments_over_500,23-Feb-2021,Individual School Budgets With Inclusion,STEPPING STONES NURSERY,Individual School Budgets With Inclusion,3100.68,Grant Payments,2021P11_CR00687,50029
Sandwell Metropolitan Borough Council,http://www.sandwell.gov.uk/info/200202/performance_and_spending/1079/payments_over_500,23-Feb-2021,Individual School Budgets With Inclusion,SUNNY SKIES DAY NURSERY,Individual School Budgets With Inclusion,7579.44,Grant Payments,2021P11_CR00688,82726
Sandwell Metropolitan Borough Council,http://www.sandwell.gov.uk/info/200202/performance_and_spending/1079/payments_over_500,23-Feb-2021,Individual School Budgets With Inclusion,THE FAMILY NURSERY COMPANY LTD,Individual School Budgets With Inclusion,10454.40,Grant Payments,2021P11_CR00689,89879
Sandwell Metropolitan Borough Council,http://www.sandwell.gov.uk/info/200202/performance_and_spending/1079/payments_over_500,10-Feb-2021,Individual School Budgets With Inclusion,THE PATCH DAY NURSERY,Individual School Budgets With Inclusion,519.40,Grant Payments,2021P11_CR00690,126020
Sandwell Metropolitan Borough Council,http://www.sandwell.gov.uk/info/200202/performance_and_spending/1079/payments_over_500,23-Feb-2021,Individual School Budgets With Inclusion,THE PATCH DAY NURSERY,Individual School Budgets With Inclusion,11151.36,Grant Payments,2021P11_CR00691,126020
Sandwell Metropolitan Borough Council,http://www.sandwell.gov.uk/info/200202/performance_and_spending/1079/payments_over_500,23-Feb-2021,Individual School Budgets With Inclusion,THE TODDLER HOUSE LIMITED,Individual School Budgets With Inclusion,10454.40,Grant Payments,2021P11_CR00692,122166
Sandwell Metropolitan Borough Council,http://www.sandwell.gov.uk/info/200202/performance_and_spending/1079/payments_over_500,23-Feb-2021,Individual School Budgets With Inclusion,THE WONDER YEARS DAY NURSERY LIMITED,Individual School Budgets With Inclusion,10837.73,Grant Payments,2021P11_CR00693,01647249
Sandwell Metropolitan Borough Council,http://www.sandwell.gov.uk/info/200202/performance_and_spending/1079/payments_over_500,10-Feb-2021,Individual School Budgets With Inclusion,TICK TOCK DAY NURSERY LTD,Individual School Budgets With Inclusion,1486.65,Grant Payments,2021P11_CR00694,9391
Sandwell Metropolitan Borough Council,http://www.sandwell.gov.uk/info/200202/performance_and_spending/1079/payments_over_500,23-Feb-2021,Individual School Budgets With Inclusion,TICK TOCK DAY NURSERY LTD,Individual School Budgets With Inclusion,24045.12,Grant Payments,2021P11_CR00695,9391
Sandwell Metropolitan Borough Council,http://www.sandwell.gov.uk/info/200202/performance_and_spending/1079/payments_over_500,10-Feb-2021,Individual School Budgets With Inclusion,TIDDLYWINKS KIDDYS NURSERY LIMITED,Individual School Budgets With Inclusion,556.50,Grant Payments,2021P11_CR00696,110667
Sandwell Metropolitan Borough Council,http://www.sandwell.gov.uk/info/200202/performance_and_spending/1079/payments_over_500,23-Feb-2021,Individual School Budgets With Inclusion,TIDDLYWINKS KIDDYS NURSERY LIMITED,Individual School Budgets With Inclusion,11627.55,Grant Payments,2021P11_CR00697,110667
Sandwell Metropolitan Borough Council,http://www.sandwell.gov.uk/info/200202/performance_and_spending/1079/payments_over_500,23-Feb-2021,Individual School Budgets With Inclusion,TIMBERTREE NEIGHBOURHOOD NURSERY,Individual School Budgets With Inclusion,13177.89,Grant Payments,2021P11_CR00698,135664
Sandwell Metropolitan Borough Council,http://www.sandwell.gov.uk/info/200202/performance_and_spending/1079/payments_over_500,23-Feb-2021,Individual School Budgets With Inclusion,TINY TOEZ LIMITED,Individual School Budgets With Inclusion,12515.58,Grant Payments,2021P11_CR00699,23618
Sandwell Metropolitan Borough Council,http://www.sandwell.gov.uk/info/200202/performance_and_spending/1079/payments_over_500,23-Feb-2021,Individual School Budgets With Inclusion,TINY WOODS PRE SCHOOL,Individual School Budgets With Inclusion,27346.97,Grant Payments,2021P11_CR00700,91788
Sandwell Metropolitan Borough Council,http://www.sandwell.gov.uk/info/200202/performance_and_spending/1079/payments_over_500,23-Feb-2021,Individual School Budgets With Inclusion,TIP TOP DAY NURSERY WEDNESBURY,Individual School Budgets With Inclusion,1021.68,Grant Payments,2021P11_CR00701,147082
Sandwell Metropolitan Borough Council,http://www.sandwell.gov.uk/info/200202/performance_and_spending/1079/payments_over_500,23-Feb-2021,Individual School Budgets With Inclusion,TIPTON EXPLORERS NURSERY,Individual School Budgets With Inclusion,7318.08,Grant Payments,2021P11_CR00702,132351
Sandwell Metropolitan Borough Council,http://www.sandwell.gov.uk/info/200202/performance_and_spending/1079/payments_over_500,10-Feb-2021,Individual School Budgets With Inclusion,TIPTON NURSERY,Individual School Budgets With Inclusion,1113.00,Grant Payments,2021P11_CR00703,89881
Sandwell Metropolitan Borough Council,http://www.sandwell.gov.uk/info/200202/performance_and_spending/1079/payments_over_500,23-Feb-2021,Individual School Budgets With Inclusion,TIPTON NURSERY,Individual School Budgets With Inclusion,11493.90,Grant Payments,2021P11_CR00704,89881
Sandwell Metropolitan Borough Council,http://www.sandwell.gov.uk/info/200202/performance_and_spending/1079/payments_over_500,10-Feb-2021,Individual School Budgets With Inclusion,TIPTON TODDLERS DAY NURSERY,Individual School Budgets With Inclusion,556.50,Grant Payments,2021P11_CR00705,4397
Sandwell Metropolitan Borough Council,http://www.sandwell.gov.uk/info/200202/performance_and_spending/1079/payments_over_500,23-Feb-2021,Individual School Budgets With Inclusion,TIPTON TODDLERS DAY NURSERY,Individual School Budgets With Inclusion,15986.52,Grant Payments,2021P11_CR00706,4397
Sandwell Metropolitan Borough Council,http://www.sandwell.gov.uk/info/200202/performance_and_spending/1079/payments_over_500,23-Feb-2021,Individual School Budgets With Inclusion,TWO STEPS PRE-SCHOOL,Individual School Budgets With Inclusion,2613.60,Grant Payments,2021P11_CR00707,109186
Sandwell Metropolitan Borough Council,http://www.sandwell.gov.uk/info/200202/performance_and_spending/1079/payments_over_500,10-Feb-2021,Individual School Budgets With Inclusion,UNICORN DAY NURSERY,Individual School Budgets With Inclusion,2003.40,Grant Payments,2021P11_CR00708,91543
Sandwell Metropolitan Borough Council,http://www.sandwell.gov.uk/info/200202/performance_and_spending/1079/payments_over_500,23-Feb-2021,Individual School Budgets With Inclusion,UNICORN DAY NURSERY,Individual School Budgets With Inclusion,23801.58,Grant Payments,2021P11_CR00709,91543
Sandwell Metropolitan Borough Council,http://www.sandwell.gov.uk/info/200202/performance_and_spending/1079/payments_over_500,10-Feb-2021,Individual School Budgets With Inclusion,UNITED KIDS LIMITED,Individual School Budgets With Inclusion,779.10,Grant Payments,2021P11_CR00710,136360
Sandwell Metropolitan Borough Council,http://www.sandwell.gov.uk/info/200202/performance_and_spending/1079/payments_over_500,23-Feb-2021,Individual School Budgets With Inclusion,UNITED KIDS LIMITED,Individual School Budgets With Inclusion,10852.38,Grant Payments,2021P11_CR00711,136360
Sandwell Metropolitan Borough Council,http://www.sandwell.gov.uk/info/200202/performance_and_spending/1079/payments_over_500,10-Feb-2021,Individual School Budgets With Inclusion,WIGGLES & GIGGLES LTD,Individual School Budgets With Inclusion,667.80,Grant Payments,2021P11_CR00712,01674799
Sandwell Metropolitan Borough Council,http://www.sandwell.gov.uk/info/200202/performance_and_spending/1079/payments_over_500,23-Feb-2021,Individual School Budgets With Inclusion,WIGGLES & GIGGLES LTD,Individual School Budgets With Inclusion,23668.92,Grant Payments,2021P11_CR00713,01674799
Sandwell Metropolitan Borough Council,http://www.sandwell.gov.uk/info/200202/performance_and_spending/1079/payments_over_500,23-Feb-2021,Individual School Budgets With Inclusion,WONDERLAND CHILDRENS DAY NURSERY (UK) LTD,Individual School Budgets With Inclusion,23522.40,Grant Payments,2021P11_CR00714,50852
Sandwell Metropolitan Borough Council,http://www.sandwell.gov.uk/info/200202/performance_and_spending/1079/payments_over_500,15-Feb-2021,Individual School Budgets With Inclusion,ASCEND HEALTH AND CHILDCARE TRAINING,Individual School Budgets With Inclusion,3564.00,Externally Purchased Professional Services ,2021P11_CR00715,136631
Sandwell Metropolitan Borough Council,http://www.sandwell.gov.uk/info/200202/performance_and_spending/1079/payments_over_500,01-Feb-2021,Individual School Budgets With Inclusion,BIRMINGHAM COMMUNITY HEALTHCARE NHS TRUST,Individual School Budgets With Inclusion,785.00,Externally Purchased Professional Services ,2021P11_CR00716,117124
Sandwell Metropolitan Borough Council,http://www.sandwell.gov.uk/info/200202/performance_and_spending/1079/payments_over_500,24-Feb-2021,Individual School Budgets With Inclusion,BIRMINGHAM DIOCESA DIOCESE OF BIRMING,Individual School Budgets With Inclusion,10000.00,Operational Services ,2021P11_CR00717,120965
Sandwell Metropolitan Borough Council,http://www.sandwell.gov.uk/info/200202/performance_and_spending/1079/payments_over_500,01-Feb-2021,Individual School Budgets With Inclusion,BLACKWATER ACADEMY,Individual School Budgets With Inclusion,21180.00,Externally Purchased Professional Services ,2021P11_CR00718,129151
Sandwell Metropolitan Borough Council,http://www.sandwell.gov.uk/info/200202/performance_and_spending/1079/payments_over_500,01-Feb-2021,Individual School Budgets With Inclusion,BLACKWATER ACADEMY,Individual School Budgets With Inclusion,2250.00,Other Establishments,2021P11_CR00719,129151
Sandwell Metropolitan Borough Council,http://www.sandwell.gov.uk/info/200202/performance_and_spending/1079/payments_over_500,01-Feb-2021,Individual School Budgets With Inclusion,BRITISH GAS BUSINESS,Individual School Budgets With Inclusion,521.98,Gas,2021P11_CR00720,01735076
Sandwell Metropolitan Borough Council,http://www.sandwell.gov.uk/info/200202/performance_and_spending/1079/payments_over_500,08-Feb-2021,Individual School Budgets With Inclusion,COLMORE EDUCATION RECRUITMENT,Individual School Budgets With Inclusion,600.00,Agency Staff,2021P11_CR00721,148720
Sandwell Metropolitan Borough Council,http://www.sandwell.gov.uk/info/200202/performance_and_spending/1079/payments_over_500,08-Feb-2021,Individual School Budgets With Inclusion,COLMORE EDUCATION RECRUITMENT,Individual School Budgets With Inclusion,600.00,Agency Staff,2021P11_CR00722,148720
Sandwell Metropolitan Borough Council,http://www.sandwell.gov.uk/info/200202/performance_and_spending/1079/payments_over_500,01-Feb-2021,Individual School Budgets With Inclusion,COLMORE EDUCATION RECRUITMENT,Individual School Budgets With Inclusion,600.00,Agency Staff,2021P11_CR00723,148720
Sandwell Metropolitan Borough Council,http://www.sandwell.gov.uk/info/200202/performance_and_spending/1079/payments_over_500,01-Feb-2021,Individual School Budgets With Inclusion,COLMORE EDUCATION RECRUITMENT,Individual School Budgets With Inclusion,600.00,Agency Staff,2021P11_CR00724,148720
Sandwell Metropolitan Borough Council,http://www.sandwell.gov.uk/info/200202/performance_and_spending/1079/payments_over_500,01-Feb-2021,Individual School Budgets With Inclusion,COLMORE EDUCATION RECRUITMENT,Individual School Budgets With Inclusion,600.00,Agency Staff,2021P11_CR00725,148720
Sandwell Metropolitan Borough Council,http://www.sandwell.gov.uk/info/200202/performance_and_spending/1079/payments_over_500,01-Feb-2021,Individual School Budgets With Inclusion,COLMORE EDUCATION RECRUITMENT,Individual School Budgets With Inclusion,600.00,Agency Staff,2021P11_CR00726,148720
Sandwell Metropolitan Borough Council,http://www.sandwell.gov.uk/info/200202/performance_and_spending/1079/payments_over_500,08-Feb-2021,Individual School Budgets With Inclusion,COLMORE EDUCATION RECRUITMENT,Individual School Budgets With Inclusion,975.00,Agency Staff,2021P11_CR00727,148720
Sandwell Metropolitan Borough Council,http://www.sandwell.gov.uk/info/200202/performance_and_spending/1079/payments_over_500,01-Feb-2021,Individual School Budgets With Inclusion,COLMORE EDUCATION RECRUITMENT,Individual School Budgets With Inclusion,975.00,Agency Staff,2021P11_CR00728,148720
Sandwell Metropolitan Borough Council,http://www.sandwell.gov.uk/info/200202/performance_and_spending/1079/payments_over_500,01-Feb-2021,Individual School Budgets With Inclusion,COLMORE EDUCATION RECRUITMENT,Individual School Budgets With Inclusion,975.00,Agency Staff,2021P11_CR00729,148720
Sandwell Metropolitan Borough Council,http://www.sandwell.gov.uk/info/200202/performance_and_spending/1079/payments_over_500,01-Feb-2021,Individual School Budgets With Inclusion,COLMORE EDUCATION RECRUITMENT,Individual School Budgets With Inclusion,975.00,Agency Staff,2021P11_CR00730,148720
Sandwell Metropolitan Borough Council,http://www.sandwell.gov.uk/info/200202/performance_and_spending/1079/payments_over_500,01-Feb-2021,Individual School Budgets With Inclusion,COLMORE EDUCATION RECRUITMENT,Individual School Budgets With Inclusion,975.00,Agency Staff,2021P11_CR00731,148720
Sandwell Metropolitan Borough Council,http://www.sandwell.gov.uk/info/200202/performance_and_spending/1079/payments_over_500,01-Feb-2021,Individual School Budgets With Inclusion,COLMORE EDUCATION RECRUITMENT,Individual School Budgets With Inclusion,975.00,Agency Staff,2021P11_CR00732,148720
